Workbook

Sheet RehuVarasto
A1: 1
B2: eMulli2 REHUSEOKSEN SUUNNITTELUOHJELMA | X2: 1
B3: Versio 1.0 © 2019 Jyri Tuovinen, Savonia AMK, Luke | X3: 1
F5: REHUSEOKSEN REHUARVOT | V5: REHUSEOKSEN KOON MITOITUS
F6: Rehuseoksen nimitys | P6: Seos1 | V6: Rehuseosannoksen suuruus | W6: Seos yht. | X6: Päiväannos
F7: Energia pit. Mj/kg ka | P7: =$F19 -> 11.392 | V7: Rehuseoserän suuruus ka kg | W7: 10000 | X7: 2000
F8: Kuitu (NDF) g/ka kg | P8: =AO15 -> 398.84 | V8: Erän tuorepaino tp kg | W8: =IFERROR(W7*R19/P19,0) -> 19002.29811 | X8: =SUBTOTAL(9,X21:X220) -> 3800.459622
F9: Syönti- indeksi SRIND | P9: =AR15 -> 111.5 | V9: Erän Mj yht | W9: =W7*P7 -> 113920 | X9: =IFERROR(X8/W8*W9,0) -> 22784
F10: VFA g/kg ka | P10: =AS15 -> 4.2 | V10: Erän hinta yht € | W10: =W7*P12/100 -> 1895.32 | X10: =IFERROR(X7/W7*W10,0) -> 379.064
F11: Rehun hinta snt/Mj | P11: =IFERROR($M19,0) -> 1.665354635 | V11: Karkearehu tilavuus (kg/m3) | W11: 600 | X11: =H19 -> 143.5897436
F12: Rehun hinta snt/kg ka | P12: =$L19 -> 18.9532 | V12: Väkirehu tilavuus (kg/m3) | W12: 800 | X12: =G19 -> 44.18604651
F13: RV g/kg ka | P13: =AN15 -> 128.072 | V13: Apevaunun koko (m3) | W13: 6 | X13: =(X11*W11+X12*W12)/(X12+X11) -> 647.0625595 | AN13: =AN20 -> RV | AO13: =AO20 -> NDF | AP13: =AP20 -> PVT | AQ13: =AQ20 -> Tärk&sok | AR13: =AR20 -> Syönti-indeksi SRIND | AS13: VFA
F14: Tärkkelys g/kg ka | P14: =AT19 -> 268.32 | V14: Apevaunuun mahtuu (kg) | W14: =IFERROR(X13/1000*W13*1000,0) -> 3882.375357 | X14: =IFERROR(W7/X7,0) -> 5 | AM14: minimi | AN14: 90 | AO14: 300 | AP14: -20 | AQ14: 0 | AR14: 70 | AS14: 0 | AU14: minimi | AV14: 6 | AW14: 3 | AX14: 1.5 | AY14: 1.6 | AZ14: 100 | BA14: 40 | BB14: 50 | BC14: 10 | BD14: 0.1 | BE14: 0.1 | BF14: 0.2 | BG14: 0.3 | BH14: 2200
F15: Väkirehuprosentti | P15: =$E19 -> 40% | V15: Apevaunujen määrä kpl | W15: =IFERROR(W8/$W$14,0) -> 4.894503072 | X15: =IFERROR(X8/$W$14,0) -> 0.9789006143 | AM15: nyt | AN15: =AN19 -> 128.072 | AO15: 398.84 | AP15: -10.32 | AQ15: 322.42 | AR15: 111.5 | AS15: 4.2 | AU15: nyt | AV15: =AV19 -> 9.21 | AW15: =AW19 -> 3.298 | AX15: 2.242 | AY15: 1.798 | AZ15: 153.18 | BA15: 59.72 | BB15: 64.54 | BC15: 11.84 | BD15: 0.368 | BE15: 0.388 | BF15: 1.856 | BG15: 0.324 | BH15: 3382.78 | BI15: =BI19 -> 0 | BJ15: 0 | BK15: 0 | BL15: 0
F16: Seoskomponentin info | P16: 12 | V16: Rehuarvoja punaisella ( alitus/ylitys): | W16: =SUBTOTAL(9,AN17:AR17)* IF(P19>0,1,0) -> 0 | X16: =SUM(AV17:BH17)*IF(P19>0,1,0) -> 0 | AM16: maksimi | AN16: 250 | AO16: 600 | AP16: 100 | AQ16: 400 | AR16: 130 | AS16: ei ole | AU16: maksimi | AV16: ei tiedossa | AW16: ei tiedossa | AX16: 6 | AY16: 60 | AZ16: 1000 | BA16: 1300 | BB16: 1500 | BC16: 200 | BD16: 30 | BE16: 4 | BF16: 50 | BG16: 2 | BH16: 20000 | BI16: 25000 | BJ16: ei rajaa
M17: =IFERROR((M18-L19)/L19,"") -> 0.0009771437013 | V17: REHU- JA KIVENNÄISLISTA | AN17: =IF(AN15<AN14,1,IF(AN15>AN16,1,0)) -> 0 | AO17: 0 | AP17: 0 | AQ17: 0 | AS17: 0 | AV17: =IF(AV15<AV14,1,IF(AV15>AV16,1,0)) -> 0 | AW17: =IF(AW15<AW14,1,IF(AW15>AW16,1,0)) -> 0 | AX17: 0 | AY17: 0 | AZ17: 0 | BA17: 0 | BB17: 0 | BC17: 0 | BD17: 0 | BE17: 0 | BF17: 0 | BG17: 0 | BH17: 0
A18: Seoksen komponentit | B18: Seoksen komponentit (kg ka ja Mj) | F18: =B19+C19+D19 -> 100 | G18: Tuorepainot | M18: =M19*F19 -> 18.97172 | O18: Osuudet | P18: Seos ka kg | S18: karkearehu-osuus | U18: määrä | V18: Rehuseoksen osatekijät | W18: Rehu- | X18: Päivä- | Y18: Huom! Ole tarkkana, että | AA18: Määrätiedot varastossa suunnittelukaudelle (Kilot ja Mj:t) | AJ18: Yksikköhinnat ja varaston arvo | AN18: Rehuarvot kuiva-ainekiloa kohden | AV18: Hivenaineet ja vitamiinit
A19: rivi | B19: =SUBTOTAL(9,B21:B220) -> 38 | C19: =SUBTOTAL(9,C21:C220) -> 60 | D19: 2 | E19: =IFERROR(ROUND((B19+D19)/(B19+C19+D19)*100,0)&"% ","") -> 40% | F19: =SUBTOTAL(9,F21:F220) -> 11.392 | G19: =SUBTOTAL(9,G21:G220) -> 44.18604651 | H19: 143.5897436 | I19: vapaa | J19: vapaa | K19: vapaa | L19: =SUBTOTAL(9,L21:L220) -> 18.9532 | M19: 1.665354635 | O19: =SUBTOTAL(9,O21:O220) -> 1 | P19: =SUBTOTAL(9,P21:P220) -> 100 | Q19: Tp | R19: =SUBTOTAL(9,R21:R220) -> 190.0229811 | S19: =SUM(S21:S220) -> 51 | T19: 2871.794872 | U19: =SUM(U21:U220) -> 126 | V19: Rehut ja kivennäiset | W19: seos yht. | X19: annos | Y19: syötät tekstit oikein! | AA19: =SUM(AA21:AA220) -> 0 | AC19: =SUM(AC21:AC220) -> 0 | AE19: =SUM(AE21:AE220) -> 0 | AJ19: Hinnat | AL19: Varasto yht. | AM19: =SUM(AM21:AM220) -> 0 | AN19: =SUBTOTAL(9,BP21:BP220) -> 128.072 | AO19: 398.84 | AP19: -10.32 | AQ19: 322.42 | AR19: 111.5 | AS19: 4.2 | AT19: 268.32 | AU19: 54.1 | AV19: =SUBTOTAL(9,BX21:BX220) -> 9.21 | AW19: 3.298 | AX19: 2.242 | AY19: 1.798 | AZ19: 153.18 | BA19: 59.72 | BB19: 64.54 | BC19: 11.84 | BD19: 0.368 | BE19: 0.388 | BF19: 1.856 | BG19: 0.324 | BH19: 3382.78 | BM19: MTT
B20: väkirehut | C20: karkearehut | D20: kivenn. | E20: suhdeluku | F20: Mj/kg ka | G20: väkir tp | H20: kark tp | L20: snt/ kg ka | M20: snt/Mj | N20: rehutyyppi | O20: ka-% | P20: ka kg | Q20: tp-% | R20: tp kg | S20: =S6 -> 0 | U20: valittu | V20: Nimitys | W20: tp kg | X20: tp kg | Y20: lähde | Z20: rehutyyppi | AA20: tuore kg yht | AB20: ka-% | AC20: kg ka yht | AD20: Mj/kg ka | AE20: Mj me yht | AG20: Varasto ka kg | AH20: Varattu ka kg | AI20: Jäljellä ka kg | AJ20: snt/kg tp | AK20: snt/kg ka | AL20: snt/Mj Me | AM20: eur yht | AN20: RV | AO20: NDF | AP20: PVT | AQ20: Tärk&sok | AR20: Syönti-indeksi SRIND | AS20: VFA | AT20: Tärk.. | AU20: Sok. | AV20: Ca | AW20: P | AX20: Mg | AY20: Na | AZ20: Fe | BA20: Mn | BB20: Zn | BC20: Cu | BD20: Co | BE20: Se | BF20: I | BG20: Mo | BH20: A-vit | BI20: D-vit | BJ20: E-vit | BK20: Huom! | BL20: mttkdi | BM20: rehuid | BP20: =AN20 -> RV | BQ20: NDF | BR20: PVT | BS20: Tärk&sok | BT20: Syönti-indeksi SRIND | BU20: VFA | BV20: Tärk.. | BW20: Sok. | BX20: =AV20 -> Ca | BY20: P | BZ20: Mg | CA20: Na | CB20: Fe | CC20: Mn | CD20: Zn | CE20: Cu | CF20: Co | CG20: Se | CH20: I | CI20: Mo | CJ20: A-vit
A21: 21 | B21: =IF(N21=3,P21,IF(N21=4,P21,0)) -> 0 | C21: =IF(N21=1,P21,IF(N21=2,P21,0)) -> 0 | D21: =IF(N21=5,P21,0) -> 0 | F21: =IFERROR(AD21*U21*(B21+C21+D21)/(B$19+C$19+D$19),0) -> 0 | G21: =IFERROR(B21/AB21*100,0) -> 0 | H21: =IFERROR(C21/AB21*100,0) -> 0 | I21: =IFERROR(AS21*U21*C21/(B$19+C$19+D$19),0) -> 0 | J21: =IFERROR(AN21*U21*(B21+C21+D21)/($B$19+$C$19+$D$19),0) -> 0 | K21: =IFERROR(AQ21*U21*(B21+C21+D21)/($B$19+C$19+D$19),0) -> 0 | L21: =IFERROR(AK21*U21*(B21+C21+D21)/(B$19+C$19+D$19),0) -> 0 | M21: =AL21*F21/F$19 -> 0 | N21: =IF(AND(Y21="kotoinen",Z21="karkearehu"),1,IF(AND(Y21="osto",Z21="karkearehu"),2,IF(AND(Y21="kotoinen",Z21="väkirehu"),3,IF(AND(Y21="osto",Z21="väkirehu"),4,IF(Z21="kivennäisseos",5,0))))) -> 1 | O21: =IFERROR(P21/F$18,0) -> 0 | Q21: =R21/R$19 -> 0 | R21: =IFERROR(P21/AB21*100,0) -> 0 | S21: =IF(Z21="karkearehu",1,0) -> 1 | T21: =S21*X21 -> 0 | U21: =IFERROR(IF(OFFSET(O21,0,V$2-1)>0,1,0),0) -> 1 | V21: Heinä, 1.sato, aikainen korjuu | W21: =IFERROR(Q21*W$8,0) -> 0 | X21: =IFERROR(W21*X$7/W$7,0) -> 0 | Y21: kotoinen | Z21: karkearehu | AB21: 86 | AC21: =AB21/100*AA21 -> 0 | AD21: 10.4 | AE21: =AC21*AD21 -> 0 | AK21: =IF(AB21<>0,ROUND(AJ21/(AB21/100),2),0) -> 0 | AL21: =IF(AD21<>0,ROUND(AK21/AD21,2),0) -> 0 | AM21: =AA21*AJ21/100 -> 0 | AN21: 160 | AO21: 610 | AP21: 23 | AQ21: =AT21+AU21 -> 50 | AR21: 90 | AS21: 0 | AT21: 0 | AU21: 50 | AV21: 3 | AW21: 3.6 | AX21: 1.3 | AY21: 0.2 | AZ21: 150 | BA21: 60 | BB21: 30 | BC21: 5 | BD21: 0.1 | BH21: 20 | BI21: 1000 | BJ21: 40 | BL21: 1004 | BM21: 65 | BP21: =IFERROR(AN21*($B21+$C21+$D21)/($B$19+$C$19+$D$19),0) -> 0 | BQ21: 0 | BR21: 0 | BS21: 0 | BT21: =IFERROR(AR21*($B21+$C21+$D21)/($C$19),0) -> 0 | BU21: 0 | BV21: 0 | BW21: 0 | BX21: =IFERROR(AV21*($B21+$C21+$D21)/($B$19+$C$19+$D$19),0) -> 0 | BY21: =IFERROR(AW21*($B21+$C21+$D21)/($B$19+$C$19+$D$19),0) -> 0 | BZ21: =IFERROR(AX21*($B21+$C21+$D21)/($B$19+$C$19+$D$19),0) -> 0 | CA21: =IFERROR(AY21*($B21+$C21+$D21)/($B$19+$C$19+$D$19),0) -> 0 | CB21: =IFERROR(AZ21*($B21+$C21+$D21)/($B$19+$C$19+$D$19),0) -> 0 | CC21: =IFERROR(BA21*($B21+$C21+$D21)/($B$19+$C$19+$D$19),0) -> 0 | CD21: =IFERROR(BB21*($B21+$C21+$D21)/($B$19+$C$19+$D$19),0) -> 0 | CE21: =IFERROR(BC21*($B21+$C21+$D21)/($B$19+$C$19+$D$19),0) -> 0 | CF21: =IFERROR(BD21*($B21+$C21+$D21)/($B$19+$C$19+$D$19),0) -> 0 | CG21: =IFERROR(BE21*($B21+$C21+$D21)/($B$19+$C$19+$D$19),0) -> 0 | CH21: =IFERROR(BF21*($B21+$C21+$D21)/($B$19+$C$19+$D$19),0) -> 0 | CI21: =IFERROR(BG21*($B21+$C21+$D21)/($B$19+$C$19+$D$19),0) -> 0 | CJ21: =IFERROR(BH21*($B21+$C21+$D21)/($B$19+$C$19+$D$19),0) -> 0 | EH21: =BN21-DK21 -> 0
A22: 22 | B22: 0 | C22: 0 | D22: 0 | F22: 0 | G22: =IFERROR(B22/AB22*100,0) -> 0 | H22: =IFERROR(C22/AB22*100,0) -> 0 | I22: 0 | J22: 0 | K22: 0 | L22: 0 | M22: 0 | N22: 1 | O22: 0 | Q22: 0 | R22: 0 | S22: 1 | T22: 0 | U22: =IFERROR(IF(OFFSET(O22,0,V$2-1)>0,1,0),0) -> 1 | V22: Heinä, 1.sato, myöhäinen korjuu | W22: 0 | X22: 0 | Y22: kotoinen | Z22: karkearehu | AB22: 86 | AC22: 0 | AD22: 8.9 | AE22: 0 | AK22: 0 | AL22: 0 | AM22: 0 | AN22: 100 | AO22: 670 | AP22: -11 | AQ22: 30 | AR22: 75 | AS22: 0 | AT22: 0 | AU22: 30 | AV22: 2.5 | AW22: 2.5 | AX22: 1.1 | AY22: 0.2 | AZ22: 150 | BA22: 60 | BB22: 30 | BC22: 5 | BD22: 0.1 | BH22: 20 | BI22: 1000 | BJ22: 40 | BL22: 3033 | BM22: 66 | BP22: 0 | BQ22: 0 | BR22: 0 | BS22: 0 | BT22: 0 | BU22: 0 | BV22: 0 | BW22: 0 | BX22: 0 | BY22: 0 | BZ22: 0 | CA22: 0 | CB22: 0 | CC22: 0 | CD22: 0 | CE22: 0 | CF22: 0 | CG22: 0 | CH22: 0 | CI22: 0 | CJ22: 0 | EH22: 0
A23: 23 | B23: 0 | C23: 0 | D23: 0 | F23: 0 | G23: 0 | H23: 0 | I23: 0 | J23: 0 | K23: 0 | L23: 0 | M23: 0 | N23: 1 | O23: 0 | Q23: 0 | R23: 0 | S23: 1 | T23: 0 | U23: 1 | V23: Heinä, 1.sato, normaali korjuu | W23: 0 | X23: 0 | Y23: kotoinen | Z23: karkearehu | AB23: 86 | AC23: 0 | AD23: 9.65 | AE23: 0 | AK23: 0 | AL23: 0 | AM23: 0 | AN23: 130 | AO23: 640 | AP23: 6 | AQ23: 50 | AR23: 85 | AS23: 0 | AT23: 0 | AU23: 50 | AV23: 3 | AW23: 3.6 | AX23: 1.2 | AY23: 0.2 | AZ23: 150 | BA23: 60 | BB23: 30 | BC23: 5 | BD23: 0.1 | BH23: 20 | BI23: 1000 | BJ23: 40 | BL23: 3034 | BM23: 67 | BP23: 0 | BQ23: 0 | BR23: 0 | BS23: 0 | BT23: 0 | BU23: 0 | BV23: 0 | BW23: 0 | BX23: 0 | BY23: 0 | BZ23: 0 | CA23: 0 | CB23: 0 | CC23: 0 | CD23: 0 | CE23: 0 | CF23: 0 | CG23: 0 | CH23: 0 | CI23: 0 | CJ23: 0 | EH23: 0
A24: 24 | B24: 0 | C24: 0 | D24: 0 | F24: 0 | G24: 0 | H24: 0 | I24: 0 | J24: 0 | K24: 0 | L24: 0 | M24: 0 | N24: 1 | O24: 0 | Q24: 0 | R24: 0 | S24: 1 | T24: 0 | U24: 1 | V24: Heinänsiemenenolki | W24: 0 | X24: 0 | Y24: kotoinen | Z24: karkearehu | AB24: 85 | AC24: 0 | AD24: 5.8954 | AE24: 0 | AK24: 0 | AL24: 0 | AM24: 0 | AN24: 51.5 | AO24: 600 | AP24: -29.976 | AQ24: 45 | AT24: 0 | AU24: 45 | AV24: 3.4 | AW24: 1.1 | AX24: 0.8 | AY24: 0.8 | BA24: 60 | BB24: 70 | BC24: 5 | BD24: 0.05 | BL24: 3035 | BM24: 68 | BP24: 0 | BQ24: 0 | BR24: 0 | BS24: 0 | BT24: 0 | BU24: 0 | BV24: 0 | BW24: 0 | BX24: 0 | BY24: 0 | BZ24: 0 | CA24: 0 | CB24: 0 | CC24: 0 | CD24: 0 | CE24: 0 | CF24: 0 | CG24: 0 | CH24: 0 | CI24: 0 | CJ24: 0 | EH24: 0
A25: 25 | B25: 0 | C25: 0 | D25: 0 | F25: 0 | G25: 0 | H25: 0 | I25: 0 | J25: 0 | K25: 0 | L25: 0 | M25: 0 | N25: 1 | O25: 0 | Q25: 0 | R25: 0 | S25: 1 | T25: 0 | U25: 1 | V25: Herne- ja virnasäilörehu, kukinnan alku | W25: 0 | X25: 0 | Y25: kotoinen | Z25: karkearehu | AB25: 20 | AC25: 0 | AD25: 9.9 | AE25: 0 | AK25: 0 | AL25: 0 | AM25: 0 | AN25: 200 | AO25: 540 | AP25: 80 | AQ25: 140 | AR25: 100 | AS25: 10 | AT25: 140 | AV25: 9.7 | AW25: 3.8 | AX25: 2.2 | AY25: 0.6 | AZ25: 164 | BA25: 18 | BB25: 66 | BC25: 8 | BL25: 1015 | BM25: 69 | BP25: 0 | BQ25: 0 | BR25: 0 | BS25: 0 | BT25: 0 | BU25: 0 | BV25: 0 | BW25: 0 | BX25: 0 | BY25: 0 | BZ25: 0 | CA25: 0 | CB25: 0 | CC25: 0 | CD25: 0 | CE25: 0 | CF25: 0 | CG25: 0 | CH25: 0 | CI25: 0 | CJ25: 0 | EH25: 0
A26: 26 | B26: 0 | C26: 0 | D26: 0 | F26: 0 | G26: 0 | H26: 0 | I26: 0 | J26: 0 | K26: 0 | L26: 0 | M26: 0 | N26: 1 | O26: 0 | Q26: 0 | R26: 0 | S26: 1 | T26: 0 | U26: 1 | V26: Härkäpapusäilörehu, vihreät siemenet | W26: 0 | X26: 0 | Y26: kotoinen | Z26: karkearehu | AB26: 20 | AC26: 0 | AD26: 9.1 | AE26: 0 | AK26: 0 | AL26: 0 | AM26: 0 | AN26: 190 | AO26: 400 | AP26: 80 | AQ26: 0 | AR26: 100 | AS26: 10 | AV26: 6.9 | AW26: 2.9 | AX26: 1.8 | AY26: 0.6 | AZ26: 165 | BA26: 18 | BB26: 62 | BC26: 18 | BL26: 1021 | BM26: 70 | BP26: 0 | BQ26: 0 | BR26: 0 | BS26: 0 | BT26: 0 | BU26: 0 | BV26: 0 | BW26: 0 | BX26: 0 | BY26: 0 | BZ26: 0 | CA26: 0 | CB26: 0 | CC26: 0 | CD26: 0 | CE26: 0 | CF26: 0 | CG26: 0 | CH26: 0 | CI26: 0 | CJ26: 0 | EH26: 0
A27: 27 | B27: 0 | C27: 0 | D27: 0 | F27: 0 | G27: 0 | H27: 0 | I27: 0 | J27: 0 | K27: 0 | L27: 0 | M27: 0 | N27: 1 | O27: 0 | Q27: 0 | R27: 0 | S27: 1 | T27: 0 | U27: 1 | V27: Italianraiheinäsäilörehu | W27: 0 | X27: 0 | Y27: kotoinen | Z27: karkearehu | AB27: 34 | AC27: 0 | AD27: 10.58 | AE27: 0 | AK27: 0 | AL27: 0 | AM27: 0 | AN27: 161 | AO27: 500 | AP27: 40 | AQ27: 46 | AR27: 100 | AS27: 10 | AT27: 0 | AU27: 46 | AV27: 6.3 | AW27: 4.3 | AX27: 1.9 | AY27: 2.3 | AZ27: 230 | BA27: 50 | BB27: 50 | BC27: 11 | BD27: 0.7 | BE27: 0 | BL27: 1031 | BM27: 71 | BP27: 0 | BQ27: 0 | BR27: 0 | BS27: 0 | BT27: 0 | BU27: 0 | BV27: 0 | BW27: 0 | BX27: 0 | BY27: 0 | BZ27: 0 | CA27: 0 | CB27: 0 | CC27: 0 | CD27: 0 | CE27: 0 | CF27: 0 | CG27: 0 | CH27: 0 | CI27: 0 | CJ27: 0 | EH27: 0
A28: 28 | B28: 0 | C28: 0 | D28: 0 | F28: 0 | G28: 0 | H28: 0 | I28: 0 | J28: 0 | K28: 0 | L28: 0 | M28: 0 | N28: 1 | O28: 0 | Q28: 0 | R28: 0 | S28: 1 | T28: 0 | U28: 1 | V28: Kaura-herne-virnasäilörehu | W28: 0 | X28: 0 | Y28: kotoinen | Z28: karkearehu | AB28: 34 | AC28: 0 | AD28: 10.63 | AE28: 0 | AK28: 0 | AL28: 0 | AM28: 0 | AN28: 125 | AO28: 460 | AP28: 3 | AQ28: 160 | AR28: 100 | AS28: 10 | AT28: 150 | AU28: 10 | AV28: 7 | AW28: 3.4 | AX28: 1.9 | AY28: 0.5 | BA28: 51 | BB28: 75 | BC28: 5 | BL28: 1032 | BM28: 72 | BP28: 0 | BQ28: 0 | BR28: 0 | BS28: 0 | BT28: 0 | BU28: 0 | BV28: 0 | BW28: 0 | BX28: 0 | BY28: 0 | BZ28: 0 | CA28: 0 | CB28: 0 | CC28: 0 | CD28: 0 | CE28: 0 | CF28: 0 | CG28: 0 | CH28: 0 | CI28: 0 | CJ28: 0 | EH28: 0
A29: 29 | B29: 0 | C29: 0 | D29: 0 | F29: 0 | G29: 0 | H29: 0 | I29: 0 | J29: 0 | K29: 0 | L29: 0 | M29: 0 | N29: 1 | O29: 0 | Q29: 0 | R29: 0 | S29: 1 | T29: 0 | U29: 1 | V29: Kauran ja ohran olki | W29: 0 | X29: 0 | Y29: kotoinen | Z29: karkearehu | AB29: 85 | AC29: 0 | AD29: 6 | AE29: 0 | AK29: 0 | AL29: 0 | AM29: 0 | AN29: 40 | AO29: 830 | AP29: -33.84 | AQ29: 0 | AT29: 0 | AV29: 2.8 | AW29: 1 | AX29: 1 | AY29: 0.2 | AZ29: 70 | BA29: 60 | BB29: 20 | BC29: 4 | BD29: 0.1 | BL29: 3038 | BM29: 73 | BP29: 0 | BQ29: 0 | BR29: 0 | BS29: 0 | BT29: 0 | BU29: 0 | BV29: 0 | BW29: 0 | BX29: 0 | BY29: 0 | BZ29: 0 | CA29: 0 | CB29: 0 | CC29: 0 | CD29: 0 | CE29: 0 | CF29: 0 | CG29: 0 | CH29: 0 | CI29: 0 | CJ29: 0 | EH29: 0
A30: 30 | B30: 0 | C30: 0 | D30: 0 | F30: 0 | G30: 0 | H30: 0 | I30: 0 | J30: 0 | K30: 0 | L30: 0 | M30: 0 | N30: 1 | O30: 0 | Q30: 0 | R30: 0 | S30: 1 | T30: 0 | U30: 1 | V30: Kokoviljasäilörehu, kaura | W30: 0 | X30: 0 | Y30: kotoinen | Z30: karkearehu | AB30: 23 | AC30: 0 | AD30: 8.525 | AE30: 0 | AK30: 0 | AL30: 0 | AM30: 0 | AN30: 95 | AO30: 450 | AP30: -5 | AQ30: 160 | AR30: 100 | AS30: 5 | AT30: 150 | AU30: 10 | AV30: 4.8 | AW30: 3.2 | AX30: 1.5 | AY30: 1.5 | BA30: 81 | BB30: 67 | BC30: 5 | BL30: 1033 | BM30: 74 | BP30: 0 | BQ30: 0 | BR30: 0 | BS30: 0 | BT30: 0 | BU30: 0 | BV30: 0 | BW30: 0 | BX30: 0 | BY30: 0 | BZ30: 0 | CA30: 0 | CB30: 0 | CC30: 0 | CD30: 0 | CE30: 0 | CF30: 0 | CG30: 0 | CH30: 0 | CI30: 0 | CJ30: 0 | EH30: 0
A31: 31 | B31: 0 | C31: 0 | D31: 0 | F31: 0 | G31: 0 | H31: 0 | I31: 0 | J31: 0 | K31: 0 | L31: 0 | M31: 0 | N31: 1 | O31: 0 | Q31: 0 | R31: 0 | S31: 1 | T31: 0 | U31: 1 | V31: Kokoviljasäilörehu, ohra, kuitu 45 % | W31: 0 | X31: 0 | Y31: kotoinen | Z31: karkearehu | AB31: 35 | AC31: 0 | AD31: 10.7 | AE31: 0 | AK31: 0 | AL31: 0 | AM31: 0 | AN31: 100 | AO31: 450 | AP31: -22 | AQ31: 230 | AR31: 110 | AS31: 5 | AT31: 220 | AU31: 10 | AV31: 2 | AW31: 2.5 | AX31: 1.3 | AY31: 0.4 | BA31: 43 | BB31: 28 | BC31: 5 | BL31: 3039 | BM31: 75 | BP31: 0 | BQ31: 0 | BR31: 0 | BS31: 0 | BT31: 0 | BU31: 0 | BV31: 0 | BW31: 0 | BX31: 0 | BY31: 0 | BZ31: 0 | CA31: 0 | CB31: 0 | CC31: 0 | CD31: 0 | CE31: 0 | CF31: 0 | CG31: 0 | CH31: 0 | CI31: 0 | CJ31: 0 | EH31: 0
A32: 32 | B32: 0 | C32: 0 | D32: 0 | F32: 0 | G32: 0 | H32: 0 | I32: 0 | J32: 0 | K32: 0 | L32: 0 | M32: 0 | N32: 1 | O32: 0 | Q32: 0 | R32: 0 | S32: 1 | T32: 0 | U32: 1 | V32: Kokoviljasäilörehu, ohra, kuitu 50 % | W32: 0 | X32: 0 | Y32: kotoinen | Z32: karkearehu | AB32: 35 | AC32: 0 | AD32: 9.9 | AE32: 0 | AK32: 0 | AL32: 0 | AM32: 0 | AN32: 100 | AO32: 500 | AP32: -14 | AQ32: 205 | AR32: 110 | AS32: 5 | AT32: 200 | AU32: 5 | AV32: 2 | AW32: 2.5 | AX32: 1.3 | AY32: 0.4 | BA32: 43 | BB32: 28 | BC32: 5 | BL32: 1034 | BM32: 21 | BP32: 0 | BQ32: 0 | BR32: 0 | BS32: 0 | BT32: 0 | BU32: 0 | BV32: 0 | BW32: 0 | BX32: 0 | BY32: 0 | BZ32: 0 | CA32: 0 | CB32: 0 | CC32: 0 | CD32: 0 | CE32: 0 | CF32: 0 | CG32: 0 | CH32: 0 | CI32: 0 | CJ32: 0 | EH32: =BN32-DK32 -> 0
A33: 33 | B33: 0 | C33: 0 | D33: 0 | F33: 0 | G33: 0 | H33: 0 | I33: 0 | J33: 0 | K33: 0 | L33: 0 | M33: 0 | N33: 1 | O33: 0 | Q33: 0 | R33: 0 | S33: 1 | T33: 0 | U33: 1 | V33: Kokoviljasäilörehu, ohra, kuitu 55 % | W33: 0 | X33: 0 | Y33: kotoinen | Z33: karkearehu | AB33: 35 | AC33: 0 | AD33: 9.3 | AE33: 0 | AK33: 0 | AL33: 0 | AM33: 0 | AN33: 100 | AO33: 550 | AP33: -8 | AQ33: 190 | AR33: 110 | AS33: 5 | AT33: 180 | AU33: 10 | AV33: 2 | AW33: 2.5 | AX33: 1.3 | AY33: 0.4 | BA33: 43 | BB33: 28 | BC33: 5 | BL33: 1041 | BM33: 22 | BP33: 0 | BQ33: 0 | BR33: 0 | BS33: 0 | BT33: 0 | BU33: 0 | BV33: 0 | BW33: 0 | BX33: 0 | BY33: 0 | BZ33: 0 | CA33: 0 | CB33: 0 | CC33: 0 | CD33: 0 | CE33: 0 | CF33: 0 | CG33: 0 | CH33: 0 | CI33: 0 | CJ33: 0 | EH33: 0
A34: 34 | B34: 0 | C34: 0 | D34: 0 | F34: 0 | G34: 0 | H34: 0 | I34: 0 | J34: 0 | K34: 0 | L34: 0 | M34: 0 | N34: 1 | O34: 0 | Q34: 0 | R34: 0 | S34: 1 | T34: 0 | U34: 1 | V34: Kokoviljasäilörehu, vehnä | W34: 0 | X34: 0 | Y34: kotoinen | Z34: karkearehu | AB34: 41 | AC34: 0 | AD34: 10.3354 | AE34: 0 | AK34: 0 | AL34: 0 | AM34: 0 | AN34: 94 | AO34: 390 | AP34: -23 | AQ34: 267 | AR34: 110 | AS34: 5 | AT34: 247 | AU34: 20 | AV34: 2.4 | AW34: 2.4 | AX34: 1.1 | AY34: 0.5 | AZ34: 70 | BA34: 29 | BB34: 49 | BC34: 5 | BD34: 0.05 | BE34: 0.03 | BL34: 1042 | BM34: 82 | BP34: 0 | BQ34: 0 | BR34: 0 | BS34: 0 | BT34: 0 | BU34: 0 | BV34: 0 | BW34: 0 | BX34: 0 | BY34: 0 | BZ34: 0 | CA34: 0 | CB34: 0 | CC34: 0 | CD34: 0 | CE34: 0 | CF34: 0 | CG34: 0 | CH34: 0 | CI34: 0 | CJ34: 0 | EH34: 0
A35: 35 | B35: 0 | C35: 0 | D35: 0 | F35: 0 | G35: 0 | H35: 0 | I35: 0 | J35: 0 | K35: 0 | L35: 0 | M35: 0 | N35: 1 | O35: 0 | Q35: 0 | R35: 0 | S35: 1 | T35: 0 | U35: 1 | V35: Laidun | W35: 0 | X35: 0 | Y35: kotoinen | Z35: karkearehu | AB35: 20 | AC35: 0 | AD35: 11.44 | AE35: 0 | AK35: 0 | AL35: 0 | AM35: 0 | AN35: 180 | AO35: 550 | AP35: 41 | AQ35: 125 | AR35: 120 | AS35: 0 | AT35: 0 | AU35: 125 | AV35: 3.8 | AW35: 3.5 | AX35: 1.8 | AY35: 1.1 | AZ35: 180 | BA35: 61 | BB35: 31 | BC35: 7 | BD35: 0.3 | BE35: 0.31 | BL35: 1043 | BM35: 23 | BP35: 0 | BQ35: 0 | BR35: 0 | BS35: 0 | BT35: 0 | BU35: 0 | BV35: 0 | BW35: 0 | BX35: 0 | BY35: 0 | BZ35: 0 | CA35: 0 | CB35: 0 | CC35: 0 | CD35: 0 | CE35: 0 | CF35: 0 | CG35: 0 | CH35: 0 | CI35: 0 | CJ35: 0 | EH35: 0
A36: 36 | B36: 0 | C36: 0 | D36: 0 | F36: 0 | G36: 0 | H36: 0 | I36: 0 | J36: 0 | K36: 0 | L36: 0 | M36: 0 | N36: 1 | O36: 0 | Q36: 0 | R36: 0 | S36: 1 | T36: 0 | U36: 1 | V36: Luonnonheinä | W36: 0 | X36: 0 | Y36: kotoinen | Z36: karkearehu | AB36: 21 | AC36: 0 | AD36: 10.24 | AE36: 0 | AK36: 0 | AL36: 0 | AM36: 0 | AN36: 135 | AO36: 640 | AP36: 15 | AQ36: 130 | AR36: 90 | AS36: 0 | AT36: 0 | AU36: 130 | AV36: 3.8 | AW36: 2.6 | AX36: 1.6 | AY36: 0.2 | AZ36: 180 | BA36: 61 | BB36: 31 | BC36: 7 | BD36: 0.3 | BE36: 0.31 | BL36: 3040 | BM36: 76 | BP36: 0 | BQ36: 0 | BR36: 0 | BS36: 0 | BT36: 0 | BU36: 0 | BV36: 0 | BW36: 0 | BX36: 0 | BY36: 0 | BZ36: 0 | CA36: 0 | CB36: 0 | CC36: 0 | CD36: 0 | CE36: 0 | CF36: 0 | CG36: 0 | CH36: 0 | CI36: 0 | CJ36: 0 | EH36: 0
A37: 37 | B37: 0 | C37: 0 | D37: 0 | F37: 0 | G37: 0 | H37: 0 | I37: 0 | J37: 0 | K37: 0 | L37: 0 | M37: 0 | N37: 1 | O37: 0 | Q37: 0 | R37: 0 | S37: 1 | T37: 0 | U37: 1 | V37: Maissisäilörehu | W37: 0 | X37: 0 | Y37: kotoinen | Z37: karkearehu | AB37: 31 | AC37: 0 | AD37: 11.576 | AE37: 0 | AK37: 0 | AL37: 0 | AM37: 0 | AN37: 87 | AO37: 460 | AP37: -38 | AQ37: 310 | AR37: 100 | AS37: 5 | AT37: 290 | AU37: 20 | AV37: 2.2 | AW37: 2.6 | AX37: 1.3 | AY37: 0.4 | AZ37: 60 | BA37: 21 | BB37: 71 | BC37: 5 | BD37: 0.02 | BE37: 0.03 | BL37: 3041 | BM37: 24 | BP37: =IFERROR(AN37*($B37+$C37+$D37)/($B$19+$C$19+$D$19),0) -> 0 | BQ37: 0 | BR37: 0 | BS37: 0 | BT37: 0 | BU37: 0 | BV37: 0 | BW37: 0 | BX37: 0 | BY37: 0 | BZ37: 0 | CA37: 0 | CB37: 0 | CC37: 0 | CD37: 0 | CE37: 0 | CF37: 0 | CG37: 0 | CH37: 0 | CI37: 0 | CJ37: 0 | EH37: 0
A38: 38 | B38: 0 | C38: 0 | D38: 0 | F38: 0 | G38: 0 | H38: 0 | I38: 0 | J38: 0 | K38: 0 | L38: 0 | M38: 0 | N38: 1 | O38: 0 | Q38: 0 | R38: 0 | S38: 1 | T38: 0 | U38: 1 | V38: Nurmisäilörehu, 1.sato, aik. korjuu | W38: 0 | X38: 0 | Y38: kotoinen | Z38: karkearehu | AB38: 25 | AC38: 0 | AD38: 11.5 | AE38: 0 | AK38: 0 | AL38: 0 | AM38: 0 | AN38: 170 | AO38: 520 | AP38: 39 | AQ38: 150 | AR38: 110 | AS38: 5 | AT38: 0 | AU38: 150 | AV38: 3.8 | AW38: 3.6 | AX38: 1.8 | AY38: 0.2 | AZ38: 180 | BA38: 61 | BB38: 31 | BC38: 7 | BD38: 0.3 | BE38: 0.3 | BL38: 3042 | BM38: 77 | BP38: 0 | BQ38: 0 | BR38: 0 | BS38: 0 | BT38: 0 | BU38: 0 | BV38: 0 | BW38: 0 | BX38: 0 | BY38: 0 | BZ38: 0 | CA38: 0 | CB38: 0 | CC38: 0 | CD38: 0 | CE38: 0 | CF38: 0 | CG38: 0 | CH38: 0 | CI38: 0 | CJ38: 0 | EH38: 0
A39: 39 | B39: 0 | C39: 0 | D39: 0 | F39: 0 | G39: 0 | H39: 0 | I39: 0 | J39: 0 | K39: 0 | L39: 0 | M39: 0 | N39: 1 | O39: 0 | Q39: 0 | R39: 0 | S39: 1 | T39: 0 | U39: 1 | V39: Nurmisäilörehu, 1.sato, erit.myöh. korj. | W39: 0 | X39: 0 | Y39: kotoinen | Z39: karkearehu | AB39: 25 | AC39: 0 | AD39: 9.6 | AE39: 0 | AK39: 0 | AL39: 0 | AM39: 0 | AN39: 120 | AO39: 660 | AP39: 14 | AQ39: 20 | AR39: 80 | AS39: 5 | AT39: 0 | AU39: 20 | AV39: 3.8 | AW39: 2.2 | AX39: 1.5 | AY39: 0.2 | AZ39: 180 | BA39: 61 | BB39: 31 | BC39: 7 | BD39: 0.26 | BE39: 0.31 | BL39: 3043 | BM39: 25 | BP39: 0 | BQ39: 0 | BR39: 0 | BS39: 0 | BT39: 0 | BU39: 0 | BV39: 0 | BW39: 0 | BX39: 0 | BY39: 0 | BZ39: 0 | CA39: 0 | CB39: 0 | CC39: 0 | CD39: 0 | CE39: 0 | CF39: 0 | CG39: 0 | CH39: 0 | CI39: 0 | CJ39: 0 | EH39: 0
A40: 40 | B40: 0 | C40: 0 | D40: 0 | F40: 0 | G40: 0 | H40: 0 | I40: 0 | J40: 0 | K40: 0 | L40: 0 | M40: 0 | N40: 1 | O40: 0 | Q40: 0 | R40: 0 | S40: 1 | T40: 0 | U40: 1 | V40: Nurmisäilörehu, 1.sato, myöhäinen korjuu | W40: 0 | X40: 0 | Y40: kotoinen | Z40: karkearehu | AB40: 25 | AC40: 0 | AD40: 10.1 | AE40: 0 | AK40: 0 | AL40: 0 | AM40: 0 | AN40: 130 | AO40: 660 | AP40: 18 | AQ40: 40 | AR40: 90 | AS40: 5 | AT40: 0 | AU40: 40 | AV40: 3.8 | AW40: 2.5 | AX40: 1.6 | AY40: 0.2 | AZ40: 180 | BA40: 61 | BB40: 31 | BC40: 7 | BD40: 0.26 | BE40: 0.31 | BL40: 1051 | BM40: 26 | BP40: 0 | BQ40: 0 | BR40: 0 | BS40: 0 | BT40: 0 | BU40: 0 | BV40: 0 | BW40: 0 | BX40: 0 | BY40: 0 | BZ40: 0 | CA40: 0 | CB40: 0 | CC40: 0 | CD40: 0 | CE40: 0 | CF40: 0 | CG40: 0 | CH40: 0 | CI40: 0 | CJ40: 0 | EH40: 0
A41: 41 | B41: 0 | C41: 0 | D41: 0 | F41: 0 | G41: 0 | H41: 0 | I41: 0 | J41: 0 | K41: 0 | L41: 0 | M41: 0 | N41: 1 | O41: 0 | Q41: 0 | R41: 0 | S41: 1 | T41: 0 | U41: 1 | V41: Nurmisäilörehu, 2.sato, keskim. sulavuus | W41: 0 | X41: 0 | Y41: kotoinen | Z41: karkearehu | AB41: 25 | AC41: 0 | AD41: 10.4 | AE41: 0 | AK41: 0 | AL41: 0 | AM41: 0 | AN41: 155 | AO41: 530 | AP41: 36 | AQ41: 100 | AR41: 95 | AS41: 5 | AT41: 0 | AU41: 100 | AV41: 4.2 | AW41: 2.8 | AX41: 2.1 | AY41: 0.2 | AZ41: 165 | BA41: 66 | BB41: 28 | BC41: 7 | BD41: 0.26 | BE41: 0.2 | BL41: 3046 | BM41: 27 | BP41: 0 | BQ41: 0 | BR41: 0 | BS41: 0 | BT41: 0 | BU41: 0 | BV41: 0 | BW41: 0 | BX41: 0 | BY41: 0 | BZ41: 0 | CA41: 0 | CB41: 0 | CC41: 0 | CD41: 0 | CE41: 0 | CF41: 0 | CG41: 0 | CH41: 0 | CI41: 0 | CJ41: 0 | EH41: 0
A42: 42 | B42: 0 | C42: 0 | D42: 0 | F42: 0 | G42: 0 | H42: 0 | I42: 0 | J42: 0 | K42: 0 | L42: 0 | M42: 0 | N42: 1 | O42: 0 | Q42: 0 | R42: 0 | S42: 1 | T42: 0 | U42: 1 | V42: Nurmisäilörehu, 2.sato, korkea sulavuus | W42: 0 | X42: 0 | Y42: kotoinen | Z42: karkearehu | AB42: 25 | AC42: 0 | AD42: 10.9 | AE42: 0 | AK42: 0 | AL42: 0 | AM42: 0 | AN42: 170 | AO42: 520 | AP42: 45 | AQ42: 150 | AR42: 105 | AS42: 5 | AT42: 0 | AU42: 150 | AV42: 4.2 | AW42: 3.1 | AX42: 2.2 | AY42: 0.2 | AZ42: 165 | BA42: 66 | BB42: 28 | BC42: 7 | BD42: 0.3 | BE42: 0.2 | BL42: 1071 | BM42: 149 | BP42: 0 | BQ42: 0 | BR42: 0 | BS42: 0 | BT42: 0 | BU42: 0 | BV42: 0 | BW42: 0 | BX42: 0 | BY42: 0 | BZ42: 0 | CA42: 0 | CB42: 0 | CC42: 0 | CD42: 0 | CE42: 0 | CF42: 0 | CG42: 0 | CH42: 0 | CI42: 0 | CJ42: 0 | EH42: 0
A43: 43 | B43: 0 | C43: 0 | D43: 0 | F43: 0 | G43: 0 | H43: 0 | I43: 0 | J43: 0 | K43: 0 | L43: 0 | M43: 0 | N43: 1 | O43: 0 | Q43: 0 | R43: 0 | S43: 1 | T43: 0 | U43: 1 | V43: Nurmisäilörehu, 2.sato, matala sulavuus | W43: 0 | X43: 0 | Y43: kotoinen | Z43: karkearehu | AB43: 25 | AC43: 0 | AD43: 9.9 | AE43: 0 | AK43: 0 | AL43: 0 | AM43: 0 | AN43: 145 | AO43: 540 | AP43: 32 | AQ43: 50 | AR43: 90 | AS43: 5 | AT43: 0 | AU43: 50 | AV43: 4.2 | AW43: 2.4 | AX43: 2 | AY43: 0.2 | AZ43: 165 | BA43: 66 | BB43: 28 | BC43: 7 | BD43: 0.26 | BE43: 0.2 | BL43: 1072 | BM43: 150 | BP43: 0 | BQ43: 0 | BR43: 0 | BS43: 0 | BT43: 0 | BU43: 0 | BV43: 0 | BW43: 0 | BX43: 0 | BY43: 0 | BZ43: 0 | CA43: 0 | CB43: 0 | CC43: 0 | CD43: 0 | CE43: 0 | CF43: 0 | CG43: 0 | CH43: 0 | CI43: 0 | CJ43: 0 | EH43: 0
A44: 44 | B44: 0 | C44: 0 | D44: 0 | F44: 0 | G44: 0 | H44: 0 | I44: 0 | J44: 0 | K44: 0 | L44: 0 | M44: 0 | N44: 1 | O44: 0 | Q44: 0 | R44: 0 | S44: 1 | T44: 0 | U44: 1 | V44: Nurmisäilörehu, 3.sato | W44: 0 | X44: 0 | Y44: kotoinen | Z44: karkearehu | AB44: 25 | AC44: 0 | AD44: 11.2 | AE44: 0 | AK44: 0 | AL44: 0 | AM44: 0 | AN44: 175 | AO44: 510 | AP44: 46 | AQ44: 100 | AR44: 100 | AS44: 5 | AT44: 0 | AU44: 100 | AV44: 4.5 | AW44: 3.3 | AX44: 2.2 | AY44: 0.2 | AZ44: 200 | BA44: 80 | BB44: 31 | BC44: 7 | BD44: 0.26 | BE44: 0.2 | BL44: 1073 | BM44: 28 | BP44: 0 | BQ44: 0 | BR44: 0 | BS44: 0 | BT44: 0 | BU44: 0 | BV44: 0 | BW44: 0 | BX44: 0 | BY44: 0 | BZ44: 0 | CA44: 0 | CB44: 0 | CC44: 0 | CD44: 0 | CE44: 0 | CF44: 0 | CG44: 0 | CH44: 0 | CI44: 0 | CJ44: 0 | EH44: 0
A45: 45 | B45: 0 | C45: 0 | D45: 0 | F45: 0 | G45: 0 | H45: 0 | I45: 0 | J45: 0 | K45: 0 | L45: 0 | M45: 0 | N45: 1 | O45: 0 | Q45: 0 | R45: 0 | S45: 1 | T45: 0 | U45: 1 | V45: Puna-apila, 1. ja 2. sato, myöh. korjuu | W45: 0 | X45: 0 | Y45: kotoinen | Z45: karkearehu | AB45: 21 | AC45: 0 | AD45: 9.8 | AE45: 0 | AK45: 0 | AL45: 0 | AM45: 0 | AN45: 190 | AO45: 420 | AP45: 65 | AQ45: 50 | AR45: 110 | AS45: 5 | AT45: 0 | AU45: 50 | AV45: 12.6 | AW45: 2 | AX45: 2.5 | AY45: 0.2 | AZ45: 200 | BA45: 35 | BB45: 35 | BC45: 15 | BD45: 0.15 | BH45: 200 | BJ45: 180 | BL45: 1074 | BM45: 78 | BP45: 0 | BQ45: 0 | BR45: 0 | BS45: 0 | BT45: 0 | BU45: 0 | BV45: 0 | BW45: 0 | BX45: 0 | BY45: 0 | BZ45: 0 | CA45: 0 | CB45: 0 | CC45: 0 | CD45: 0 | CE45: 0 | CF45: 0 | CG45: 0 | CH45: 0 | CI45: 0 | CJ45: 0 | EH45: 0
A46: 46 | B46: 0 | C46: 0 | D46: 0 | F46: 0 | G46: 0 | H46: 0 | I46: 0 | J46: 0 | K46: 0 | L46: 0 | M46: 0 | N46: 1 | O46: 0 | Q46: 0 | R46: 0 | S46: 1 | T46: 0 | U46: 1 | V46: Puna-apila, 1. ja 2. sato, norm. korjuu | W46: 0 | X46: 0 | Y46: kotoinen | Z46: karkearehu | AB46: 35 | AC46: 0 | AD46: 10.6 | AE46: 0 | AH46: =AG46*AB46/100 -> 0 | AK46: 0 | AL46: 0 | AM46: 0 | AN46: 210 | AO46: 360 | AP46: 74 | AQ46: 100 | AR46: 115 | AS46: 5 | AT46: 0 | AU46: 100 | AV46: 14.7 | AW46: 2.3 | AX46: 2.8 | AY46: 0.2 | AZ46: 200 | BA46: 35 | BB46: 35 | BC46: 15 | BD46: 0.2 | BL46: 3047 | BM46: 79 | BP46: 0 | BQ46: 0 | BR46: 0 | BS46: 0 | BT46: 0 | BU46: 0 | BV46: 0 | BW46: 0 | BX46: 0 | BY46: 0 | BZ46: 0 | CA46: 0 | CB46: 0 | CC46: 0 | CD46: 0 | CE46: 0 | CF46: 0 | CG46: 0 | CH46: 0 | CI46: 0 | CJ46: 0 | EH46: 0
A47: 47 | B47: 0 | C47: 0 | D47: 0 | F47: 0 | G47: 0 | H47: 0 | I47: 0 | J47: 0 | K47: 0 | L47: 0 | M47: 0 | N47: 1 | O47: 0 | Q47: 0 | R47: 0 | S47: 1 | T47: 0 | U47: 1 | V47: Puna-apilasäilörehu (25%), 1.sato, myöh. | W47: 0 | X47: 0 | Y47: kotoinen | Z47: karkearehu | AB47: 25 | AC47: 0 | AD47: 9.6 | AE47: 0 | AK47: 0 | AL47: 0 | AM47: 0 | AN47: 135 | AO47: 600 | AP47: 21 | AQ47: 50 | AR47: 105 | AS47: 5 | AT47: 0 | AU47: 50 | AV47: 5.9 | AW47: 2.1 | AX47: 1.8 | AY47: 0.2 | AZ47: 185 | BA47: 53 | BB47: 31 | BC47: 8 | BD47: 0.2 | BL47: 3049 | BM47: 80 | BP47: 0 | BQ47: 0 | BR47: 0 | BS47: 0 | BT47: 0 | BU47: 0 | BV47: 0 | BW47: 0 | BX47: 0 | BY47: 0 | BZ47: 0 | CA47: 0 | CB47: 0 | CC47: 0 | CD47: 0 | CE47: 0 | CF47: 0 | CG47: 0 | CH47: 0 | CI47: 0 | CJ47: 0 | EH47: 0
A48: 48 | B48: 0 | C48: 0 | D48: 0 | F48: 0 | G48: 0 | H48: 0 | I48: 0 | J48: 0 | K48: 0 | L48: 0 | M48: 0 | N48: 1 | O48: 0 | Q48: 0 | R48: 0 | S48: 1 | T48: 0 | U48: 1 | V48: Puna-apilasäilörehu (25%), 1.sato, norm. | W48: 0 | X48: 0 | Y48: kotoinen | Z48: karkearehu | AB48: 25 | AC48: 0 | AD48: 10.2 | AE48: 0 | AK48: 0 | AL48: 0 | AM48: 0 | AN48: 150 | AO48: 590 | AP48: 27 | AQ48: 100 | AR48: 115 | AS48: 5 | AT48: 0 | AU48: 100 | AV48: 6.4 | AW48: 2.5 | AX48: 1.9 | AY48: 0.2 | AZ48: 173 | BA48: 53 | BB48: 31 | BC48: 8 | BD48: 0.23 | BL48: 3072 | BM48: 81 | BP48: 0 | BQ48: 0 | BR48: 0 | BS48: 0 | BT48: 0 | BU48: 0 | BV48: 0 | BW48: 0 | BX48: 0 | BY48: 0 | BZ48: 0 | CA48: 0 | CB48: 0 | CC48: 0 | CD48: 0 | CE48: 0 | CF48: 0 | CG48: 0 | CH48: 0 | CI48: 0 | CJ48: 0 | EH48: 0
A49: 49 | B49: 0 | C49: 0 | D49: 0 | F49: 0 | G49: 0 | H49: 0 | I49: 0 | J49: 0 | K49: 0 | L49: 0 | M49: 0 | N49: 1 | O49: 0 | Q49: 0 | R49: 0 | S49: 1 | T49: 0 | U49: 1 | V49: Puna-apilasäilörehu (50%), 1.sato, aik. | W49: 0 | X49: 0 | Y49: kotoinen | Z49: karkearehu | AB49: 25 | AC49: 0 | AD49: 10.9 | AE49: 0 | AH49: =AG49*AB49/100 -> 0 | AK49: 0 | AL49: 0 | AM49: 0 | AN49: 190 | AO49: 480 | AP49: 54 | AQ49: 150 | AR49: 120 | AS49: 5 | AT49: 0 | AU49: 150 | AV49: 10 | AW49: 2.7 | AX49: 2.3 | AY49: 0.3 | AZ49: 165 | BA49: 46 | BB49: 31 | BC49: 9 | BD49: 0.2 | BL49: 3073 | BM49: 29 | BP49: 0 | BQ49: 0 | BR49: 0 | BS49: 0 | BT49: 0 | BU49: 0 | BV49: 0 | BW49: 0 | BX49: 0 | BY49: 0 | BZ49: 0 | CA49: 0 | CB49: 0 | CC49: 0 | CD49: 0 | CE49: 0 | CF49: 0 | CG49: 0 | CH49: 0 | CI49: 0 | CJ49: 0 | EH49: 0
A50: 50 | B50: 0 | C50: 0 | D50: 0 | F50: 0 | G50: 0 | H50: 0 | I50: 0 | J50: 0 | K50: 0 | L50: 0 | M50: 0 | N50: 1 | O50: 0 | Q50: 0 | R50: 0 | S50: 1 | T50: 0 | U50: 1 | V50: Puna-apilasäilörehu (50%), 1.sato, myöh. | W50: 0 | X50: 0 | Y50: kotoinen | Z50: karkearehu | AB50: 25 | AC50: 0 | AD50: 9.6 | AE50: 0 | AK50: 0 | AL50: 0 | AM50: 0 | AN50: 150 | AO50: 550 | AP50: 33 | AQ50: 75 | AR50: 110 | AS50: 5 | AT50: 0 | AU50: 75 | AV50: 8 | AW50: 2.1 | AX50: 2 | AY50: 0.2 | AZ50: 190 | BA50: 46 | BB50: 31 | BC50: 9 | BD50: 0.21 | BL50: 3074 | BM50: 83 | BP50: 0 | BQ50: 0 | BR50: 0 | BS50: 0 | BT50: 0 | BU50: 0 | BV50: 0 | BW50: 0 | BX50: 0 | BY50: 0 | BZ50: 0 | CA50: 0 | CB50: 0 | CC50: 0 | CD50: 0 | CE50: 0 | CF50: 0 | CG50: 0 | CH50: 0 | CI50: 0 | CJ50: 0 | EH50: 0
A51: 51 | B51: 0 | C51: 0 | D51: 0 | F51: 0 | G51: 0 | H51: 0 | I51: 0 | J51: 0 | K51: 0 | L51: 0 | M51: 0 | N51: 1 | O51: 0 | Q51: 0 | R51: 0 | S51: 1 | T51: 0 | U51: 1 | V51: Puna-apilasäilörehu (50%), 1.sato, norm. | W51: 0 | X51: 0 | Y51: kotoinen | Z51: karkearehu | AB51: 25 | AC51: 0 | AD51: 10.2 | AE51: 0 | AK51: 0 | AL51: 0 | AM51: 0 | AN51: 170 | AO51: 520 | AP51: 43.888 | AQ51: 90 | AR51: 110 | AS51: 5 | AT51: 0 | AU51: 90 | AV51: 9 | AW51: 2.4 | AX51: 2.2 | AY51: 0.3 | AZ51: 165 | BA51: 46 | BB51: 31 | BC51: 9 | BD51: 0.21 | BL51: 1075 | BM51: 30 | BP51: 0 | BQ51: 0 | BR51: 0 | BS51: 0 | BT51: 0 | BU51: 0 | BV51: 0 | BW51: 0 | BX51: 0 | BY51: 0 | BZ51: 0 | CA51: 0 | CB51: 0 | CC51: 0 | CD51: 0 | CE51: 0 | CF51: 0 | CG51: 0 | CH51: 0 | CI51: 0 | CJ51: 0 | EH51: 0
A52: 52 | B52: 0 | C52: 0 | D52: 0 | F52: 0 | G52: 0 | H52: 0 | I52: 0 | J52: 0 | K52: 0 | L52: 0 | M52: 0 | N52: 1 | O52: 0 | Q52: 0 | R52: 0 | S52: 1 | T52: 0 | U52: 1 | V52: Puna-apilasäilörehu (75%), 1.sato, aik. | W52: 0 | X52: 0 | Y52: kotoinen | Z52: karkearehu | AB52: 25 | AC52: 0 | AD52: 11 | AE52: 0 | AK52: 0 | AL52: 0 | AM52: 0 | AN52: 210 | AO52: 390 | AP52: 69.504 | AQ52: 100 | AR52: 110 | AS52: 5 | AT52: 0 | AU52: 100 | AV52: 13.2 | AW52: 2.7 | AX52: 2.7 | AY52: 0.3 | AZ52: 158 | BA52: 38 | BB52: 30 | BC52: 10 | BD52: 0.18 | BL52: 1081 | BM52: 31 | BP52: 0 | BQ52: 0 | BR52: 0 | BS52: 0 | BT52: 0 | BU52: 0 | BV52: 0 | BW52: 0 | BX52: 0 | BY52: 0 | BZ52: 0 | CA52: 0 | CB52: 0 | CC52: 0 | CD52: 0 | CE52: 0 | CF52: 0 | CG52: 0 | CH52: 0 | CI52: 0 | CJ52: 0 | EH52: 0
A53: 53 | B53: =IF(N53=3,P53,IF(N53=4,P53,0)) -> 0 | C53: =IF(N53=1,P53,IF(N53=2,P53,0)) -> 0 | D53: =IF(N53=5,P53,0) -> 0 | F53: =IFERROR(AD53*U53*(B53+C53+D53)/(B$19+C$19+D$19),0) -> 0 | G53: 0 | H53: 0 | I53: =IFERROR(AS53*U53*C53/(B$19+C$19+D$19),0) -> 0 | J53: =IFERROR(AN53*U53*(B53+C53+D53)/($B$19+$C$19+$D$19),0) -> 0 | K53: =IFERROR(AQ53*U53*(B53+C53+D53)/($B$19+C$19+D$19),0) -> 0 | L53: 0 | M53: =AL53*F53/F$19 -> 0 | N53: =IF(AND(Y53="kotoinen",Z53="karkearehu"),1,IF(AND(Y53="osto",Z53="karkearehu"),2,IF(AND(Y53="kotoinen",Z53="väkirehu"),3,IF(AND(Y53="osto",Z53="väkirehu"),4,IF(Z53="kivennäisseos",5,0))))) -> 1 | O53: =IFERROR(P53/F$18,0) -> 0 | Q53: =R53/R$19 -> 0 | R53: =IFERROR(P53/AB53*100,0) -> 0 | S53: 1 | T53: 0 | U53: 1 | V53: Puna-apilasäilörehu (75%), 1.sato, myöh. | W53: =IFERROR(Q53*W$8,0) -> 0 | X53: =IFERROR(W53*X$7/W$7,0) -> 0 | Y53: kotoinen | Z53: karkearehu | AB53: 25 | AC53: =AB53/100*AA53 -> 0 | AD53: 9.6 | AE53: =AC53*AD53 -> 0 | AK53: =IF(AB53<>0,ROUND(AJ53/(AB53/100),2),0) -> 0 | AL53: =IF(AD53<>0,ROUND(AK53/AD53,2),0) -> 0 | AM53: =AA53*AJ53/100 -> 0 | AN53: 165 | AO53: 490 | AP53: 45.816 | AQ53: =AT53+AU53 -> 50 | AR53: 110 | AS53: 5 | AT53: 0 | AU53: 50 | AV53: 10.1 | AW53: 2 | AX53: 2.2 | AY53: 0.3 | AZ53: 195 | BA53: 38 | BB53: 30 | BC53: 10 | BD53: 0.18 | BL53: 1082 | BM53: 32 | BP53: =IFERROR(AN53*($B53+$C53+$D53)/($B$19+$C$19+$D$19),0) -> 0 | BQ53: 0 | BR53: 0 | BS53: 0 | BT53: 0 | BU53: 0 | BV53: 0 | BW53: 0 | BX53: =IFERROR(AV53*($B53+$C53+$D53)/($B$19+$C$19+$D$19),0) -> 0 | BY53: =IFERROR(AW53*($B53+$C53+$D53)/($B$19+$C$19+$D$19),0) -> 0 | BZ53: =IFERROR(AX53*($B53+$C53+$D53)/($B$19+$C$19+$D$19),0) -> 0 | CA53: =IFERROR(AY53*($B53+$C53+$D53)/($B$19+$C$19+$D$19),0) -> 0 | CB53: =IFERROR(AZ53*($B53+$C53+$D53)/($B$19+$C$19+$D$19),0) -> 0 | CC53: =IFERROR(BA53*($B53+$C53+$D53)/($B$19+$C$19+$D$19),0) -> 0 | CD53: =IFERROR(BB53*($B53+$C53+$D53)/($B$19+$C$19+$D$19),0) -> 0 | CE53: =IFERROR(BC53*($B53+$C53+$D53)/($B$19+$C$19+$D$19),0) -> 0 | CF53: =IFERROR(BD53*($B53+$C53+$D53)/($B$19+$C$19+$D$19),0) -> 0 | CG53: =IFERROR(BE53*($B53+$C53+$D53)/($B$19+$C$19+$D$19),0) -> 0 | CH53: =IFERROR(BF53*($B53+$C53+$D53)/($B$19+$C$19+$D$19),0) -> 0 | CI53: =IFERROR(BG53*($B53+$C53+$D53)/($B$19+$C$19+$D$19),0) -> 0 | CJ53: =IFERROR(BH53*($B53+$C53+$D53)/($B$19+$C$19+$D$19),0) -> 0 | EH53: 0
A54: 54 | B54: 0 | C54: 0 | D54: 0 | F54: 0 | G54: 0 | H54: 0 | I54: 0 | J54: 0 | K54: 0 | L54: 0 | M54: 0 | N54: 1 | O54: 0 | Q54: 0 | R54: 0 | S54: 1 | T54: 0 | U54: 1 | V54: Puna-apilasäilörehu (75%), 1.sato, norm. | W54: 0 | X54: 0 | Y54: kotoinen | Z54: karkearehu | AB54: 25 | AC54: 0 | AD54: 10.4 | AE54: 0 | AK54: 0 | AL54: 0 | AM54: 0 | AN54: 190 | AO54: 440 | AP54: 58.976 | AQ54: 100 | AR54: 110 | AS54: 5 | AT54: 0 | AU54: 100 | AV54: 11.6 | AW54: 2.3 | AX54: 2.5 | AY54: 0.3 | AZ54: 158 | BA54: 38 | BB54: 30 | BC54: 10 | BD54: 0.18 | BL54: 1083 | BM54: 33 | BP54: 0 | BQ54: 0 | BR54: 0 | BS54: 0 | BT54: 0 | BU54: 0 | BV54: 0 | BW54: 0 | BX54: 0 | BY54: 0 | BZ54: 0 | CA54: 0 | CB54: 0 | CC54: 0 | CD54: 0 | CE54: 0 | CF54: 0 | CG54: 0 | CH54: 0 | CI54: 0 | CJ54: 0 | EH54: 0
A55: 55 | B55: 0 | C55: 0 | D55: 0 | F55: 0 | G55: 0 | H55: 0 | I55: 0 | J55: 0 | K55: 0 | L55: 0 | M55: 0 | N55: 1 | O55: 0 | Q55: 0 | R55: 0 | S55: 1 | T55: 0 | U55: 1 | V55: Rehukaalisäilörehu, aikainen korjuu | W55: 0 | X55: 0 | Y55: kotoinen | Z55: karkearehu | AB55: 17 | AC55: 0 | AD55: 10.2 | AE55: 0 | AK55: 0 | AL55: 0 | AM55: 0 | AN55: 160 | AO55: 230 | AP55: 42 | AQ55: 0 | AR55: 100 | AS55: 5 | AV55: 20 | AW55: 4.2 | AX55: 2.9 | AY55: 2.6 | AZ55: 160 | BA55: 95 | BB55: 20 | BC55: 8 | BL55: 1084 | BM55: 84 | BP55: 0 | BQ55: 0 | BR55: 0 | BS55: 0 | BT55: 0 | BU55: 0 | BV55: 0 | BW55: 0 | BX55: 0 | BY55: 0 | BZ55: 0 | CA55: 0 | CB55: 0 | CC55: 0 | CD55: 0 | CE55: 0 | CF55: 0 | CG55: 0 | CH55: 0 | CI55: 0 | CJ55: 0 | EH55: 0
A56: 56 | B56: 0 | C56: 0 | D56: 0 | F56: 0 | G56: 0 | H56: 0 | I56: 0 | J56: 0 | K56: 0 | L56: 0 | M56: 0 | N56: 1 | O56: 0 | Q56: 0 | R56: 0 | S56: 1 | T56: 0 | U56: 1 | V56: Rehurapsi, myöhäinen korjuu | W56: 0 | X56: 0 | Y56: kotoinen | Z56: karkearehu | AB56: 15 | AC56: 0 | AD56: 11.2 | AE56: 0 | AK56: 0 | AL56: 0 | AM56: 0 | AN56: 125 | AO56: 380 | AP56: -3 | AQ56: 0 | AR56: 100 | AS56: 5 | AV56: 20 | AW56: 4.2 | AX56: 2.9 | AY56: 2.6 | AZ56: 160 | BA56: 95 | BB56: 20 | BC56: 8 | BL56: 1085 | BM56: 85 | BP56: 0 | BQ56: 0 | BR56: 0 | BS56: 0 | BT56: 0 | BU56: 0 | BV56: 0 | BW56: 0 | BX56: 0 | BY56: 0 | BZ56: 0 | CA56: 0 | CB56: 0 | CC56: 0 | CD56: 0 | CE56: 0 | CF56: 0 | CG56: 0 | CH56: 0 | CI56: 0 | CJ56: 0 | EH56: 0
A57: 57 | B57: 0 | C57: 0 | D57: 0 | F57: 0 | G57: 0 | H57: 0 | I57: 0 | J57: 0 | K57: 0 | L57: 0 | M57: 0 | N57: 1 | O57: 0 | Q57: 0 | R57: 0 | S57: 1 | T57: 0 | U57: 1 | V57: Sinimailassäilörehu, 1. sato, kuk. alku | W57: 0 | X57: 0 | Y57: kotoinen | Z57: karkearehu | AB57: 23 | AC57: 0 | AD57: 9 | AE57: 0 | AK57: 0 | AL57: 0 | AM57: 0 | AN57: 185 | AO57: 455 | AP57: 76.348 | AQ57: 0 | AR57: 100 | AS57: 5 | AV57: 14 | AW57: 3 | AX57: 2.2 | AY57: 0.6 | AZ57: 190 | BA57: 38 | BB57: 63 | BC57: 7 | BD57: 0.1 | BL57: 2001 | BM57: 86 | BP57: 0 | BQ57: 0 | BR57: 0 | BS57: 0 | BT57: 0 | BU57: 0 | BV57: 0 | BW57: 0 | BX57: 0 | BY57: 0 | BZ57: 0 | CA57: 0 | CB57: 0 | CC57: 0 | CD57: 0 | CE57: 0 | CF57: 0 | CG57: 0 | CH57: 0 | CI57: 0 | CJ57: 0 | EH57: 0
A58: 58 | B58: 0 | C58: 0 | D58: 0 | F58: 0 | G58: 0 | H58: 0 | I58: 0 | J58: 0 | K58: 0 | L58: 0 | M58: 0 | N58: 1 | O58: 0 | Q58: 0 | R58: 0 | S58: 1 | T58: 0 | U58: 1 | V58: Sinimailassäilörehu, 1. sato, lehtiaste | W58: 0 | X58: 0 | Y58: kotoinen | Z58: karkearehu | AB58: 23 | AC58: 0 | AD58: 10.2 | AE58: 0 | AK58: 0 | AL58: 0 | AM58: 0 | AN58: 230 | AO58: 455 | AP58: 103.464 | AQ58: 0 | AR58: 100 | AS58: 5 | AV58: 14 | AW58: 3 | AX58: 2.2 | AY58: 0.6 | AZ58: 190 | BA58: 38 | BB58: 63 | BC58: 7 | BD58: 0.1 | BL58: 2002 | BM58: 87 | BP58: 0 | BQ58: 0 | BR58: 0 | BS58: 0 | BT58: 0 | BU58: 0 | BV58: 0 | BW58: 0 | BX58: 0 | BY58: 0 | BZ58: 0 | CA58: 0 | CB58: 0 | CC58: 0 | CD58: 0 | CE58: 0 | CF58: 0 | CG58: 0 | CH58: 0 | CI58: 0 | CJ58: 0 | EH58: 0
A59: 59 | B59: 0 | C59: 0 | D59: 0 | F59: 0 | G59: 0 | H59: 0 | I59: 0 | J59: 0 | K59: 0 | L59: 0 | M59: 0 | N59: 1 | O59: 0 | Q59: 0 | R59: 0 | S59: 1 | T59: 0 | U59: 1 | V59: Sinimailassäilörehu, 1. sato, nuppuaste | W59: 0 | X59: 0 | Y59: kotoinen | Z59: karkearehu | AB59: 23 | AC59: 0 | AD59: 9.6 | AE59: 0 | AK59: 0 | AL59: 0 | AM59: 0 | AN59: 210 | AO59: 455 | AP59: 92.088 | AQ59: 0 | AR59: 100 | AS59: 5 | AV59: 14 | AW59: 3 | AX59: 2.2 | AY59: 0.6 | AZ59: 190 | BA59: 38 | BB59: 63 | BC59: 7 | BD59: 0.1 | BL59: 2003 | BM59: 88 | BP59: 0 | BQ59: 0 | BR59: 0 | BS59: 0 | BT59: 0 | BU59: 0 | BV59: 0 | BW59: 0 | BX59: 0 | BY59: 0 | BZ59: 0 | CA59: 0 | CB59: 0 | CC59: 0 | CD59: 0 | CE59: 0 | CF59: 0 | CG59: 0 | CH59: 0 | CI59: 0 | CJ59: 0 | EH59: 0
A60: 60 | B60: 0 | C60: 0 | D60: 0 | F60: 0 | G60: 0 | H60: 0 | I60: 0 | J60: 0 | K60: 0 | L60: 0 | M60: 0 | N60: 1 | O60: 0 | Q60: 0 | R60: 0 | S60: 1 | T60: 0 | U60: 1 | V60: Sokerijuurikkaan naatit | W60: 0 | X60: 0 | Y60: kotoinen | Z60: karkearehu | AB60: 13 | AC60: 0 | AD60: 10.4 | AE60: 0 | AK60: 0 | AL60: 0 | AM60: 0 | AN60: 195 | AO60: 280 | AP60: 63.128 | AQ60: 0 | AR60: 100 | AS60: 5 | AV60: 14 | AW60: 2.4 | AX60: 7.3 | AY60: 12.3 | AZ60: 650 | BA60: 250 | BB60: 200 | BC60: 16 | BD60: 0.25 | BH60: 50 | BL60: 2011 | BM60: 34 | BP60: 0 | BQ60: 0 | BR60: 0 | BS60: 0 | BT60: 0 | BU60: 0 | BV60: 0 | BW60: 0 | BX60: 0 | BY60: 0 | BZ60: 0 | CA60: 0 | CB60: 0 | CC60: 0 | CD60: 0 | CE60: 0 | CF60: 0 | CG60: 0 | CH60: 0 | CI60: 0 | CJ60: 0 | EH60: 0
A61: 61 | B61: 0 | C61: 0 | D61: 0 | F61: 0 | G61: 0 | H61: 0 | I61: 0 | J61: 0 | K61: 0 | L61: 0 | M61: 0 | N61: 1 | O61: 0 | Q61: 0 | R61: 0 | S61: 1 | T61: 0 | U61: 1 | V61: Sokerijuurikkaan naattisäilörehu | W61: 0 | X61: 0 | Y61: kotoinen | Z61: karkearehu | AB61: 18 | AC61: 0 | AD61: 9.9 | AE61: 0 | AK61: 0 | AL61: 0 | AM61: 0 | AN61: 190 | AO61: 280 | AP61: 72 | AQ61: 0 | AR61: 100 | AS61: 5 | AV61: 17 | AW61: 2.1 | AX61: 7.3 | AY61: 9 | AZ61: 840 | BA61: 300 | BB61: 250 | BC61: 18 | BL61: 2012 | BM61: 35 | BP61: 0 | BQ61: 0 | BR61: 0 | BS61: 0 | BT61: 0 | BU61: 0 | BV61: 0 | BW61: 0 | BX61: 0 | BY61: 0 | BZ61: 0 | CA61: 0 | CB61: 0 | CC61: 0 | CD61: 0 | CE61: 0 | CF61: 0 | CG61: 0 | CH61: 0 | CI61: 0 | CJ61: 0 | EH61: 0
A62: 62 | B62: 0 | C62: 0 | D62: 0 | F62: 0 | G62: 0 | H62: 0 | I62: 0 | J62: 0 | K62: 0 | L62: 0 | M62: 0 | N62: 1 | O62: 0 | Q62: 0 | R62: 0 | S62: 1 | T62: 0 | U62: 1 | V62: Testirehu Kaurakokoviljasäilörehu | W62: 0 | X62: 0 | Y62: kotoinen | Z62: karkearehu | AB62: 39 | AC62: 0 | AD62: 7.8 | AE62: 0 | AK62: 0 | AL62: 0 | AM62: 0 | AN62: 7 | AO62: 575 | AP62: -7 | AQ62: 165 | AR62: 94 | AS62: 4 | AT62: 110 | AU62: 55 | AV62: 3.1 | AW62: 2.2 | AX62: 1.3 | AY62: 0.2 | AZ62: 110 | BA62: 33 | BB62: 25 | BC62: 7 | BD62: 0.2 | BE62: 0.2 | BG62: 0.35 | BH62: 20 | BJ62: 40 | BL62: 1002 | BM62: 36 | BP62: 0 | BQ62: 0 | BR62: 0 | BS62: 0 | BT62: 0 | BU62: 0 | BV62: 0 | BW62: 0 | BX62: 0 | BY62: 0 | BZ62: 0 | CA62: 0 | CB62: 0 | CC62: 0 | CD62: 0 | CE62: 0 | CF62: 0 | CG62: 0 | CH62: 0 | CI62: 0 | CJ62: 0 | EH62: 0
A63: 63 | B63: 0 | C63: 30 | D63: 0 | F63: 2.91 | G63: 0 | H63: 66.66666667 | I63: 1.2 | J63: 30 | K63: 90.3 | L63: 4.332 | M63: 0.3806091994 | N63: 1 | O63: 0.3 | P63: 30 | Q63: 0.3508347584 | R63: 66.66666667 | S63: 1 | T63: 1333.333333 | U63: 1 | V63: Testirehu Ohrakokoviljasäilörehu | W63: 6666.666667 | X63: 1333.333333 | Y63: kotoinen | Z63: karkearehu | AB63: 45 | AC63: 0 | AD63: 9.7 | AE63: 0 | AJ63: 6.5 | AK63: 14.44 | AL63: 1.49 | AM63: 0 | AN63: 100 | AO63: 496 | AP63: -12 | AQ63: 301 | AR63: 118 | AS63: 4 | AT63: 180 | AU63: 121 | AV63: 4.8 | AW63: 2.6 | AX63: 1.3 | AY63: 0.4 | AZ63: 70 | BA63: 43 | BB63: 28 | BC63: 5 | BD63: 0.2 | BE63: 0.2 | BG63: 0.35 | BH63: 20 | BL63: 3020 | BM63: 37 | BP63: 30 | BQ63: 148.8 | BR63: -3.6 | BS63: 90.3 | BT63: 59 | BU63: 1.2 | BV63: 54 | BW63: 36.3 | BX63: 1.44 | BY63: 0.78 | BZ63: 0.39 | CA63: 0.12 | CB63: 21 | CC63: 12.9 | CD63: 8.4 | CE63: 1.5 | CF63: 0.06 | CG63: 0.06 | CH63: 0 | CI63: 0.105 | CJ63: 6 | EH63: 0
A64: 64 | B64: 0 | C64: 0 | D64: 0 | F64: 0 | G64: 0 | H64: 0 | I64: 0 | J64: 0 | K64: 0 | L64: 0 | M64: 0 | N64: 1 | O64: 0 | Q64: 0 | R64: 0 | S64: 1 | T64: 0 | U64: 1 | V64: Testirehu, Nurmisäilörehu 1. sato | W64: 0 | X64: 0 | Y64: kotoinen | Z64: karkearehu | AB64: 51 | AC64: 0 | AD64: 11.2 | AE64: 0 | AK64: 0 | AL64: 0 | AM64: 0 | AN64: 132 | AO64: 537 | AP64: 8 | AQ64: 173 | AR64: 110 | AS64: 3 | AT64: 5 | AU64: 168 | AV64: 5.9 | AW64: 3 | AX64: 1.8 | AY64: 0.2 | AZ64: 180 | BA64: 61 | BB64: 31 | BC64: 7 | BD64: 0.3 | BE64: 0.3 | BG64: 0.35 | BH64: 20 | BL64: 1003 | BM64: 38 | BP64: 0 | BQ64: 0 | BR64: 0 | BS64: 0 | BT64: 0 | BU64: 0 | BV64: 0 | BW64: 0 | BX64: 0 | BY64: 0 | BZ64: 0 | CA64: 0 | CB64: 0 | CC64: 0 | CD64: 0 | CE64: 0 | CF64: 0 | CG64: 0 | CH64: 0 | CI64: 0 | CJ64: 0 | EH64: 0
A65: 65 | B65: 0 | C65: 0 | D65: 0 | F65: 0 | G65: 0 | H65: 0 | I65: 0 | J65: 0 | K65: 0 | L65: 0 | M65: 0 | N65: 1 | O65: 0 | Q65: 0 | R65: 0 | S65: 1 | T65: 0 | U65: 1 | V65: Testirehu, Nurmisäilörehu 2. sato | W65: 0 | X65: 0 | Y65: kotoinen | Z65: karkearehu | AB65: 40 | AC65: 0 | AD65: 10.4 | AE65: 0 | AK65: 0 | AL65: 0 | AM65: 0 | AN65: 167 | AO65: 564 | AP65: 47 | AQ65: 103 | AR65: 100 | AS65: 2 | AT65: 3 | AU65: 100 | AV65: 3.8 | AW65: 3.4 | AX65: 1.8 | AY65: 0.2 | AZ65: 180 | BA65: 61 | BB65: 31 | BC65: 7 | BD65: 0.3 | BE65: 0.3 | BG65: 0.35 | BH65: 20 | BL65: 3021 | BM65: 39 | BP65: 0 | BQ65: 0 | BR65: 0 | BS65: 0 | BT65: 0 | BU65: 0 | BV65: 0 | BW65: 0 | BX65: 0 | BY65: 0 | BZ65: 0 | CA65: 0 | CB65: 0 | CC65: 0 | CD65: 0 | CE65: 0 | CF65: 0 | CG65: 0 | CH65: 0 | CI65: 0 | CJ65: 0 | EH65: 0
A66: 66 | B66: 0 | C66: 30 | D66: 0 | F66: 3.45 | G66: 0 | H66: 76.92307692 | I66: 3 | J66: 50.1 | K66: 11.7 | L66: 5.769 | M66: 0.5057496489 | N66: 1 | O66: 0.3 | P66: 30 | Q66: 0.4048093366 | R66: 76.92307692 | S66: =IF(Z66="karkearehu",1,0) -> 1 | T66: =S66*X66 -> 1538.461538 | U66: 1 | V66: Testirehu, Nurmisäilörehu, tuore 1. sato | W66: 7692.307692 | X66: 1538.461538 | Y66: kotoinen | Z66: karkearehu | AB66: 39 | AC66: 0 | AD66: 11.5 | AE66: 0 | AG66: 200 | AH66: =AG66*AB66/100 -> 78 | AJ66: 7.5 | AK66: 19.23 | AL66: 1.67 | AM66: 0 | AN66: 167 | AO66: 567 | AP66: 36 | AQ66: 39 | AR66: 105 | AS66: 10 | AT66: 5 | AU66: 34 | AV66: 5.8 | AW66: 3.2 | AX66: 1.8 | AY66: 0.2 | AZ66: 180 | BA66: 61 | BB66: 31 | BC66: 7 | BD66: 0.3 | BE66: 0.3 | BG66: 0.35 | BH66: 20 | BL66: 3031 | BM66: 40 | BP66: 50.1 | BQ66: 170.1 | BR66: 10.8 | BS66: 11.7 | BT66: 52.5 | BU66: 3 | BV66: 1.5 | BW66: 10.2 | BX66: 1.74 | BY66: 0.96 | BZ66: 0.54 | CA66: 0.06 | CB66: 54 | CC66: 18.3 | CD66: 9.3 | CE66: 2.1 | CF66: 0.09 | CG66: 0.09 | CH66: 0 | CI66: 0.105 | CJ66: 6 | EH66: 0
A67: 67 | B67: 0 | C67: 0 | D67: 0 | F67: 0 | G67: 0 | H67: 0 | I67: 0 | J67: 0 | K67: 0 | L67: 0 | M67: 0 | N67: 1 | O67: 0 | Q67: 0 | R67: 0 | S67: =IF(Z67="karkearehu",1,0) -> 1 | T67: =S67*X67 -> 0 | U67: 1 | V67: Testirehu, Nurmisäilörehu, tuore 2. sato | W67: 0 | X67: 0 | Y67: kotoinen | Z67: karkearehu | AB67: 19 | AC67: 0 | AD67: 9.5 | AE67: 0 | AK67: 0 | AL67: 0 | AM67: 0 | AN67: 151 | AO67: 626 | AP67: 41 | AQ67: 35 | AR67: 82 | AS67: 33 | AT67: 9 | AU67: 26 | AV67: 3.7 | AW67: 2.2 | AX67: 1.8 | AY67: 0.2 | AZ67: 180 | BA67: 61 | BB67: 31 | BC67: 7 | BD67: 0.3 | BE67: 0.3 | BG67: 0.35 | BH67: 20 | BK67: Tämä on Arton testirehu. | BL67: 3032 | BM67: 42 | BP67: 0 | BQ67: 0 | BR67: 0 | BS67: 0 | BT67: 0 | BU67: 0 | BV67: 0 | BW67: 0 | BX67: 0 | BY67: 0 | BZ67: 0 | CA67: 0 | CB67: 0 | CC67: 0 | CD67: 0 | CE67: 0 | CF67: 0 | CG67: 0 | CH67: 0 | CI67: 0 | CJ67: 0 | EH67: 0
A68: 68 | B68: 0 | C68: 0 | D68: 0 | F68: 0 | G68: 0 | H68: 0 | I68: 0 | J68: 0 | K68: 0 | L68: 0 | M68: 0 | N68: 1 | O68: 0 | Q68: 0 | R68: 0 | S68: 1 | T68: 0 | U68: 1 | V68: Vehnän ja rukiin olki | W68: 0 | X68: 0 | Y68: kotoinen | Z68: karkearehu | AB68: 85 | AC68: 0 | AD68: 5.3 | AE68: 0 | AK68: 0 | AL68: 0 | AM68: 0 | AN68: 30 | AP68: -34.12 | AQ68: 0 | AT68: 0 | AV68: 2.3 | AW68: 1 | AX68: 1 | AY68: 0.2 | AZ68: 70 | BA68: 70 | BB68: 25 | BC68: 4 | BD68: 0.1 | BL68: 3075 | BM68: 43 | BP68: 0 | BQ68: 0 | BR68: 0 | BS68: 0 | BT68: 0 | BU68: 0 | BV68: 0 | BW68: 0 | BX68: 0 | BY68: 0 | BZ68: 0 | CA68: 0 | CB68: 0 | CC68: 0 | CD68: 0 | CE68: 0 | CF68: 0 | CG68: 0 | CH68: 0 | CI68: 0 | CJ68: 0 | EH68: 0
A69: 69 | B69: 0 | C69: 0 | D69: 0 | F69: 0 | G69: 0 | H69: 0 | I69: 0 | J69: 0 | K69: 0 | L69: 0 | M69: 0 | N69: 1 | O69: 0 | Q69: 0 | R69: 0 | S69: 1 | T69: 0 | U69: 1 | V69: Vihantaohrasäilörehu | W69: 0 | X69: 0 | Y69: kotoinen | Z69: karkearehu | AB69: 33 | AC69: 0 | AD69: 10.4368 | AE69: 0 | AK69: 0 | AL69: 0 | AM69: 0 | AN69: 155 | AO69: 400 | AP69: 30 | AQ69: 70 | AT69: 50 | AU69: 20 | AV69: 5.6 | AW69: 3.5 | AX69: 1.6 | AY69: 1.1 | AZ69: 70 | BA69: 41 | BB69: 60 | BC69: 7 | BE69: 0.03 | BL69: 2021 | BM69: 44 | BP69: =IFERROR(AN69*($B69+$C69+$D69)/($B$19+$C$19+$D$19),0) -> 0 | BQ69: 0 | BR69: 0 | BS69: 0 | BT69: 0 | BU69: 0 | BV69: 0 | BW69: 0 | BX69: 0 | BY69: 0 | BZ69: 0 | CA69: 0 | CB69: 0 | CC69: 0 | CD69: 0 | CE69: 0 | CF69: 0 | CG69: 0 | CH69: 0 | CI69: 0 | CJ69: 0 | EH69: 0
A70: 70 | B70: 0 | C70: 0 | D70: 0 | F70: 0 | G70: 0 | H70: 0 | I70: 0 | J70: 0 | K70: 0 | L70: 0 | M70: 0 | N70: 1 | O70: 0 | Q70: 0 | R70: 0 | S70: 1 | T70: 0 | U70: 1 | V70: Vuohenhernesäilörehu, kevätsato | W70: 0 | X70: 0 | Y70: kotoinen | Z70: karkearehu | AB70: 16 | AC70: 0 | AD70: 10.1 | AE70: 0 | AK70: 0 | AL70: 0 | AM70: 0 | AN70: 230 | AO70: 480 | AP70: 105 | AQ70: 0 | AR70: 100 | AS70: 5 | AV70: 8 | AW70: 3 | AX70: 2.2 | AZ70: 100 | BA70: 40 | BB70: 30 | BC70: 12 | BL70: 3076 | BM70: 89 | BP70: 0 | BQ70: 0 | BR70: 0 | BS70: 0 | BT70: 0 | BU70: 0 | BV70: 0 | BW70: 0 | BX70: 0 | BY70: 0 | BZ70: 0 | CA70: 0 | CB70: 0 | CC70: 0 | CD70: 0 | CE70: 0 | CF70: 0 | CG70: 0 | CH70: 0 | CI70: 0 | CJ70: 0 | EH70: 0
A71: 71 | B71: 0 | C71: 0 | D71: 0 | F71: 0 | G71: 0 | H71: 0 | I71: 0 | J71: 0 | K71: 0 | L71: 0 | M71: 0 | N71: 1 | O71: 0 | Q71: 0 | R71: 0 | S71: 1 | T71: 0 | U71: 1 | V71: Vuohenhernesäilörehu, syyssato | W71: 0 | X71: 0 | Y71: kotoinen | Z71: karkearehu | AB71: 23 | AC71: 0 | AD71: 9 | AE71: 0 | AK71: 0 | AL71: 0 | AM71: 0 | AN71: 177 | AO71: 480 | AP71: 69 | AQ71: 0 | AR71: 100 | AS71: 5 | AV71: 8 | AW71: 3 | AX71: 2.2 | AZ71: 100 | BA71: 40 | BB71: 30 | BC71: 12 | BL71: 2022 | BM71: 45 | BP71: 0 | BQ71: 0 | BR71: 0 | BS71: 0 | BT71: 0 | BU71: 0 | BV71: 0 | BW71: 0 | BX71: 0 | BY71: 0 | BZ71: 0 | CA71: 0 | CB71: 0 | CC71: 0 | CD71: 0 | CE71: 0 | CF71: 0 | CG71: 0 | CH71: 0 | CI71: 0 | CJ71: 0 | EH71: 0
A72: 72 | B72: 0 | C72: 0 | D72: 0 | F72: 0 | G72: 0 | H72: 0 | I72: 0 | J72: 0 | K72: 0 | L72: 0 | M72: 0 | N72: 5 | O72: 0 | Q72: 0 | R72: 0 | S72: 0 | T72: 0 | U72: 1 | V72: Farmarin Biotiinikivennäinen | W72: 0 | X72: 0 | Y72: osto | Z72: kivennäisseos | AB72: 89 | AC72: 0 | AD72: 5 | AE72: 0 | AK72: 0 | AL72: 0 | AM72: 0 | AN72: 9 | AO72: 41 | AP72: 14 | AQ72: 10 | AS72: 0 | AT72: 10 | AU72: 0 | AV72: 245 | AW72: 0 | AX72: 84 | AY72: 118 | AZ72: 3674 | BA72: 1826 | BB72: 3022 | BC72: 398 | BD72: 11 | BE72: 17 | BF72: 90 | BH72: 109551 | BI72: 36517 | BJ72: 730 | BP72: 0 | BQ72: 0 | BR72: 0 | BS72: 0 | BT72: 0 | BU72: 0 | BV72: 0 | BW72: 0 | BX72: 0 | BY72: 0 | BZ72: 0 | CA72: 0 | CB72: 0 | CC72: 0 | CD72: 0 | CE72: 0 | CF72: 0 | CG72: 0 | CH72: 0 | CI72: 0 | CJ72: 0 | EH72: 0
A73: 73 | B73: 0 | C73: 0 | D73: 0 | F73: 0 | G73: 0 | H73: 0 | I73: 0 | J73: 0 | K73: 0 | L73: 0 | M73: 0 | N73: 5 | O73: 0 | Q73: 0 | R73: 0 | S73: 0 | T73: 0 | U73: 1 | V73: Farmarin Kasvukivennäinen | W73: 0 | X73: 0 | Y73: osto | Z73: kivennäisseos | AB73: 89 | AC73: 0 | AD73: 5 | AE73: 0 | AK73: 0 | AL73: 0 | AM73: 0 | AN73: 9 | AO73: 41 | AP73: 14 | AQ73: 10 | AS73: 0 | AT73: 10 | AU73: 0 | AV73: 253 | AW73: 11 | AX73: 56 | AY73: 118 | AZ73: 2713 | BA73: 1438 | BB73: 2427 | BC73: 315 | BD73: 8 | BE73: 34 | BF73: 72 | BH73: 67416 | BI73: 22472 | BJ73: 1685 | BP73: 0 | BQ73: 0 | BR73: 0 | BS73: 0 | BT73: 0 | BU73: 0 | BV73: 0 | BW73: 0 | BX73: 0 | BY73: 0 | BZ73: 0 | CA73: 0 | CB73: 0 | CC73: 0 | CD73: 0 | CE73: 0 | CF73: 0 | CG73: 0 | CH73: 0 | CI73: 0 | CJ73: 0 | EH73: 0
A74: 74 | B74: 0 | C74: 0 | D74: 0 | F74: 0 | G74: 0 | H74: 0 | I74: 0 | J74: 0 | K74: 0 | L74: 0 | M74: 0 | N74: 5 | O74: 0 | Q74: 0 | R74: 0 | S74: 0 | T74: 0 | U74: 1 | V74: Farmarin Pihattokivennäinen | W74: 0 | X74: 0 | Y74: osto | Z74: kivennäisseos | AB74: 89 | AC74: 0 | AD74: 5 | AE74: 0 | AK74: 0 | AL74: 0 | AM74: 0 | AN74: 9 | AO74: 41 | AP74: 14 | AQ74: 10 | AS74: 0 | AT74: 10 | AU74: 0 | AV74: 247 | AW74: 0 | AX74: 79 | AY74: 118 | AZ74: 3483 | BA74: 1528 | BB74: 2876 | BC74: 360 | BD74: 11 | BE74: 18 | BF74: 90 | BH74: 84270 | BI74: 28090 | BJ74: 562 | BP74: 0 | BQ74: 0 | BR74: 0 | BS74: 0 | BT74: 0 | BU74: 0 | BV74: 0 | BW74: 0 | BX74: 0 | BY74: 0 | BZ74: 0 | CA74: 0 | CB74: 0 | CC74: 0 | CD74: 0 | CE74: 0 | CF74: 0 | CG74: 0 | CH74: 0 | CI74: 0 | CJ74: 0 | EH74: 0
A75: 75 | B75: 0 | C75: 0 | D75: 0 | F75: 0 | G75: 0 | H75: 0 | I75: 0 | J75: 0 | K75: 0 | L75: 0 | M75: 0 | N75: 5 | O75: 0 | Q75: 0 | R75: 0 | S75: 0 | T75: 0 | U75: 1 | V75: Farmarin Seleenikivennäinen | W75: 0 | X75: 0 | Y75: osto | Z75: kivennäisseos | AB75: 89 | AC75: 0 | AD75: 5 | AE75: 0 | AK75: 0 | AL75: 0 | AM75: 0 | AN75: 9 | AO75: 41 | AP75: 14 | AQ75: 10 | AS75: 0 | AT75: 10 | AU75: 0 | AV75: 213 | AW75: 11 | AX75: 90 | AY75: 129 | AZ75: 3899 | BA75: 2899 | BB75: 5067 | BC75: 652 | BD75: 18 | BE75: 45 | BF75: 146 | BH75: 168539 | BI75: 56180 | BJ75: 1124 | BM75: 91 | BP75: 0 | BQ75: 0 | BR75: 0 | BS75: 0 | BT75: 0 | BU75: 0 | BV75: 0 | BW75: 0 | BX75: 0 | BY75: 0 | BZ75: 0 | CA75: 0 | CB75: 0 | CC75: 0 | CD75: 0 | CE75: 0 | CF75: 0 | CG75: 0 | CH75: 0 | CI75: 0 | CJ75: 0 | EH75: 0
A76: 76 | B76: 0 | C76: 0 | D76: 0 | F76: 0 | G76: 0 | H76: 0 | I76: 0 | J76: 0 | K76: 0 | L76: 0 | M76: 0 | N76: 5 | O76: 0 | Q76: 0 | R76: 0 | S76: 0 | T76: 0 | U76: 1 | V76: Farmarin Seoskivennäinen | W76: 0 | X76: 0 | Y76: osto | Z76: kivennäisseos | AB76: 89 | AC76: 0 | AD76: 5 | AE76: 0 | AK76: 0 | AL76: 0 | AM76: 0 | AN76: 9 | AO76: 41 | AP76: 14 | AQ76: 10 | AS76: 0 | AT76: 10 | AU76: 0 | AV76: 307 | AW76: 0 | AX76: 34 | AY76: 90 | AZ76: 2022 | BA76: 1084 | BB76: 1787 | BC76: 225 | BD76: 7 | BE76: 11 | BF76: 54 | BH76: 50562 | BI76: 16854 | BJ76: 337 | BM76: 92 | BP76: 0 | BQ76: 0 | BR76: 0 | BS76: 0 | BT76: 0 | BU76: 0 | BV76: 0 | BW76: 0 | BX76: 0 | BY76: 0 | BZ76: 0 | CA76: 0 | CB76: 0 | CC76: 0 | CD76: 0 | CE76: 0 | CF76: 0 | CG76: 0 | CH76: 0 | CI76: 0 | CJ76: 0 | EH76: 0
A77: 77 | B77: 0 | C77: 0 | D77: 0 | F77: 0 | G77: 0 | H77: 0 | I77: 0 | J77: 0 | K77: 0 | L77: 0 | M77: 0 | N77: 5 | O77: 0 | Q77: 0 | R77: 0 | S77: 0 | T77: 0 | U77: 1 | V77: Kasvu Namino, Hankkija | W77: 0 | X77: 0 | Y77: osto | Z77: kivennäisseos | AB77: 89 | AC77: 0 | AD77: 5 | AE77: 0 | AK77: 0 | AL77: 0 | AM77: 0 | AN77: 9 | AO77: 41 | AP77: 14 | AQ77: 10 | AS77: 0 | AT77: 10 | AU77: 0 | AV77: 164 | AW77: 11 | AX77: 34 | AY77: 52 | AZ77: 1719 | BA77: 1910 | BB77: 3596 | BC77: 449 | BD77: 13 | BE77: 21 | BF77: 112 | BH77: 84270 | BI77: 28090 | BJ77: 562 | BM77: 93 | BP77: 0 | BQ77: 0 | BR77: 0 | BS77: 0 | BT77: 0 | BU77: 0 | BV77: 0 | BW77: 0 | BX77: 0 | BY77: 0 | BZ77: 0 | CA77: 0 | CB77: 0 | CC77: 0 | CD77: 0 | CE77: 0 | CF77: 0 | CG77: 0 | CH77: 0 | CI77: 0 | CJ77: 0 | EH77: 0
A78: 78 | B78: 0 | C78: 0 | D78: 0 | F78: 0 | G78: 0 | H78: 0 | I78: 0 | J78: 0 | K78: 0 | L78: 0 | M78: 0 | N78: 5 | O78: 0 | Q78: 0 | R78: 0 | S78: 0 | T78: 0 | U78: 1 | V78: Kasvuape Biotiini, A-Rehu | W78: 0 | X78: 0 | Y78: osto | Z78: kivennäisseos | AB78: 89 | AC78: 0 | AD78: 0.8 | AE78: 0 | AK78: 0 | AL78: 0 | AM78: 0 | AN78: 4.6 | AO78: 7 | AP78: -2 | AQ78: 1 | AS78: 0 | AT78: 1 | AU78: 0 | AV78: 283 | AW78: 0 | AX78: 39 | AY78: 79 | AZ78: 2959 | BA78: 970 | BB78: 1601 | BC78: 279 | BD78: 9 | BE78: 10 | BF78: 89 | BH78: 168539 | BI78: 50562 | BJ78: 506 | BM78: 94 | BP78: 0 | BQ78: 0 | BR78: 0 | BS78: 0 | BT78: 0 | BU78: 0 | BV78: 0 | BW78: 0 | BX78: 0 | BY78: 0 | BZ78: 0 | CA78: 0 | CB78: 0 | CC78: 0 | CD78: 0 | CE78: 0 | CF78: 0 | CG78: 0 | CH78: 0 | CI78: 0 | CJ78: 0 | EH78: 0
A79: 79 | B79: 0 | C79: 0 | D79: 0 | F79: 0 | G79: 0 | H79: 0 | I79: 0 | J79: 0 | K79: 0 | L79: 0 | M79: 0 | N79: 5 | O79: 0 | Q79: 0 | R79: 0 | S79: 0 | T79: 0 | U79: 1 | V79: Kasvuape E-Hiven, A-Rehu | W79: 0 | X79: 0 | Y79: osto | Z79: kivennäisseos | AB79: 89 | AC79: 0 | AD79: 0.8 | AE79: 0 | AK79: 0 | AL79: 0 | AM79: 0 | AN79: 4.6 | AO79: 7 | AP79: -2 | AQ79: 1 | AS79: 0 | AT79: 1 | AU79: 0 | AV79: 292 | AW79: 0 | AX79: 39 | AY79: 79 | AZ79: 2959 | BA79: 1616 | BB79: 2669 | BC79: 464 | BD79: 16 | BE79: 17 | BF79: 147 | BH79: 280899 | BI79: 84270 | BJ79: 1348 | BM79: 102 | BP79: 0 | BQ79: 0 | BR79: 0 | BS79: 0 | BT79: 0 | BU79: 0 | BV79: 0 | BW79: 0 | BX79: 0 | BY79: 0 | BZ79: 0 | CA79: 0 | CB79: 0 | CC79: 0 | CD79: 0 | CE79: 0 | CF79: 0 | CG79: 0 | CH79: 0 | CI79: 0 | CJ79: 0 | EH79: 0
A80: 80 | B80: 0 | C80: 0 | D80: 2 | F80: 0.016 | G80: 0 | H80: 0 | I80: 0 | J80: 0.092 | K80: 0.02 | L80: 0.8988 | M80: 0.07890449438 | N80: 5 | O80: 0.02 | P80: 2 | Q80: 0.01182589073 | R80: 2.247191011 | S80: 0 | T80: 0 | U80: 1 | V80: KasvuApeKivennäinen, A-Rehu | W80: 224.7191011 | X80: 44.94382022 | Y80: osto | Z80: kivennäisseos | AB80: 89 | AC80: 0 | AD80: 0.8 | AE80: 0 | AG80: 50 | AH80: =AG80*AB80/100 -> 44.5 | AJ80: 40 | AK80: 44.94 | AL80: 56.18 | AM80: 0 | AN80: 4.6 | AO80: 7 | AP80: -2 | AQ80: 1 | AS80: 0 | AT80: 1 | AU80: 0 | AV80: 292 | AW80: 0 | AX80: 39 | AY80: 79 | AZ80: 2959 | BA80: 970 | BB80: 1601 | BC80: 279 | BD80: 9 | BE80: 10 | BF80: 89 | BH80: 168539 | BI80: 50562 | BJ80: 506 | BM80: 95 | BP80: 0.092 | BQ80: 0.14 | BR80: -0.04 | BS80: 0.02 | BT80: 0 | BU80: 0 | BV80: 0.02 | BW80: 0 | BX80: 5.84 | BY80: 0 | BZ80: 0.78 | CA80: 1.58 | CB80: 59.18 | CC80: 19.4 | CD80: 32.02 | CE80: 5.58 | CF80: 0.18 | CG80: 0.2 | CH80: 1.78 | CI80: 0 | CJ80: 3370.78 | EH80: 0
A81: 81 | B81: 0 | C81: 0 | D81: 0 | F81: 0 | G81: 0 | H81: 0 | I81: 0 | J81: 0 | K81: 0 | L81: 0 | M81: 0 | N81: 5 | O81: 0 | Q81: 0 | R81: 0 | S81: 0 | T81: 0 | U81: 1 | V81: Kinnusen Mylly, Kalsium-Tähti | W81: 0 | X81: 0 | Y81: osto | Z81: kivennäisseos | AB81: 89 | AC81: 0 | AD81: 6 | AE81: 0 | AK81: 0 | AL81: 0 | AM81: 0 | AN81: 7.7 | AO81: 40 | AP81: 7 | AQ81: 10 | AS81: 0 | AT81: 10 | AU81: 0 | AV81: 135 | AW81: 1 | AX81: 28 | AY81: 56 | AZ81: 2959 | BA81: 1124 | BB81: 1966 | BC81: 365 | BD81: 34 | BE81: 30 | BF81: 101 | BH81: 185393 | BI81: 56180 | BJ81: 607 | BM81: 97 | BP81: 0 | BQ81: 0 | BR81: 0 | BS81: 0 | BT81: 0 | BU81: 0 | BV81: 0 | BW81: 0 | BX81: 0 | BY81: 0 | BZ81: 0 | CA81: 0 | CB81: 0 | CC81: 0 | CD81: 0 | CE81: 0 | CF81: 0 | CG81: 0 | CH81: 0 | CI81: 0 | CJ81: 0 | EH81: 0
A82: 82 | B82: 0 | C82: 0 | D82: 0 | F82: 0 | G82: 0 | H82: 0 | I82: 0 | J82: 0 | K82: 0 | L82: 0 | M82: 0 | N82: 5 | O82: 0 | Q82: 0 | R82: 0 | S82: 0 | T82: 0 | U82: 1 | V82: Kinnusen Mylly, Tähtikasvu Täyskiven | W82: 0 | X82: 0 | Y82: osto | Z82: kivennäisseos | AB82: 89 | AC82: 0 | AD82: 5 | AE82: 0 | AK82: 0 | AL82: 0 | AM82: 0 | AN82: 7.5 | AO82: 40 | AP82: 7 | AQ82: 10 | AS82: 0 | AT82: 10 | AU82: 0 | AV82: 292 | AW82: 0 | AX82: 39 | AY82: 73 | AZ82: 2959 | BA82: 1124 | BB82: 1910 | BC82: 337 | BD82: 31 | BE82: 33 | BF82: 101 | BH82: 179775 | BI82: 56180 | BJ82: 607 | BM82: 98 | BP82: 0 | BQ82: 0 | BR82: 0 | BS82: 0 | BT82: 0 | BU82: 0 | BV82: 0 | BW82: 0 | BX82: 0 | BY82: 0 | BZ82: 0 | CA82: 0 | CB82: 0 | CC82: 0 | CD82: 0 | CE82: 0 | CF82: 0 | CG82: 0 | CH82: 0 | CI82: 0 | CJ82: 0 | EH82: 0
A83: 83 | B83: 0 | C83: 0 | D83: 0 | F83: 0 | G83: 0 | H83: 0 | I83: 0 | J83: 0 | K83: 0 | L83: 0 | M83: 0 | N83: 5 | O83: 0 | Q83: 0 | R83: 0 | S83: 0 | T83: 0 | U83: 1 | V83: Seleeni Hertta Muro, Hankkija | W83: 0 | X83: 0 | Y83: osto | Z83: kivennäisseos | AB83: 89 | AC83: 0 | AD83: 5 | AE83: 0 | AK83: 0 | AL83: 0 | AM83: 0 | AN83: 9 | AO83: 41 | AP83: 14 | AQ83: 10 | AS83: 0 | AT83: 10 | AU83: 0 | AV83: 236 | AW83: 17 | AX83: 79 | AY83: 90 | AZ83: 3202 | BA83: 2730 | BB83: 4449 | BC83: 607 | BD83: 21 | BE83: 34 | BF83: 140 | BH83: 134831 | BI83: 89888 | BJ83: 899 | BL83: 1014 | BM83: 48 | BP83: 0 | BQ83: 0 | BR83: 0 | BS83: 0 | BT83: 0 | BU83: 0 | BV83: 0 | BW83: 0 | BX83: 0 | BY83: 0 | BZ83: 0 | CA83: 0 | CB83: 0 | CC83: 0 | CD83: 0 | CE83: 0 | CF83: 0 | CG83: 0 | CH83: 0 | CI83: 0 | CJ83: 0 | EH83: 0
A84: 84 | B84: 0 | C84: 0 | D84: 0 | F84: 0 | G84: 0 | H84: 0 | I84: 0 | J84: 0 | K84: 0 | L84: 0 | M84: 0 | N84: 5 | O84: 0 | Q84: 0 | R84: 0 | S84: 0 | T84: 0 | U84: 1 | V84: Seleeni Hertta Muro, Hankkija | W84: 0 | X84: 0 | Y84: osto | Z84: kivennäisseos | AB84: 89 | AC84: 0 | AD84: 5 | AE84: 0 | AK84: 0 | AL84: 0 | AM84: 0 | AN84: 9 | AO84: 41 | AP84: 14 | AQ84: 10 | AS84: 0 | AT84: 10 | AU84: 0 | AV84: 205 | AW84: 15 | AX84: 70 | AY84: 80 | BA84: 2430 | BB84: 3960 | BC84: 540 | BE84: 30 | BF84: 125 | BH84: 120000 | BI84: 800 | BJ84: 80000 | BL84: 1014 | BM84: 99 | BP84: 0 | BQ84: 0 | BR84: 0 | BS84: 0 | BT84: 0 | BU84: 0 | BV84: 0 | BW84: 0 | BX84: 0 | BY84: 0 | BZ84: 0 | CA84: 0 | CB84: 0 | CC84: 0 | CD84: 0 | CE84: 0 | CF84: 0 | CG84: 0 | CH84: 0 | CI84: 0 | CJ84: 0 | EH84: 0
A85: 85 | B85: =IF(N85=3,P85,IF(N85=4,P85,0)) -> 0 | C85: =IF(N85=1,P85,IF(N85=2,P85,0)) -> 0 | D85: =IF(N85=5,P85,0) -> 0 | F85: =IFERROR(AD85*U85*(B85+C85+D85)/(B$19+C$19+D$19),0) -> 0 | G85: 0 | H85: 0 | I85: =IFERROR(AS85*U85*C85/(B$19+C$19+D$19),0) -> 0 | J85: =IFERROR(AN85*U85*(B85+C85+D85)/($B$19+$C$19+$D$19),0) -> 0 | K85: =IFERROR(AQ85*U85*(B85+C85+D85)/($B$19+C$19+D$19),0) -> 0 | L85: =IFERROR(AK85*U85*(B85+C85+D85)/(B$19+C$19+D$19),0) -> 0 | M85: =AL85*F85/F$19 -> 0 | N85: =IF(AND(Y85="kotoinen",Z85="karkearehu"),1,IF(AND(Y85="osto",Z85="karkearehu"),2,IF(AND(Y85="kotoinen",Z85="väkirehu"),3,IF(AND(Y85="osto",Z85="väkirehu"),4,IF(Z85="kivennäisseos",5,0))))) -> 5 | O85: =IFERROR(P85/F$18,0) -> 0 | P85: 0 | Q85: =R85/R$19 -> 0 | R85: =IFERROR(P85/AB85*100,0) -> 0 | S85: 0 | T85: 0 | U85: 1 | V85: Tähti-Seoskivennäinen, Kinnusen Mylly | W85: =IFERROR(Q85*W$8,0) -> 0 | X85: =IFERROR(W85*X$7/W$7,0) -> 0 | Y85: osto | Z85: kivennäisseos | AB85: 89 | AC85: =AB85/100*AA85 -> 0 | AD85: 5 | AE85: =AC85*AD85 -> 0 | AK85: =IF(AB85<>0,ROUND(AJ85/(AB85/100),2),0) -> 0 | AL85: =IF(AD85<>0,ROUND(AK85/AD85,2),0) -> 0 | AM85: =AA85*AJ85/100 -> 0 | AN85: 9 | AO85: 40 | AP85: 14 | AQ85: =AT85+AU85 -> 10 | AS85: 0 | AT85: 10 | AU85: 0 | AV85: 130 | AW85: 0 | AX85: 40 | AY85: 60 | AZ85: 2959 | BA85: 843 | BB85: 1461 | BC85: 240 | BD85: 26 | BE85: 28 | BF85: 75 | BH85: 134831 | BI85: 42135 | BJ85: 470 | BM85: 41 | BP85: =IFERROR(AN85*($B85+$C85+$D85)/($B$19+$C$19+$D$19),0) -> 0 | BQ85: 0 | BR85: 0 | BS85: 0 | BT85: =IFERROR(AR85*($B85+$C85+$D85)/($C$19),0) -> 0 | BU85: 0 | BV85: 0 | BW85: 0 | BX85: =IFERROR(AV85*($B85+$C85+$D85)/($B$19+$C$19+$D$19),0) -> 0 | BY85: =IFERROR(AW85*($B85+$C85+$D85)/($B$19+$C$19+$D$19),0) -> 0 | BZ85: =IFERROR(AX85*($B85+$C85+$D85)/($B$19+$C$19+$D$19),0) -> 0 | CA85: =IFERROR(AY85*($B85+$C85+$D85)/($B$19+$C$19+$D$19),0) -> 0 | CB85: =IFERROR(AZ85*($B85+$C85+$D85)/($B$19+$C$19+$D$19),0) -> 0 | CC85: =IFERROR(BA85*($B85+$C85+$D85)/($B$19+$C$19+$D$19),0) -> 0 | CD85: =IFERROR(BB85*($B85+$C85+$D85)/($B$19+$C$19+$D$19),0) -> 0 | CE85: =IFERROR(BC85*($B85+$C85+$D85)/($B$19+$C$19+$D$19),0) -> 0 | CF85: =IFERROR(BD85*($B85+$C85+$D85)/($B$19+$C$19+$D$19),0) -> 0 | CG85: =IFERROR(BE85*($B85+$C85+$D85)/($B$19+$C$19+$D$19),0) -> 0 | CH85: =IFERROR(BF85*($B85+$C85+$D85)/($B$19+$C$19+$D$19),0) -> 0 | CI85: =IFERROR(BG85*($B85+$C85+$D85)/($B$19+$C$19+$D$19),0) -> 0 | CJ85: =IFERROR(BH85*($B85+$C85+$D85)/($B$19+$C$19+$D$19),0) -> 0 | EH85: 0
A86: 86 | B86: 0 | C86: 0 | D86: 0 | F86: 0 | G86: =IFERROR(B86/AB86*100,0) -> 0 | H86: =IFERROR(C86/AB86*100,0) -> 0 | I86: 0 | J86: 0 | K86: 0 | L86: 0 | M86: 0 | N86: 4 | O86: 0 | Q86: 0 | R86: 0 | S86: 0 | T86: 0 | U86: =IFERROR(IF(OFFSET(O86,0,V$2-1)>0,1,0),0) -> 1 | V86: Erotusmelassi | W86: 0 | X86: 0 | Y86: osto | Z86: väkirehu | AB86: 74 | AC86: 0 | AD86: 10.7 | AE86: 0 | AK86: 0 | AL86: 0 | AM86: 0 | AN86: 265 | AO86: 0 | AP86: 150 | AQ86: 450 | AS86: 0 | AT86: 0 | AU86: 450 | AV86: 7 | AW86: 1 | AX86: 4 | AY86: 49 | AZ86: 600 | BA86: 60 | BB86: 150 | BC86: 35 | BD86: 16 | BL86: 2032 | BM86: 134 | BP86: 0 | BQ86: 0 | BR86: 0 | BS86: 0 | BT86: 0 | BU86: 0 | BV86: 0 | BW86: 0 | BX86: 0 | BY86: 0 | BZ86: 0 | CA86: 0 | CB86: 0 | CC86: 0 | CD86: 0 | CE86: 0 | CF86: 0 | CG86: 0 | CH86: 0 | CI86: 0 | CJ86: 0 | EH86: 0
A87: 87 | B87: 0 | C87: 0 | D87: 0 | F87: 0 | G87: 0 | H87: 0 | I87: 0 | J87: 0 | K87: 0 | L87: 0 | M87: 0 | N87: 4 | O87: 0 | Q87: 0 | R87: 0 | S87: 0 | T87: 0 | U87: 1 | V87: Glukoosimelassi | W87: 0 | X87: 0 | Y87: osto | Z87: väkirehu | AB87: 57 | AC87: 0 | AD87: 14.5 | AE87: 0 | AK87: 0 | AL87: 0 | AM87: 0 | AN87: 3 | AO87: 0 | AP87: -136 | AQ87: 450 | AS87: 0 | AT87: 0 | AU87: 450 | AV87: 7 | AW87: 1 | AX87: 4 | AY87: 49 | AZ87: 600 | BA87: 60 | BB87: 150 | BC87: 35 | BD87: 16 | BL87: 2041 | BM87: 135 | BP87: 0 | BQ87: 0 | BR87: 0 | BS87: 0 | BT87: 0 | BU87: 0 | BV87: 0 | BW87: 0 | BX87: 0 | BY87: 0 | BZ87: 0 | CA87: 0 | CB87: 0 | CC87: 0 | CD87: 0 | CE87: 0 | CF87: 0 | CG87: 0 | CH87: 0 | CI87: 0 | CJ87: 0 | EH87: 0
A88: 88 | B88: 0 | C88: 0 | D88: 0 | F88: 0 | G88: 0 | H88: 0 | I88: 0 | J88: 0 | K88: 0 | L88: 0 | M88: 0 | N88: 4 | O88: 0 | Q88: 0 | R88: 0 | S88: 0 | T88: 0 | U88: 1 | V88: Hera (märehtijät) | W88: 0 | X88: 0 | Y88: osto | Z88: väkirehu | AB88: 6 | AC88: 0 | AD88: 13.1 | AE88: 0 | AK88: 0 | AL88: 0 | AM88: 0 | AN88: 110 | AO88: 0 | AP88: -44 | AQ88: 0 | AS88: 0 | AT88: 0 | AV88: 7.2 | AW88: 7.9 | AX88: 1.4 | AY88: 10.6 | AZ88: 92 | BA88: 3 | BB88: 17 | BC88: 22 | BD88: 0 | BE88: 0.1 | BL88: 2042 | BM88: 136 | BP88: 0 | BQ88: 0 | BR88: 0 | BS88: 0 | BT88: 0 | BU88: 0 | BV88: 0 | BW88: 0 | BX88: 0 | BY88: 0 | BZ88: 0 | CA88: 0 | CB88: 0 | CC88: 0 | CD88: 0 | CE88: 0 | CF88: 0 | CG88: 0 | CH88: 0 | CI88: 0 | CJ88: 0 | EH88: 0
A89: 89 | B89: 0 | C89: 0 | D89: 0 | F89: 0 | G89: 0 | H89: 0 | I89: 0 | J89: 0 | K89: 0 | L89: 0 | M89: 0 | N89: 4 | O89: 0 | Q89: 0 | R89: 0 | S89: 0 | T89: 0 | U89: 1 | V89: Herajauhe (märehtijät) | W89: 0 | X89: 0 | Y89: osto | Z89: väkirehu | AB89: 96 | AC89: 0 | AD89: 13.2 | AE89: 0 | AK89: 0 | AL89: 0 | AM89: 0 | AN89: 125 | AO89: 0 | AP89: -33 | AQ89: 0 | AS89: 0 | AT89: 0 | AV89: 5.5 | AW89: 6 | AX89: 1.3 | AY89: 5.5 | AZ89: 2 | BA89: 3 | BB89: 2 | BC89: 4 | BE89: 1 | BL89: 3006 | BM89: 137 | BP89: 0 | BQ89: 0 | BR89: 0 | BS89: 0 | BT89: 0 | BU89: 0 | BV89: 0 | BW89: 0 | BX89: 0 | BY89: 0 | BZ89: 0 | CA89: 0 | CB89: 0 | CC89: 0 | CD89: 0 | CE89: 0 | CF89: 0 | CG89: 0 | CH89: 0 | CI89: 0 | CJ89: 0 | EH89: 0
A90: 90 | B90: 0 | C90: 0 | D90: 0 | F90: 0 | G90: 0 | H90: 0 | I90: 0 | J90: 0 | K90: 0 | L90: 0 | M90: 0 | N90: 4 | O90: 0 | Q90: 0 | R90: 0 | S90: 0 | T90: 0 | U90: 1 | V90: Härkäpapu | W90: 0 | X90: 0 | Y90: osto | Z90: väkirehu | AB90: 86 | AC90: 0 | AD90: 12.8 | AE90: 0 | AK90: 0 | AL90: 0 | AM90: 0 | AN90: 300 | AO90: 150 | AP90: 125 | AQ90: 420 | AS90: 0 | AT90: 380 | AU90: 40 | AV90: 1.8 | AW90: 6.5 | AX90: 1.5 | AY90: 0.2 | AZ90: 66 | BA90: 20 | BB90: 51 | BC90: 15 | BD90: 0.2 | BE90: 0.02 | BG90: 0.5 | BJ90: 15 | BL90: 2023 | BM90: 138 | BP90: 0 | BQ90: 0 | BR90: 0 | BS90: 0 | BT90: 0 | BU90: 0 | BV90: 0 | BW90: 0 | BX90: 0 | BY90: 0 | BZ90: 0 | CA90: 0 | CB90: 0 | CC90: 0 | CD90: 0 | CE90: 0 | CF90: 0 | CG90: 0 | CH90: 0 | CI90: 0 | CJ90: 0 | EH90: 0
A91: 91 | B91: 0 | C91: 0 | D91: 0 | F91: 0 | G91: 0 | H91: 0 | I91: 0 | J91: 0 | K91: 0 | L91: 0 | M91: 0 | N91: 4 | O91: 0 | Q91: 0 | R91: 0 | S91: 0 | T91: 0 | U91: 1 | V91: Kasviöljy | W91: 0 | X91: 0 | Y91: osto | Z91: väkirehu | AB91: 100 | AC91: 0 | AD91: 32.5 | AE91: 0 | AK91: 0 | AL91: 0 | AM91: 0 | AN91: 0 | AO91: 0 | AP91: -144 | AQ91: 0 | AS91: 0 | AT91: 0 | AU91: 0 | BK91: Tälle rehulle ei löytynyt vastaavaa rehua MTT:n kivennäistaulkosta | BL91: 3087 | BM91: 139 | BP91: 0 | BQ91: 0 | BR91: 0 | BS91: 0 | BT91: 0 | BU91: 0 | BV91: 0 | BW91: 0 | BX91: 0 | BY91: 0 | BZ91: 0 | CA91: 0 | CB91: 0 | CC91: 0 | CD91: 0 | CE91: 0 | CF91: 0 | CG91: 0 | CH91: 0 | CI91: 0 | CJ91: 0 | EH91: 0
A92: 92 | B92: 0 | C92: 0 | D92: 0 | F92: 0 | G92: 0 | H92: 0 | I92: 0 | J92: 0 | K92: 0 | L92: 0 | M92: 0 | N92: 4 | O92: 0 | Q92: 0 | R92: 0 | S92: 0 | T92: 0 | U92: 1 | V92: Kaura, 35 - 45 kg/hl | W92: 0 | X92: 0 | Y92: osto | Z92: väkirehu | AB92: 86 | AC92: 0 | AD92: 10.4 | AE92: 0 | AK92: 0 | AL92: 0 | AM92: 0 | AN92: 120 | AO92: 350 | AP92: 2 | AQ92: 368 | AS92: 0 | AT92: 350 | AU92: 18 | AV92: 0.8 | AW92: 4 | AX92: 1.3 | AY92: 0.2 | AZ92: 52 | BA92: 66 | BB92: 41 | BC92: 4 | BD92: 0.07 | BE92: 0.09 | BF92: 0.1 | BG92: 0.4 | BL92: 3077 | BM92: 140 | BP92: 0 | BQ92: 0 | BR92: 0 | BS92: 0 | BT92: 0 | BU92: 0 | BV92: 0 | BW92: 0 | BX92: 0 | BY92: 0 | BZ92: 0 | CA92: 0 | CB92: 0 | CC92: 0 | CD92: 0 | CE92: 0 | CF92: 0 | CG92: 0 | CH92: 0 | CI92: 0 | CJ92: 0 | EH92: 0
A93: 93 | B93: 0 | C93: 0 | D93: 0 | F93: 0 | G93: 0 | H93: 0 | I93: 0 | J93: 0 | K93: 0 | L93: 0 | M93: 0 | N93: 4 | O93: 0 | Q93: 0 | R93: 0 | S93: 0 | T93: 0 | U93: 1 | V93: Kaura, 45 - 54 kg/hl | W93: 0 | X93: 0 | Y93: osto | Z93: väkirehu | AB93: 86 | AC93: 0 | AD93: 11.5 | AE93: 0 | AK93: 0 | AL93: 0 | AM93: 0 | AN93: 130 | AO93: 310 | AP93: -1 | AQ93: 438 | AS93: 0 | AT93: 420 | AU93: 18 | AV93: 0.8 | AW93: 4 | AX93: 1.3 | AY93: 0.2 | AZ93: 52 | BA93: 66 | BB93: 41 | BC93: 4 | BD93: 0.07 | BE93: 0.09 | BF93: 0.1 | BG93: 0.4 | BL93: 3078 | BM93: 141 | BP93: 0 | BQ93: 0 | BR93: 0 | BS93: 0 | BT93: 0 | BU93: 0 | BV93: 0 | BW93: 0 | BX93: 0 | BY93: 0 | BZ93: 0 | CA93: 0 | CB93: 0 | CC93: 0 | CD93: 0 | CE93: 0 | CF93: 0 | CG93: 0 | CH93: 0 | CI93: 0 | CJ93: 0 | EH93: 0
A94: 94 | B94: 0 | C94: 0 | D94: 0 | F94: 0 | G94: 0 | H94: 0 | I94: 0 | J94: 0 | K94: 0 | L94: 0 | M94: 0 | N94: 4 | O94: 0 | Q94: 0 | R94: 0 | S94: 0 | T94: 0 | U94: 1 | V94: Kaura, 54 - 58 kg/hl | W94: 0 | X94: 0 | Y94: osto | Z94: väkirehu | AB94: 86 | AC94: 0 | AD94: 12.1 | AE94: 0 | AG94: 50 | AH94: =AG94*AB94/100 -> 43 | AK94: 0 | AL94: 0 | AM94: 0 | AN94: 134 | AO94: 290 | AP94: -2 | AQ94: 458 | AS94: 0 | AT94: 440 | AU94: 18 | AV94: 0.8 | AW94: 4 | AX94: 1.3 | AY94: 0.2 | AZ94: 52 | BA94: 66 | BB94: 41 | BC94: 4 | BD94: 0.1 | BE94: 0.1 | BF94: 0.1 | BG94: 0.4 | BL94: 3080 | BM94: 142 | BP94: 0 | BQ94: 0 | BR94: 0 | BS94: 0 | BT94: 0 | BU94: 0 | BV94: 0 | BW94: 0 | BX94: 0 | BY94: 0 | BZ94: 0 | CA94: 0 | CB94: 0 | CC94: 0 | CD94: 0 | CE94: 0 | CF94: 0 | CG94: 0 | CH94: 0 | CI94: 0 | CJ94: 0 | EH94: 0
A95: 95 | B95: 0 | C95: 0 | D95: 0 | F95: 0 | G95: 0 | H95: 0 | I95: 0 | J95: 0 | K95: 0 | L95: 0 | M95: 0 | N95: 4 | O95: 0 | Q95: 0 | R95: 0 | S95: 0 | T95: 0 | U95: 1 | V95: Kaura, kuoreton tai kuorittu | W95: 0 | X95: 0 | Y95: osto | Z95: väkirehu | AB95: 86 | AC95: 0 | AD95: 14.2 | AE95: 0 | AK95: 0 | AL95: 0 | AM95: 0 | AN95: 162 | AO95: 120 | AP95: 6 | AQ95: 670 | AS95: 0 | AT95: 650 | AU95: 20 | AV95: 0.6 | AW95: 5.2 | AX95: 1.5 | AY95: 0.1 | AZ95: 68 | BA95: 50 | BB95: 42 | BC95: 5 | BD95: 0.01 | BE95: 0.12 | BG95: 0.2 | BJ95: 15 | BL95: 1011 | BM95: 143 | BP95: 0 | BQ95: 0 | BR95: 0 | BS95: 0 | BT95: 0 | BU95: 0 | BV95: 0 | BW95: 0 | BX95: 0 | BY95: 0 | BZ95: 0 | CA95: 0 | CB95: 0 | CC95: 0 | CD95: 0 | CE95: 0 | CF95: 0 | CG95: 0 | CH95: 0 | CI95: 0 | CJ95: 0 | EH95: 0
A96: 96 | B96: 0 | C96: 0 | D96: 0 | F96: 0 | G96: 0 | H96: 0 | I96: 0 | J96: 0 | K96: 0 | L96: 0 | M96: 0 | N96: 4 | O96: 0 | Q96: 0 | R96: 0 | S96: 0 | T96: 0 | U96: 1 | V96: Kaura, yli 58 kg/hl | W96: 0 | X96: 0 | Y96: osto | Z96: väkirehu | AB96: 86 | AC96: 0 | AD96: 12.3 | AE96: 0 | AK96: 0 | AL96: 0 | AM96: 0 | AN96: 134 | AO96: 280 | AP96: -5 | AQ96: 478 | AS96: 0 | AT96: 460 | AU96: 18 | AV96: 0.8 | AW96: 4 | AX96: 1.3 | AY96: 0.2 | AZ96: 52 | BA96: 66 | BB96: 41 | BC96: 4 | BD96: 0.07 | BE96: 0.09 | BF96: 0.1 | BG96: 0.4 | BL96: 3081 | BM96: 144 | BP96: 0 | BQ96: 0 | BR96: 0 | BS96: 0 | BT96: 0 | BU96: 0 | BV96: 0 | BW96: 0 | BX96: 0 | BY96: 0 | BZ96: 0 | CA96: 0 | CB96: 0 | CC96: 0 | CD96: 0 | CE96: 0 | CF96: 0 | CG96: 0 | CH96: 0 | CI96: 0 | CJ96: 0 | EH96: =BN96-DK96 -> 0
A97: 97 | B97: 0 | C97: 0 | D97: 0 | F97: 0 | G97: 0 | H97: 0 | I97: 0 | J97: 0 | K97: 0 | L97: 0 | M97: 0 | N97: 4 | O97: 0 | Q97: 0 | R97: 0 | S97: 0 | T97: 0 | U97: 1 | V97: Kaurarehujauho | W97: 0 | X97: 0 | Y97: osto | Z97: väkirehu | AB97: 88 | AC97: 0 | AD97: 12.7 | AE97: 0 | AK97: 0 | AL97: 0 | AM97: 0 | AN97: 160 | AO97: 150 | AP97: 29 | AQ97: 410 | AS97: 0 | AT97: 400 | AU97: 10 | AV97: 0.5 | AW97: 3.7 | AX97: 1.2 | AZ97: 70 | BA97: 35 | BB97: 35 | BC97: 0.06 | BJ97: 15 | BL97: 3007 | BM97: 146 | BP97: 0 | BQ97: 0 | BR97: 0 | BS97: 0 | BT97: 0 | BU97: 0 | BV97: 0 | BW97: 0 | BX97: 0 | BY97: 0 | BZ97: 0 | CA97: 0 | CB97: 0 | CC97: 0 | CD97: 0 | CE97: 0 | CF97: 0 | CG97: 0 | CH97: 0 | CI97: 0 | CJ97: 0 | EH97: 0
A98: 98 | B98: 0 | C98: 0 | D98: 0 | F98: 0 | G98: 0 | H98: 0 | I98: 0 | J98: 0 | K98: 0 | L98: 0 | M98: 0 | N98: 4 | O98: 0 | Q98: 0 | R98: 0 | S98: 0 | T98: 0 | U98: 1 | V98: Leipäjauho | W98: 0 | X98: 0 | Y98: osto | Z98: väkirehu | AB98: 92 | AC98: 0 | AD98: 13.4 | AE98: 0 | AK98: 0 | AL98: 0 | AM98: 0 | AN98: 140 | AO98: 150 | AP98: -12 | AQ98: 770 | AS98: 0 | AT98: 650 | AU98: 120 | AV98: 0.5 | AW98: 3.7 | AX98: 1.2 | AZ98: 70 | BA98: 35 | BB98: 35 | BC98: 6 | BD98: 0.1 | BK98: huom! | BL98: 3088 | BM98: 145 | BP98: 0 | BQ98: 0 | BR98: 0 | BS98: 0 | BT98: 0 | BU98: 0 | BV98: 0 | BW98: 0 | BX98: 0 | BY98: 0 | BZ98: 0 | CA98: 0 | CB98: 0 | CC98: 0 | CD98: 0 | CE98: 0 | CF98: 0 | CG98: 0 | CH98: 0 | CI98: 0 | CJ98: 0 | EH98: 0
A99: 99 | B99: 0 | C99: 0 | D99: 0 | F99: 0 | G99: 0 | H99: 0 | I99: 0 | J99: 0 | K99: 0 | L99: 0 | M99: 0 | N99: 4 | O99: 0 | Q99: 0 | R99: 0 | S99: 0 | T99: 0 | U99: 1 | V99: Melassileike | W99: 0 | X99: 0 | Y99: osto | Z99: väkirehu | AB99: 90 | AC99: 0 | AD99: 12.2 | AE99: 0 | AK99: 0 | AL99: 0 | AM99: 0 | AN99: 119 | AO99: 340 | AP99: -32 | AQ99: 128 | AS99: 0 | AT99: 0 | AU99: 128 | AV99: 9.5 | AW99: 0.7 | AX99: 1.3 | AY99: 5.5 | AZ99: 500 | BA99: 50 | BB99: 30 | BC99: 10 | BL99: 1012 | BM99: 147 | BP99: 0 | BQ99: 0 | BR99: 0 | BS99: 0 | BT99: 0 | BU99: 0 | BV99: 0 | BW99: 0 | BX99: 0 | BY99: 0 | BZ99: 0 | CA99: 0 | CB99: 0 | CC99: 0 | CD99: 0 | CE99: 0 | CF99: 0 | CG99: 0 | CH99: 0 | CI99: 0 | CJ99: 0 | EH99: 0
A100: 100 | B100: 0 | C100: 0 | D100: 0 | F100: 0 | G100: 0 | H100: 0 | I100: 0 | J100: 0 | K100: 0 | L100: 0 | M100: 0 | N100: 4 | O100: 0 | Q100: 0 | R100: 0 | S100: 0 | T100: 0 | U100: 1 | V100: Mäski, tuore | W100: 0 | X100: 0 | Y100: osto | Z100: väkirehu | AB100: 22 | AC100: 0 | AD100: 10.7 | AE100: 0 | AK100: 0 | AL100: 0 | AM100: 0 | AN100: 230 | AO100: 570 | AP100: 80 | AQ100: 60 | AS100: 0 | AT100: 50 | AU100: 10 | AV100: 2.2 | AW100: 3.5 | AX100: 1.6 | AY100: 0.1 | AZ100: 470 | BA100: 45 | BB100: 110 | BC100: 11 | BD100: 0.1 | BJ100: 25 | BL100: 3089 | BM100: 49 | BP100: 0 | BQ100: 0 | BR100: 0 | BS100: 0 | BT100: 0 | BU100: 0 | BV100: 0 | BW100: 0 | BX100: 0 | BY100: 0 | BZ100: 0 | CA100: 0 | CB100: 0 | CC100: 0 | CD100: 0 | CE100: 0 | CF100: 0 | CG100: 0 | CH100: 0 | CI100: 0 | CJ100: 0 | EH100: 0
A101: 101 | B101: 0 | C101: 0 | D101: 0 | F101: 0 | G101: 0 | H101: 0 | I101: 0 | J101: 0 | K101: 0 | L101: 0 | M101: 0 | N101: 4 | O101: 0 | Q101: 0 | R101: 0 | S101: 0 | T101: 0 | U101: 1 | V101: Mäskijauho | W101: 0 | X101: 0 | Y101: osto | Z101: väkirehu | AB101: 92 | AC101: 0 | AD101: 10 | AE101: 0 | AK101: 0 | AL101: 0 | AM101: 0 | AN101: 230 | AO101: 570 | AP101: 85 | AQ101: 60 | AS101: 0 | AT101: 50 | AU101: 10 | AV101: 2.2 | AW101: 3.5 | AX101: 1.6 | AY101: 0.1 | AZ101: 470 | BA101: 45 | BB101: 110 | BC101: 11 | BD101: 0.1 | BL101: 3008 | BM101: 50 | BP101: =IFERROR(AN101*($B101+$C101+$D101)/($B$19+$C$19+$D$19),0) -> 0 | BQ101: 0 | BR101: 0 | BS101: 0 | BT101: 0 | BU101: 0 | BV101: 0 | BW101: 0 | BX101: 0 | BY101: 0 | BZ101: 0 | CA101: 0 | CB101: 0 | CC101: 0 | CD101: 0 | CE101: 0 | CF101: 0 | CG101: 0 | CH101: 0 | CI101: 0 | CJ101: 0 | EH101: 0
A102: 102 | B102: 0 | C102: 0 | D102: 0 | F102: 0 | G102: 0 | H102: 0 | I102: 0 | J102: 0 | K102: 0 | L102: 0 | M102: 0 | N102: 4 | O102: 0 | Q102: 0 | R102: 0 | S102: 0 | T102: 0 | U102: 1 | V102: Ohra, 40 - 54 kg/hl | W102: 0 | X102: 0 | Y102: osto | Z102: väkirehu | AB102: 86 | AC102: 0 | AD102: 12.3 | AE102: 0 | AK102: 0 | AL102: 0 | AM102: 0 | AN102: 126 | AO102: 300 | AP102: -11 | AQ102: 300 | AS102: 0 | AT102: 280 | AU102: 20 | AV102: 0.5 | AW102: 4.1 | AX102: 1.4 | AY102: 0.1 | AZ102: 50 | BA102: 24 | BB102: 39 | BC102: 7 | BD102: 0.13 | BE102: 0.09 | BF102: 0.2 | BG102: 0.3 | BL102: 3082 | BM102: 51 | BP102: 0 | BQ102: 0 | BR102: 0 | BS102: 0 | BT102: 0 | BU102: 0 | BV102: 0 | BW102: 0 | BX102: 0 | BY102: 0 | BZ102: 0 | CA102: 0 | CB102: 0 | CC102: 0 | CD102: 0 | CE102: 0 | CF102: 0 | CG102: 0 | CH102: 0 | CI102: 0 | CJ102: 0 | EH102: 0
A103: 103 | B103: 0 | C103: 0 | D103: 0 | F103: 0 | G103: 0 | H103: 0 | I103: 0 | J103: 0 | K103: 0 | L103: 0 | M103: 0 | N103: 4 | O103: 0 | Q103: 0 | R103: 0 | S103: 0 | T103: 0 | U103: 1 | V103: Ohra, 54 - 62 kg/hl | W103: 0 | X103: 0 | Y103: osto | Z103: väkirehu | AB103: 86 | AC103: 0 | AD103: 12.9 | AE103: 0 | AG103: 300 | AH103: =AG103*AB103/100 -> 258 | AK103: 0 | AL103: 0 | AM103: 0 | AN103: 126 | AO103: 230 | AP103: -17 | AQ103: 520 | AS103: 0 | AT103: 500 | AU103: 20 | AV103: 0.5 | AW103: 4.1 | AX103: 1.4 | AY103: 0.1 | AZ103: 50 | BA103: 24 | BB103: 39 | BC103: 7 | BD103: 0.1 | BE103: 0.1 | BF103: 0.2 | BG103: 0.3 | BL103: 3084 | BM103: 52 | BP103: 0 | BQ103: 0 | BR103: 0 | BS103: 0 | BT103: 0 | BU103: 0 | BV103: 0 | BW103: 0 | BX103: 0 | BY103: 0 | BZ103: 0 | CA103: 0 | CB103: 0 | CC103: 0 | CD103: 0 | CE103: 0 | CF103: 0 | CG103: 0 | CH103: 0 | CI103: 0 | CJ103: 0 | EH103: 0
A104: 104 | B104: 0 | C104: 0 | D104: 0 | F104: 0 | G104: 0 | H104: 0 | I104: 0 | J104: 0 | K104: 0 | L104: 0 | M104: 0 | N104: 4 | O104: 0 | Q104: 0 | R104: 0 | S104: 0 | T104: 0 | U104: 1 | V104: Ohra, paljassiemeninen | W104: 0 | X104: 0 | Y104: osto | Z104: väkirehu | AB104: 86 | AC104: 0 | AD104: 13.8 | AE104: 0 | AK104: 0 | AL104: 0 | AM104: 0 | AN104: 150 | AO104: 200 | AP104: -5 | AQ104: 730 | AS104: 0 | AT104: 700 | AU104: 30 | AV104: 0.3 | AW104: 5.5 | AX104: 1.5 | AZ104: 80 | BA104: 23 | BB104: 57 | BC104: 8 | BL104: 3101 | BM104: 152 | BP104: 0 | BQ104: 0 | BR104: 0 | BS104: 0 | BT104: 0 | BU104: 0 | BV104: 0 | BW104: 0 | BX104: 0 | BY104: 0 | BZ104: 0 | CA104: 0 | CB104: 0 | CC104: 0 | CD104: 0 | CE104: 0 | CF104: 0 | CG104: 0 | CH104: 0 | CI104: 0 | CJ104: 0 | EH104: 0
A105: 105 | B105: 38 | C105: 0 | D105: 0 | F105: 5.016 | G105: 44.18604651 | H105: 0 | I105: 0 | J105: 47.88 | K105: 220.4 | L105: 7.9534 | M105: 0.7000912921 | N105: 4 | O105: 0.38 | P105: 38 | Q105: 0.2325300143 | R105: 44.18604651 | S105: 0 | T105: 0 | U105: 1 | V105: Ohra, yli 62 kg/hl | W105: 4418.604651 | X105: 883.7209302 | Y105: osto | Z105: väkirehu | AB105: 86 | AC105: 0 | AD105: 13.2 | AE105: 0 | AJ105: 18 | AK105: 20.93 | AL105: 1.59 | AM105: 0 | AN105: 126 | AO105: 210 | AP105: -46 | AQ105: 580 | AS105: 0 | AT105: 560 | AU105: 20 | AV105: 0.5 | AW105: 4.1 | AX105: 1.4 | AY105: 0.1 | AZ105: 50 | BA105: 24 | BB105: 39 | BC105: 7 | BD105: 0.1 | BE105: 0.1 | BF105: 0.2 | BG105: 0.3 | BL105: 1005 | BM105: 100 | BP105: 47.88 | BQ105: 79.8 | BR105: -17.48 | BS105: 220.4 | BT105: 0 | BU105: 0 | BV105: 212.8 | BW105: 7.6 | BX105: 0.19 | BY105: 1.558 | BZ105: 0.532 | CA105: 0.038 | CB105: 19 | CC105: 9.12 | CD105: 14.82 | CE105: 2.66 | CF105: 0.038 | CG105: 0.038 | CH105: 0.076 | CI105: 0.114 | CJ105: 0 | EH105: 0
A106: 106 | B106: 0 | C106: 0 | D106: 0 | F106: 0 | G106: 0 | H106: 0 | I106: 0 | J106: 0 | K106: 0 | L106: 0 | M106: 0 | N106: 4 | O106: 0 | Q106: 0 | R106: 0 | S106: 0 | T106: 0 | U106: =IFERROR(IF(OFFSET(O106,0,V$2-1)>0,1,0),0) -> 1 | V106: Ohramallasidut | W106: 0 | X106: 0 | Y106: osto | Z106: väkirehu | AB106: 92 | AC106: 0 | AD106: 11.5 | AE106: 0 | AK106: 0 | AL106: 0 | AM106: 0 | AN106: 320 | AP106: 153 | AQ106: 195 | AT106: 54 | AU106: 141 | AV106: 2.5 | AW106: 8.3 | AX106: 1.6 | AY106: 0.7 | AZ106: 130 | BA106: 45 | BB106: 90 | BC106: 15 | BD106: 0.07 | BJ106: 5 | BL106: 3102 | BM106: 101 | BP106: 0 | BQ106: 0 | BR106: 0 | BS106: 0 | BT106: 0 | BU106: 0 | BV106: 0 | BW106: 0 | BX106: 0 | BY106: 0 | BZ106: 0 | CA106: 0 | CB106: 0 | CC106: 0 | CD106: 0 | CE106: 0 | CF106: 0 | CG106: 0 | CH106: 0 | CI106: 0 | CJ106: 0 | EH106: 0
A107: 107 | B107: 0 | C107: 0 | D107: 0 | F107: 0 | G107: 0 | H107: 0 | I107: 0 | J107: 0 | K107: 0 | L107: 0 | M107: 0 | N107: 4 | O107: 0 | Q107: 0 | R107: 0 | S107: 0 | T107: 0 | U107: 1 | V107: Ohramallasrehu | W107: 0 | X107: 0 | Y107: osto | Z107: väkirehu | AB107: 89 | AC107: 0 | AD107: 12.5 | AE107: 0 | AK107: 0 | AL107: 0 | AM107: 0 | AN107: 189 | AO107: 350 | AP107: 38 | AQ107: 225 | AS107: 0 | AT107: 97 | AU107: 128 | AV107: 0.5 | AW107: 4.1 | AX107: 1.4 | AY107: 0.1 | AZ107: 50 | BA107: 24 | BB107: 39 | BC107: 7 | BD107: 0.13 | BE107: 0.09 | BF107: 0.2 | BG107: 0.3 | BL107: 3009 | BM107: 53 | BP107: 0 | BQ107: 0 | BR107: 0 | BS107: 0 | BT107: 0 | BU107: 0 | BV107: 0 | BW107: 0 | BX107: 0 | BY107: 0 | BZ107: 0 | CA107: 0 | CB107: 0 | CC107: 0 | CD107: 0 | CE107: 0 | CF107: 0 | CG107: 0 | CH107: 0 | CI107: 0 | CJ107: 0 | EH107: 0
A108: 108 | B108: 0 | C108: 0 | D108: 0 | F108: 0 | G108: 0 | H108: 0 | I108: 0 | J108: 0 | K108: 0 | L108: 0 | M108: 0 | N108: 4 | O108: 0 | Q108: 0 | R108: 0 | S108: 0 | T108: 0 | U108: 1 | V108: Ohrankuorijauho (tärkkelysteollisuus) | W108: 0 | X108: 0 | Y108: osto | Z108: väkirehu | AB108: 88 | AC108: 0 | AD108: 7.5 | AE108: 0 | AK108: 0 | AL108: 0 | AM108: 0 | AN108: 70 | AO108: 350 | AP108: -14 | AQ108: 201 | AS108: 0 | AT108: 120 | AU108: 81 | AV108: 1.1 | AW108: 0.7 | AX108: 1 | AY108: 0.2 | AZ108: 185 | BA108: 30 | BB108: 20 | BL108: 3103 | BM108: 151 | BP108: 0 | BQ108: 0 | BR108: 0 | BS108: 0 | BT108: 0 | BU108: 0 | BV108: 0 | BW108: 0 | BX108: 0 | BY108: 0 | BZ108: 0 | CA108: 0 | CB108: 0 | CC108: 0 | CD108: 0 | CE108: 0 | CF108: 0 | CG108: 0 | CH108: 0 | CI108: 0 | CJ108: 0 | EH108: 0
A109: 109 | B109: 0 | C109: 0 | D109: 0 | F109: 0 | G109: 0 | H109: 0 | I109: 0 | J109: 0 | K109: 0 | L109: 0 | M109: 0 | N109: 4 | O109: 0 | Q109: 0 | R109: 0 | S109: 0 | T109: 0 | U109: 1 | V109: Ohrankuorilese | W109: 0 | X109: 0 | Y109: osto | Z109: väkirehu | AB109: 88 | AC109: 0 | AD109: 10.3 | AE109: 0 | AK109: 0 | AL109: 0 | AM109: 0 | AN109: 150 | AO109: 350 | AP109: 28 | AQ109: 270 | AS109: 0 | AT109: 250 | AU109: 20 | AV109: 1.1 | AW109: 8 | AX109: 3 | AZ109: 70 | BA109: 25 | BB109: 70 | BC109: 11 | BL109: 3104 | BM109: 103 | BP109: 0 | BQ109: 0 | BR109: 0 | BS109: 0 | BT109: 0 | BU109: 0 | BV109: 0 | BW109: 0 | BX109: 0 | BY109: 0 | BZ109: 0 | CA109: 0 | CB109: 0 | CC109: 0 | CD109: 0 | CE109: 0 | CF109: 0 | CG109: 0 | CH109: 0 | CI109: 0 | CJ109: 0 | EH109: 0
A110: 110 | B110: 0 | C110: 0 | D110: 0 | F110: 0 | G110: 0 | H110: 0 | I110: 0 | J110: 0 | K110: 0 | L110: 0 | M110: 0 | N110: 4 | O110: 0 | Q110: 0 | R110: 0 | S110: 0 | T110: 0 | U110: 1 | V110: Ohrarehu, Altia | W110: 0 | X110: 0 | Y110: osto | Z110: väkirehu | AB110: 88 | AC110: 0 | AD110: 11.6 | AE110: 0 | AK110: 0 | AL110: 0 | AM110: 0 | AN110: 136 | AO110: 590 | AP110: -21 | AQ110: 75 | AS110: 0 | AT110: 75 | AV110: 0.8 | AW110: 3.6 | AX110: 1.2 | AY110: 0.7 | AZ110: 85 | BA110: 17 | BB110: 46 | BC110: 11 | BD110: 0.1 | BE110: 0.1 | BI110: 26 | BL110: 4001 | BM110: 104 | BP110: 0 | BQ110: 0 | BR110: 0 | BS110: 0 | BT110: 0 | BU110: 0 | BV110: 0 | BW110: 0 | BX110: 0 | BY110: 0 | BZ110: 0 | CA110: 0 | CB110: 0 | CC110: 0 | CD110: 0 | CE110: 0 | CF110: 0 | CG110: 0 | CH110: 0 | CI110: 0 | CJ110: 0 | EH110: 0
A111: 111 | B111: 0 | C111: 0 | D111: 0 | F111: 0 | G111: 0 | H111: 0 | I111: 0 | J111: 0 | K111: 0 | L111: 0 | M111: 0 | N111: 4 | O111: 0 | Q111: 0 | R111: 0 | S111: 0 | T111: 0 | U111: 1 | V111: Ohrarehujauho | W111: 0 | X111: 0 | Y111: osto | Z111: väkirehu | AB111: 88 | AC111: 0 | AD111: 12.5 | AE111: 0 | AK111: 0 | AL111: 0 | AM111: 0 | AN111: 145 | AO111: 300 | AP111: 4 | AQ111: 353 | AS111: 0 | AT111: 280 | AU111: 73 | AV111: 0.5 | AW111: 4.1 | AX111: 1.4 | AY111: 0.1 | AZ111: 50 | BA111: 24 | BB111: 39 | BC111: 7 | BD111: 0.13 | BE111: 0.09 | BF111: 0.2 | BG111: 0.3 | BL111: 3010 | BM111: 54 | BP111: 0 | BQ111: 0 | BR111: 0 | BS111: 0 | BT111: 0 | BU111: 0 | BV111: 0 | BW111: 0 | BX111: 0 | BY111: 0 | BZ111: 0 | CA111: 0 | CB111: 0 | CC111: 0 | CD111: 0 | CE111: 0 | CF111: 0 | CG111: 0 | CH111: 0 | CI111: 0 | CJ111: 0 | EH111: 0
A112: 112 | B112: 0 | C112: 0 | D112: 0 | F112: 0 | G112: 0 | H112: 0 | I112: 0 | J112: 0 | K112: 0 | L112: 0 | M112: 0 | N112: 4 | O112: 0 | Q112: 0 | R112: 0 | S112: 0 | T112: 0 | U112: 1 | V112: Ohravalkuaisrehu 32, tuore ( tärk.t) | W112: 0 | X112: 0 | Y112: osto | Z112: väkirehu | AB112: 21 | AC112: 0 | AD112: 14.1 | AE112: 0 | AK112: 0 | AL112: 0 | AM112: 0 | AN112: 240 | AO112: 120 | AP112: 38 | AQ112: 150 | AS112: 0 | AT112: 150 | AV112: 1 | AW112: 7 | AX112: 2.6 | AY112: 3.1 | AZ112: 130 | BA112: 36 | BB112: 64 | BC112: 15 | BD112: 0.04 | BJ112: 14 | BL112: 3011 | BM112: 96 | BP112: 0 | BQ112: 0 | BR112: 0 | BS112: 0 | BT112: 0 | BU112: 0 | BV112: 0 | BW112: 0 | BX112: 0 | BY112: 0 | BZ112: 0 | CA112: 0 | CB112: 0 | CC112: 0 | CD112: 0 | CE112: 0 | CF112: 0 | CG112: 0 | CH112: 0 | CI112: 0 | CJ112: 0 | EH112: 0
A113: 113 | B113: 0 | C113: 0 | D113: 0 | F113: 0 | G113: 0 | H113: 0 | I113: 0 | J113: 0 | K113: 0 | L113: 0 | M113: 0 | N113: 4 | O113: 0 | Q113: 0 | R113: 0 | S113: 0 | T113: 0 | U113: 1 | V113: Panimohiiva | W113: 0 | X113: 0 | Y113: osto | Z113: väkirehu | AB113: 10 | AC113: 0 | AD113: 13.1 | AE113: 0 | AK113: 0 | AL113: 0 | AM113: 0 | AN113: 550 | AO113: 0 | AP113: 288 | AQ113: 77 | AS113: 0 | AT113: 62 | AU113: 15 | BK113: Tälle rehulle ei löytynyt vastaavaa rehua MTT:n kivennäistaulkosta | BL113: 4004 | BM113: 105 | BP113: 0 | BQ113: 0 | BR113: 0 | BS113: 0 | BT113: 0 | BU113: 0 | BV113: 0 | BW113: 0 | BX113: 0 | BY113: 0 | BZ113: 0 | CA113: 0 | CB113: 0 | CC113: 0 | CD113: 0 | CE113: 0 | CF113: 0 | CG113: 0 | CH113: 0 | CI113: 0 | CJ113: 0 | EH113: 0
A114: 114 | B114: 0 | C114: 0 | D114: 0 | F114: 0 | G114: 0 | H114: 0 | I114: 0 | J114: 0 | K114: 0 | L114: 0 | M114: 0 | N114: 4 | O114: 0 | Q114: 0 | R114: 0 | S114: 0 | T114: 0 | U114: 1 | V114: Peruna, raaka | W114: 0 | X114: 0 | Y114: osto | Z114: väkirehu | AB114: 22 | AC114: 0 | AD114: 13.3 | AE114: 0 | AK114: 0 | AL114: 0 | AM114: 0 | AN114: 95 | AO114: 70 | AP114: -50 | AQ114: 0 | AV114: 0.3 | AW114: 2.3 | AX114: 1.4 | AY114: 0.6 | AZ114: 41 | BA114: 7 | BB114: 24 | BC114: 5 | BD114: 0.09 | BE114: 0.03 | BF114: 0.2 | BG114: 0.2 | BL114: 3012 | BM114: 106 | BP114: 0 | BQ114: 0 | BR114: 0 | BS114: 0 | BT114: 0 | BU114: 0 | BV114: 0 | BW114: 0 | BX114: 0 | BY114: 0 | BZ114: 0 | CA114: 0 | CB114: 0 | CC114: 0 | CD114: 0 | CE114: 0 | CF114: 0 | CG114: 0 | CH114: 0 | CI114: 0 | CJ114: 0 | EH114: 0
A115: 115 | B115: 0 | C115: 0 | D115: 0 | F115: 0 | G115: 0 | H115: 0 | I115: 0 | J115: 0 | K115: 0 | L115: 0 | M115: 0 | N115: 4 | O115: 0 | Q115: 0 | R115: 0 | S115: 0 | T115: 0 | U115: 1 | V115: Perunarehu, tuore | W115: 0 | X115: 0 | Y115: osto | Z115: väkirehu | AB115: 16 | AC115: 0 | AD115: 12.3 | AE115: 0 | AK115: 0 | AL115: 0 | AM115: 0 | AN115: 63 | AO115: 100 | AP115: -76 | AQ115: 500 | AS115: 0 | AT115: 500 | AU115: 0 | AV115: 1.4 | AW115: 0.8 | AX115: 0.9 | BL115: 4005 | BM115: 55 | BP115: 0 | BQ115: 0 | BR115: 0 | BS115: 0 | BT115: 0 | BU115: 0 | BV115: 0 | BW115: 0 | BX115: 0 | BY115: 0 | BZ115: 0 | CA115: 0 | CB115: 0 | CC115: 0 | CD115: 0 | CE115: 0 | CF115: 0 | CG115: 0 | CH115: 0 | CI115: 0 | CJ115: 0 | EH115: 0
A116: 116 | B116: 0 | C116: 0 | D116: 0 | F116: 0 | G116: 0 | H116: 0 | I116: 0 | J116: 0 | K116: 0 | L116: 0 | M116: 0 | N116: 4 | O116: 0 | Q116: 0 | R116: 0 | S116: 0 | T116: 0 | U116: 1 | V116: Perunarehu, tuore, solunestepitoinen | W116: 0 | X116: 0 | Y116: osto | Z116: väkirehu | AB116: 16 | AC116: 0 | AD116: 11.9 | AE116: 0 | AK116: 0 | AL116: 0 | AM116: 0 | AN116: 125 | AO116: 100 | AP116: -26 | AQ116: 0 | AS116: 0 | AV116: 1.4 | AW116: 0.8 | AX116: 0.9 | BL116: 4011 | BM116: 107 | BP116: 0 | BQ116: 0 | BR116: 0 | BS116: 0 | BT116: 0 | BU116: 0 | BV116: 0 | BW116: 0 | BX116: 0 | BY116: 0 | BZ116: 0 | CA116: 0 | CB116: 0 | CC116: 0 | CD116: 0 | CE116: 0 | CF116: 0 | CG116: 0 | CH116: 0 | CI116: 0 | CJ116: 0 | EH116: 0
A117: 117 | B117: =IF(N117=3,P117,IF(N117=4,P117,0)) -> 0 | C117: =IF(N117=1,P117,IF(N117=2,P117,0)) -> 0 | D117: =IF(N117=5,P117,0) -> 0 | F117: =IFERROR(AD117*U117*(B117+C117+D117)/(B$19+C$19+D$19),0) -> 0 | G117: 0 | H117: 0 | I117: =IFERROR(AS117*U117*C117/(B$19+C$19+D$19),0) -> 0 | J117: =IFERROR(AN117*U117*(B117+C117+D117)/($B$19+$C$19+$D$19),0) -> 0 | K117: =IFERROR(AQ117*U117*(B117+C117+D117)/($B$19+C$19+D$19),0) -> 0 | L117: 0 | M117: =AL117*F117/F$19 -> 0 | N117: =IF(AND(Y117="kotoinen",Z117="karkearehu"),1,IF(AND(Y117="osto",Z117="karkearehu"),2,IF(AND(Y117="kotoinen",Z117="väkirehu"),3,IF(AND(Y117="osto",Z117="väkirehu"),4,IF(Z117="kivennäisseos",5,0))))) -> 4 | O117: =IFERROR(P117/F$18,0) -> 0 | Q117: =R117/R$19 -> 0 | R117: =IFERROR(P117/AB117*100,0) -> 0 | S117: 0 | T117: 0 | U117: 1 | V117: Puhdistamomelassi | W117: =IFERROR(Q117*W$8,0) -> 0 | X117: =IFERROR(W117*X$7/W$7,0) -> 0 | Y117: osto | Z117: väkirehu | AB117: 81 | AC117: =AB117/100*AA117 -> 0 | AD117: 13.8 | AE117: =AC117*AD117 -> 0 | AK117: =IF(AB117<>0,ROUND(AJ117/(AB117/100),2),0) -> 0 | AL117: =IF(AD117<>0,ROUND(AK117/AD117,2),0) -> 0 | AM117: =AA117*AJ117/100 -> 0 | AN117: 20 | AO117: 0 | AP117: -113 | AQ117: =AT117+AU117 -> 0 | AS117: 0 | AT117: 0 | AV117: 10 | AW117: 0.4 | AX117: 2.5 | AY117: 0.9 | AZ117: 450 | BA117: 40 | BB117: 20 | BC117: 15 | BD117: 4 | BL117: 4012 | BM117: 108 | BP117: =IFERROR(AN117*($B117+$C117+$D117)/($B$19+$C$19+$D$19),0) -> 0 | BQ117: 0 | BR117: 0 | BS117: 0 | BT117: 0 | BU117: 0 | BV117: 0 | BW117: 0 | BX117: =IFERROR(AV117*($B117+$C117+$D117)/($B$19+$C$19+$D$19),0) -> 0 | BY117: =IFERROR(AW117*($B117+$C117+$D117)/($B$19+$C$19+$D$19),0) -> 0 | BZ117: =IFERROR(AX117*($B117+$C117+$D117)/($B$19+$C$19+$D$19),0) -> 0 | CA117: =IFERROR(AY117*($B117+$C117+$D117)/($B$19+$C$19+$D$19),0) -> 0 | CB117: =IFERROR(AZ117*($B117+$C117+$D117)/($B$19+$C$19+$D$19),0) -> 0 | CC117: =IFERROR(BA117*($B117+$C117+$D117)/($B$19+$C$19+$D$19),0) -> 0 | CD117: =IFERROR(BB117*($B117+$C117+$D117)/($B$19+$C$19+$D$19),0) -> 0 | CE117: =IFERROR(BC117*($B117+$C117+$D117)/($B$19+$C$19+$D$19),0) -> 0 | CF117: =IFERROR(BD117*($B117+$C117+$D117)/($B$19+$C$19+$D$19),0) -> 0 | CG117: =IFERROR(BE117*($B117+$C117+$D117)/($B$19+$C$19+$D$19),0) -> 0 | CH117: =IFERROR(BF117*($B117+$C117+$D117)/($B$19+$C$19+$D$19),0) -> 0 | CI117: =IFERROR(BG117*($B117+$C117+$D117)/($B$19+$C$19+$D$19),0) -> 0 | CJ117: =IFERROR(BH117*($B117+$C117+$D117)/($B$19+$C$19+$D$19),0) -> 0 | EH117: 0
A118: 118 | B118: 0 | C118: 0 | D118: 0 | F118: 0 | G118: 0 | H118: 0 | I118: 0 | J118: 0 | K118: 0 | L118: 0 | M118: 0 | N118: 4 | O118: 0 | Q118: 0 | R118: 0 | S118: 0 | T118: 0 | U118: 1 | V118: Rapsin siemen | W118: 0 | X118: 0 | Y118: osto | Z118: väkirehu | AB118: 92 | AC118: 0 | AD118: 19.7 | AE118: 0 | AK118: 0 | AL118: 0 | AM118: 0 | AN118: 240 | AO118: 190 | AP118: 63 | AQ118: 0 | AS118: 0 | AV118: 4.5 | AW118: 9.4 | AX118: 3.6 | AY118: 0.1 | AZ118: 74 | BA118: 36 | BB118: 41 | BC118: 4 | BD118: 0.12 | BE118: 0.08 | BG118: 0.3 | BL118: 4013 | BM118: 109 | BP118: 0 | BQ118: 0 | BR118: 0 | BS118: 0 | BT118: 0 | BU118: 0 | BV118: 0 | BW118: 0 | BX118: 0 | BY118: 0 | BZ118: 0 | CA118: 0 | CB118: 0 | CC118: 0 | CD118: 0 | CE118: 0 | CF118: 0 | CG118: 0 | CH118: 0 | CI118: 0 | CJ118: 0 | EH118: 0
A119: 119 | B119: 0 | C119: 0 | D119: 0 | F119: 0 | G119: 0 | H119: 0 | I119: 0 | J119: 0 | K119: 0 | L119: 0 | M119: 0 | N119: 4 | O119: 0 | Q119: 0 | R119: 0 | S119: 0 | T119: 0 | U119: 1 | V119: Rehuherne, kotimainen | W119: 0 | X119: 0 | Y119: osto | Z119: väkirehu | AB119: 86 | AC119: 0 | AD119: 13.3 | AE119: 0 | AK119: 0 | AL119: 0 | AM119: 0 | AN119: 230 | AO119: 130 | AP119: 62 | AQ119: 535 | AS119: 0 | AT119: 480 | AU119: 55 | AV119: 0.9 | AW119: 5.2 | AX119: 1.3 | AY119: 0.1 | AZ119: 78 | BA119: 19 | BB119: 44 | BC119: 9 | BD119: 0.18 | BE119: 0.02 | BF119: 0.2 | BG119: 1.7 | BJ119: 10 | BL119: 3085 | BM119: 56 | BP119: 0 | BQ119: 0 | BR119: 0 | BS119: 0 | BT119: 0 | BU119: 0 | BV119: 0 | BW119: 0 | BX119: 0 | BY119: 0 | BZ119: 0 | CA119: 0 | CB119: 0 | CC119: 0 | CD119: 0 | CE119: 0 | CF119: 0 | CG119: 0 | CH119: 0 | CI119: 0 | CJ119: 0 | EH119: 0
A120: 120 | B120: 0 | C120: 0 | D120: 0 | F120: 0 | G120: 0 | H120: 0 | I120: 0 | J120: 0 | K120: 0 | L120: 0 | M120: 0 | N120: 4 | O120: 0 | Q120: 0 | R120: 0 | S120: 0 | T120: 0 | U120: 1 | V120: Rehuhiiva | W120: 0 | X120: 0 | Y120: osto | Z120: väkirehu | AB120: 92 | AC120: 0 | AD120: 12.8 | AE120: 0 | AK120: 0 | AL120: 0 | AM120: 0 | AN120: 520 | AO120: 0 | AP120: 269 | AQ120: 78 | AS120: 0 | AT120: 73 | AU120: 5 | BL120: 4014 | BM120: 57 | BP120: 0 | BQ120: 0 | BR120: 0 | BS120: 0 | BT120: 0 | BU120: 0 | BV120: 0 | BW120: 0 | BX120: 0 | BY120: 0 | BZ120: 0 | CA120: 0 | CB120: 0 | CC120: 0 | CD120: 0 | CE120: 0 | CF120: 0 | CG120: 0 | CH120: 0 | CI120: 0 | CJ120: 0 | EH120: 0
A121: 121 | B121: 0 | C121: 0 | D121: 0 | F121: 0 | G121: 0 | H121: 0 | I121: 0 | J121: 0 | K121: 0 | L121: 0 | M121: 0 | N121: 4 | O121: 0 | Q121: 0 | R121: 0 | S121: 0 | T121: 0 | U121: 1 | V121: Rehujuurikas | W121: 0 | X121: 0 | Y121: osto | Z121: väkirehu | AB121: 13 | AC121: 0 | AD121: 12.3 | AE121: 0 | AK121: 0 | AL121: 0 | AM121: 0 | AN121: 90 | AO121: 100 | AP121: -44 | AQ121: 680 | AS121: 0 | AT121: 20 | AU121: 660 | AV121: 2.3 | AW121: 1.6 | AX121: 1.3 | AY121: 1.5 | AZ121: 60 | BA121: 50 | BB121: 30 | BC121: 10 | BL121: 2031 | BM121: 110 | BP121: 0 | BQ121: 0 | BR121: 0 | BS121: 0 | BT121: 0 | BU121: 0 | BV121: 0 | BW121: 0 | BX121: 0 | BY121: 0 | BZ121: 0 | CA121: 0 | CB121: 0 | CC121: 0 | CD121: 0 | CE121: 0 | CF121: 0 | CG121: 0 | CH121: 0 | CI121: 0 | CJ121: 0 | EH121: 0
A122: 122 | B122: 0 | C122: 0 | D122: 0 | F122: 0 | G122: 0 | H122: 0 | I122: 0 | J122: 0 | K122: 0 | L122: 0 | M122: 0 | N122: 4 | O122: 0 | Q122: 0 | R122: 0 | S122: 0 | T122: 0 | U122: 1 | V122: Ruis | W122: 0 | X122: 0 | Y122: osto | Z122: väkirehu | AB122: 86 | AC122: 0 | AD122: 13.6 | AE122: 0 | AK122: 0 | AL122: 0 | AM122: 0 | AN122: 110 | AO122: 200 | AP122: -33 | AQ122: 714 | AT122: 650 | AU122: 64 | AV122: 0.4 | AW122: 3.9 | AX122: 1.2 | AY122: 0.2 | AZ122: 63 | BA122: 27 | BB122: 35 | BC122: 5 | BD122: 0.05 | BE122: 0.06 | BF122: 0.1 | BG122: 0.8 | BJ122: 18 | BL122: 4015 | BM122: 58 | BP122: 0 | BQ122: 0 | BR122: 0 | BS122: 0 | BT122: 0 | BU122: 0 | BV122: 0 | BW122: 0 | BX122: 0 | BY122: 0 | BZ122: 0 | CA122: 0 | CB122: 0 | CC122: 0 | CD122: 0 | CE122: 0 | CF122: 0 | CG122: 0 | CH122: 0 | CI122: 0 | CJ122: 0 | EH122: 0
A123: 123 | B123: 0 | C123: 0 | D123: 0 | F123: 0 | G123: 0 | H123: 0 | I123: 0 | J123: 0 | K123: 0 | L123: 0 | M123: 0 | N123: 4 | O123: 0 | Q123: 0 | R123: 0 | S123: 0 | T123: 0 | U123: 1 | V123: Ruisvehnä (Triticale) | W123: 0 | X123: 0 | Y123: osto | Z123: väkirehu | AB123: 86 | AC123: 0 | AD123: 13.7 | AE123: 0 | AK123: 0 | AL123: 0 | AM123: 0 | AN123: 106 | AO123: 190 | AP123: -36 | AQ123: 680 | AT123: 625 | AU123: 55 | AV123: 0.6 | AW123: 3.7 | AX123: 1.2 | AY123: 0.2 | AZ123: 37 | BA123: 42 | BB123: 41 | BC123: 6 | BD123: 0.01 | BE123: 0.03 | BF123: 0.1 | BG123: 0.5 | BL123: 4016 | BM123: 111 | BP123: 0 | BQ123: 0 | BR123: 0 | BS123: 0 | BT123: 0 | BU123: 0 | BV123: 0 | BW123: 0 | BX123: 0 | BY123: 0 | BZ123: 0 | CA123: 0 | CB123: 0 | CC123: 0 | CD123: 0 | CE123: 0 | CF123: 0 | CG123: 0 | CH123: 0 | CI123: 0 | CJ123: 0 | EH123: 0
A124: 124 | B124: 0 | C124: 0 | D124: 0 | F124: 0 | G124: 0 | H124: 0 | I124: 0 | J124: 0 | K124: 0 | L124: 0 | M124: 0 | N124: 4 | O124: 0 | Q124: 0 | R124: 0 | S124: 0 | T124: 0 | U124: 1 | V124: Rypsi- ja rapsipuriste, 00-laj.,lämpök. | W124: 0 | X124: 0 | Y124: osto | Z124: väkirehu | AB124: 91 | AC124: 0 | AD124: 12.3 | AE124: 0 | AK124: 0 | AL124: 0 | AM124: 0 | AN124: 358 | AO124: 300 | AP124: 131 | AQ124: 109 | AS124: 0 | AT124: 37 | AU124: 72 | AV124: 8.1 | AW124: 11.7 | AX124: 4.8 | AY124: 0.5 | AZ124: 112 | BA124: 61 | BB124: 59 | BC124: 6 | BE124: 0.1 | BL124: 3013 | BM124: 112 | BP124: 0 | BQ124: 0 | BR124: 0 | BS124: 0 | BT124: 0 | BU124: 0 | BV124: 0 | BW124: 0 | BX124: 0 | BY124: 0 | BZ124: 0 | CA124: 0 | CB124: 0 | CC124: 0 | CD124: 0 | CE124: 0 | CF124: 0 | CG124: 0 | CH124: 0 | CI124: 0 | CJ124: 0 | EH124: 0
A125: 125 | B125: 0 | C125: 0 | D125: 0 | F125: 0 | G125: 0 | H125: 0 | I125: 0 | J125: 0 | K125: 0 | L125: 0 | M125: 0 | N125: 4 | O125: 0 | Q125: 0 | R125: 0 | S125: 0 | T125: 0 | U125: 1 | V125: Rypsi- ja rapsirouhe, 00-lajike | W125: 0 | X125: 0 | Y125: osto | Z125: väkirehu | AB125: 89 | AC125: 0 | AD125: 11.4 | AE125: 0 | AK125: 0 | AL125: 0 | AM125: 0 | AN125: 379 | AO125: 270 | AP125: 154 | AQ125: 132 | AS125: 0 | AT125: 45 | AU125: 87 | AV125: 8.3 | AW125: 13.2 | AX125: 5.2 | AY125: 0.2 | AZ125: 192 | BA125: 70 | BB125: 67 | BC125: 6 | BD125: 0.15 | BE125: 0.1 | BF125: 0.7 | BG125: 0.6 | BJ125: 50 | BL125: 1013 | BM125: 113 | BP125: 0 | BQ125: 0 | BR125: 0 | BS125: 0 | BT125: 0 | BU125: 0 | BV125: 0 | BW125: 0 | BX125: 0 | BY125: 0 | BZ125: 0 | CA125: 0 | CB125: 0 | CC125: 0 | CD125: 0 | CE125: 0 | CF125: 0 | CG125: 0 | CH125: 0 | CI125: 0 | CJ125: 0 | EH125: 0
A126: 126 | B126: 0 | C126: 0 | D126: 0 | F126: 0 | G126: 0 | H126: 0 | I126: 0 | J126: 0 | K126: 0 | L126: 0 | M126: 0 | N126: 4 | O126: 0 | Q126: 0 | R126: 0 | S126: 0 | T126: 0 | U126: 1 | V126: Rypsin siemen | W126: 0 | X126: 0 | Y126: osto | Z126: väkirehu | AB126: 92 | AC126: 0 | AD126: 19 | AE126: 0 | AK126: 0 | AL126: 0 | AM126: 0 | AN126: 235 | AO126: 200 | AP126: 60 | AQ126: 0 | AS126: 0 | AV126: 4.5 | AW126: 9.4 | AX126: 3.6 | AY126: 0.1 | AZ126: 74 | BA126: 36 | BB126: 41 | BC126: 4 | BD126: 0.1 | BE126: 0.1 | BG126: 0.3 | BL126: 4221 | BM126: 114 | BP126: 0 | BQ126: 0 | BR126: 0 | BS126: 0 | BT126: 0 | BU126: 0 | BV126: 0 | BW126: 0 | BX126: 0 | BY126: 0 | BZ126: 0 | CA126: 0 | CB126: 0 | CC126: 0 | CD126: 0 | CE126: 0 | CF126: 0 | CG126: 0 | CH126: 0 | CI126: 0 | CJ126: 0 | EH126: 0
A127: 127 | B127: 0 | C127: 0 | D127: 0 | F127: 0 | G127: 0 | H127: 0 | I127: 0 | J127: 0 | K127: 0 | L127: 0 | M127: 0 | N127: 4 | O127: 0 | Q127: 0 | R127: 0 | S127: 0 | T127: 0 | U127: 1 | V127: Rypsipuriste, kylmäpuristettu | W127: 0 | X127: 0 | Y127: osto | Z127: väkirehu | AB127: 91 | AC127: 0 | AD127: 15.6 | AE127: 0 | AK127: 0 | AL127: 0 | AM127: 0 | AN127: 309 | AO127: 230 | AP127: 106 | AQ127: 0 | AS127: 0 | AV127: 7.4 | AW127: 11 | AX127: 4.6 | AY127: 0.7 | AZ127: 114 | BA127: 54 | BB127: 54 | BC127: 6 | BE127: 0.1 | BL127: 5001 | BM127: 115 | BP127: 0 | BQ127: 0 | BR127: 0 | BS127: 0 | BT127: 0 | BU127: 0 | BV127: 0 | BW127: 0 | BX127: 0 | BY127: 0 | BZ127: 0 | CA127: 0 | CB127: 0 | CC127: 0 | CD127: 0 | CE127: 0 | CF127: 0 | CG127: 0 | CH127: 0 | CI127: 0 | CJ127: 0 | EH127: 0
A128: 128 | B128: 0 | C128: 0 | D128: 0 | F128: 0 | G128: 0 | H128: 0 | I128: 0 | J128: 0 | K128: 0 | L128: 0 | M128: 0 | N128: 4 | O128: 0 | Q128: 0 | R128: 0 | S128: 0 | T128: 0 | U128: 1 | V128: Seosmelassi 40, juurikasmelassipohjainen | W128: 0 | X128: 0 | Y128: osto | Z128: väkirehu | AB128: 74 | AC128: 0 | AD128: 12.3 | AE128: 0 | AK128: 0 | AL128: 0 | AM128: 0 | AN128: 200 | AO128: 0 | AP128: 73 | AQ128: 540 | AS128: 0 | AT128: 0 | AU128: 540 | AV128: 3 | AW128: 0.3 | AX128: 0.3 | AY128: 9.8 | AZ128: 170 | BA128: 30 | BB128: 30 | BC128: 9 | BD128: 0.7 | BL128: 5011 | BM128: 116 | BP128: 0 | BQ128: 0 | BR128: 0 | BS128: 0 | BT128: 0 | BU128: 0 | BV128: 0 | BW128: 0 | BX128: 0 | BY128: 0 | BZ128: 0 | CA128: 0 | CB128: 0 | CC128: 0 | CD128: 0 | CE128: 0 | CF128: 0 | CG128: 0 | CH128: 0 | CI128: 0 | CJ128: 0 | EH128: 0
A129: 129 | B129: 0 | C129: 0 | D129: 0 | F129: 0 | G129: 0 | H129: 0 | I129: 0 | J129: 0 | K129: 0 | L129: 0 | M129: 0 | N129: 4 | O129: 0 | Q129: 0 | R129: 0 | S129: 0 | T129: 0 | U129: 1 | V129: Seosmelassi 44, juurikasmelassipohjainen | W129: 0 | X129: 0 | Y129: osto | Z129: väkirehu | AB129: 74 | AC129: 0 | AD129: 12.6 | AE129: 0 | AK129: 0 | AL129: 0 | AM129: 0 | AN129: 137 | AO129: 0 | AP129: 10 | AQ129: 595 | AS129: 0 | AT129: 0 | AU129: 595 | AV129: 3 | AW129: 0.3 | AX129: 0.3 | AY129: 9.8 | AZ129: 170 | BA129: 30 | BB129: 30 | BC129: 9 | BD129: 0.7 | BL129: 5012 | BM129: 117 | BP129: 0 | BQ129: 0 | BR129: 0 | BS129: 0 | BT129: 0 | BU129: 0 | BV129: 0 | BW129: 0 | BX129: 0 | BY129: 0 | BZ129: 0 | CA129: 0 | CB129: 0 | CC129: 0 | CD129: 0 | CE129: 0 | CF129: 0 | CG129: 0 | CH129: 0 | CI129: 0 | CJ129: 0 | EH129: 0
A130: 130 | B130: 0 | C130: 0 | D130: 0 | F130: 0 | G130: 0 | H130: 0 | I130: 0 | J130: 0 | K130: 0 | L130: 0 | M130: 0 | N130: 4 | O130: 0 | Q130: 0 | R130: 0 | S130: 0 | T130: 0 | U130: 1 | V130: Seosvilja (ohra ja kaura, 1:1) | W130: 0 | X130: 0 | Y130: osto | Z130: väkirehu | AB130: 86 | AC130: 0 | AD130: 12.8 | AE130: 0 | AK130: 0 | AL130: 0 | AM130: 0 | AN130: 130 | AO130: 245 | AP130: -13 | AQ130: 549 | AS130: 0 | AT130: 530 | AU130: 19 | AV130: 0.7 | AW130: 4.1 | AX130: 1.4 | AY130: 0.1 | AZ130: 51 | BA130: 45 | BB130: 40 | BC130: 6 | BD130: 0.1 | BE130: 0.09 | BF130: 0.2 | BG130: 0.4 | BL130: 3086 | BM130: 118 | BP130: 0 | BQ130: 0 | BR130: 0 | BS130: 0 | BT130: 0 | BU130: 0 | BV130: 0 | BW130: 0 | BX130: 0 | BY130: 0 | BZ130: 0 | CA130: 0 | CB130: 0 | CC130: 0 | CD130: 0 | CE130: 0 | CF130: 0 | CG130: 0 | CH130: 0 | CI130: 0 | CJ130: 0 | EH130: 0
A131: 131 | B131: 0 | C131: 0 | D131: 0 | F131: 0 | G131: 0 | H131: 0 | I131: 0 | J131: 0 | K131: 0 | L131: 0 | M131: 0 | N131: 4 | O131: 0 | Q131: 0 | R131: 0 | S131: =IF(Z131="karkearehu",1,0) -> 0 | T131: =S131*X131 -> 0 | U131: 1 | V131: Soijapuriste | W131: 0 | X131: 0 | Y131: osto | Z131: väkirehu | AB131: 89 | AC131: 0 | AD131: 13.9 | AE131: 0 | AK131: 0 | AL131: 0 | AM131: 0 | AN131: 493 | AO131: 115 | AP131: 264 | AQ131: 177 | AS131: 0 | AT131: 77 | AU131: 100 | AV131: 2.3 | AW131: 6.1 | AX131: 3.1 | AY131: 0.1 | AZ131: 206 | BA131: 35 | BB131: 50 | BC131: 14 | BL131: 5013 | BM131: 119 | BP131: 0 | BQ131: 0 | BR131: 0 | BS131: 0 | BT131: 0 | BU131: 0 | BV131: 0 | BW131: 0 | BX131: 0 | BY131: 0 | BZ131: 0 | CA131: 0 | CB131: 0 | CC131: 0 | CD131: 0 | CE131: 0 | CF131: 0 | CG131: 0 | CH131: 0 | CI131: 0 | CJ131: 0 | EH131: 0
A132: 132 | B132: 0 | C132: 0 | D132: 0 | F132: 0 | G132: 0 | H132: 0 | I132: 0 | J132: 0 | K132: 0 | L132: 0 | M132: 0 | N132: 4 | O132: 0 | Q132: 0 | R132: 0 | S132: 0 | T132: 0 | U132: 1 | V132: Soijarouhe ja soijajauho | W132: 0 | X132: 0 | Y132: osto | Z132: väkirehu | AB132: 88 | AC132: 0 | AD132: 13 | AE132: 0 | AK132: 0 | AL132: 0 | AM132: 0 | AN132: 520 | AO132: 120 | AP132: 285 | AQ132: 169 | AS132: 0 | AT132: 74 | AU132: 95 | AV132: 3 | AW132: 7 | AX132: 3.3 | AY132: 0.3 | AZ132: 206 | BA132: 42 | BB132: 56 | BC132: 16 | BD132: 0.11 | BE132: 0.16 | BF132: 0.2 | BG132: 4.2 | BJ132: 10 | BL132: 5014 | BM132: 120 | BP132: 0 | BQ132: 0 | BR132: 0 | BS132: 0 | BT132: 0 | BU132: 0 | BV132: 0 | BW132: 0 | BX132: 0 | BY132: 0 | BZ132: 0 | CA132: 0 | CB132: 0 | CC132: 0 | CD132: 0 | CE132: 0 | CF132: 0 | CG132: 0 | CH132: 0 | CI132: 0 | CJ132: 0 | EH132: 0
A133: 133 | B133: 0 | C133: 0 | D133: 0 | F133: 0 | G133: 0 | H133: 0 | I133: 0 | J133: 0 | K133: 0 | L133: 0 | M133: 0 | N133: 4 | O133: 0 | Q133: 0 | R133: 0 | S133: 0 | T133: 0 | U133: 1 | V133: Sokerijuurikasleike, kuivattu | W133: 0 | X133: 0 | Y133: osto | Z133: väkirehu | AB133: 90 | AC133: 0 | AD133: 12 | AE133: 0 | AK133: 0 | AL133: 0 | AM133: 0 | AN133: 110 | AO133: 450 | AP133: -47 | AQ133: 70 | AS133: 0 | AT133: 0 | AU133: 70 | AV133: 7 | AW133: 1 | AX133: 1.4 | AY133: 0.8 | AZ133: 1800 | BA133: 40 | BB133: 45 | BC133: 26 | BD133: 2 | BL133: 5015 | BM133: 121 | BP133: =IFERROR(AN133*($B133+$C133+$D133)/($B$19+$C$19+$D$19),0) -> 0 | BQ133: 0 | BR133: 0 | BS133: 0 | BT133: 0 | BU133: 0 | BV133: 0 | BW133: 0 | BX133: 0 | BY133: 0 | BZ133: 0 | CA133: 0 | CB133: 0 | CC133: 0 | CD133: 0 | CE133: 0 | CF133: 0 | CG133: 0 | CH133: 0 | CI133: 0 | CJ133: 0 | EH133: 0
A134: 134 | B134: 0 | C134: 0 | D134: 0 | F134: 0 | G134: 0 | H134: 0 | I134: 0 | J134: 0 | K134: 0 | L134: 0 | M134: 0 | N134: 4 | O134: 0 | Q134: 0 | R134: 0 | S134: 0 | T134: 0 | U134: 1 | V134: Sokerijuurikasleike, puristettu | W134: 0 | X134: 0 | Y134: osto | Z134: väkirehu | AB134: 26 | AC134: 0 | AD134: 11.9 | AE134: 0 | AK134: 0 | AL134: 0 | AM134: 0 | AN134: 110 | AO134: 450 | AP134: -46 | AQ134: 0 | AS134: 0 | AT134: 0 | AV134: 8.8 | AW134: 0.8 | AX134: 1.7 | AY134: 1.4 | BL134: 3014 | BM134: 122 | BP134: 0 | BQ134: 0 | BR134: 0 | BS134: 0 | BT134: 0 | BU134: 0 | BV134: 0 | BW134: 0 | BX134: 0 | BY134: 0 | BZ134: 0 | CA134: 0 | CB134: 0 | CC134: 0 | CD134: 0 | CE134: 0 | CF134: 0 | CG134: 0 | CH134: 0 | CI134: 0 | CJ134: 0 | EH134: 0
A135: 135 | B135: 0 | C135: 0 | D135: 0 | F135: 0 | G135: 0 | H135: 0 | I135: 0 | J135: 0 | K135: 0 | L135: 0 | M135: 0 | N135: 4 | O135: 0 | Q135: 0 | R135: 0 | S135: 0 | T135: 0 | U135: 1 | V135: Sokerijuurikasmelassi | W135: 0 | X135: 0 | Y135: osto | Z135: väkirehu | AB135: 78 | AC135: 0 | AD135: 12.8 | AE135: 0 | AK135: 0 | AL135: 0 | AM135: 0 | AN135: 170 | AO135: 0 | AP135: 40 | AQ135: 650 | AS135: 0 | AT135: 0 | AU135: 650 | AV135: 3 | AW135: 0.3 | AX135: 0.3 | AY135: 9.8 | AZ135: 170 | BA135: 30 | BB135: 30 | BC135: 9 | BD135: 0.7 | BL135: 3015 | BM135: 123 | BP135: 0 | BQ135: 0 | BR135: 0 | BS135: 0 | BT135: 0 | BU135: 0 | BV135: 0 | BW135: 0 | BX135: 0 | BY135: 0 | BZ135: 0 | CA135: 0 | CB135: 0 | CC135: 0 | CD135: 0 | CE135: 0 | CF135: 0 | CG135: 0 | CH135: 0 | CI135: 0 | CJ135: 0 | EH135: 0
A136: 136 | B136: 0 | C136: 0 | D136: 0 | F136: 0 | G136: 0 | H136: 0 | I136: 0 | J136: 0 | K136: 0 | L136: 0 | M136: 0 | N136: 4 | O136: 0 | Q136: 0 | R136: 0 | S136: 0 | T136: 0 | U136: 1 | V136: Suojattu rasva (Ca-rasvahappojen suola) | W136: 0 | X136: 0 | Y136: osto | Z136: väkirehu | AB136: 99 | AC136: 0 | AD136: 27.6165 | AE136: 0 | AK136: 0 | AL136: 0 | AM136: 0 | AN136: 0 | AO136: 0 | AP136: -117 | AQ136: 0 | AS136: 0 | AT136: 0 | AU136: 0 | BK136: Tälle rehulle ei löytynyt vastaavaa rehua MTT:n kivennäistaulkosta | BL136: 10001 | BM136: 124 | BP136: 0 | BQ136: 0 | BR136: 0 | BS136: 0 | BT136: 0 | BU136: 0 | BV136: 0 | BW136: 0 | BX136: 0 | BY136: 0 | BZ136: 0 | CA136: 0 | CB136: 0 | CC136: 0 | CD136: 0 | CE136: 0 | CF136: 0 | CG136: 0 | CH136: 0 | CI136: 0 | CJ136: 0 | EH136: 0
A137: 137 | B137: 0 | C137: 0 | D137: 0 | F137: 0 | G137: 0 | H137: 0 | I137: 0 | J137: 0 | K137: 0 | L137: 0 | M137: 0 | N137: 4 | O137: 0 | Q137: 0 | R137: 0 | S137: 0 | T137: 0 | U137: 1 | V137: Tiivistetty tärkkelysrankki (ohra) | W137: 0 | X137: 0 | Y137: osto | Z137: väkirehu | AB137: 26 | AC137: 0 | AD137: 13.1 | AE137: 0 | AK137: 0 | AL137: 0 | AM137: 0 | AN137: 260 | AO137: 2 | AP137: 89 | AQ137: 50 | AS137: 0 | AT137: 50 | AV137: 1.9 | AW137: 15 | AX137: 6.5 | AY137: 5 | AZ137: 120 | BA137: 80 | BB137: 130 | BC137: 13 | BD137: 0.12 | BE137: 0.09 | BJ137: 13 | BL137: 3016 | BM137: 125 | BP137: 0 | BQ137: 0 | BR137: 0 | BS137: 0 | BT137: 0 | BU137: 0 | BV137: 0 | BW137: 0 | BX137: 0 | BY137: 0 | BZ137: 0 | CA137: 0 | CB137: 0 | CC137: 0 | CD137: 0 | CE137: 0 | CF137: 0 | CG137: 0 | CH137: 0 | CI137: 0 | CJ137: 0 | EH137: 0
A138: 138 | B138: 0 | C138: 0 | D138: 0 | F138: 0 | G138: 0 | H138: 0 | I138: 0 | J138: 0 | K138: 0 | L138: 0 | M138: 0 | N138: 4 | O138: 0 | Q138: 0 | R138: 0 | S138: 0 | T138: 0 | U138: 1 | V138: Tärkkelysrankki (ohra) | W138: 0 | X138: 0 | Y138: osto | Z138: väkirehu | AB138: 10 | AC138: 0 | AD138: 13.1 | AE138: 0 | AK138: 0 | AL138: 0 | AM138: 0 | AN138: 380 | AO138: 5 | AP138: 183 | AQ138: 0 | AS138: 0 | AV138: 1.9 | AW138: 15 | AX138: 6.5 | AY138: 5 | AZ138: 120 | BA138: 80 | BB138: 130 | BC138: 13 | BD138: 0.12 | BE138: 0.09 | BL138: 10002 | BM138: 126 | BP138: 0 | BQ138: 0 | BR138: 0 | BS138: 0 | BT138: 0 | BU138: 0 | BV138: 0 | BW138: 0 | BX138: 0 | BY138: 0 | BZ138: 0 | CA138: 0 | CB138: 0 | CC138: 0 | CD138: 0 | CE138: 0 | CF138: 0 | CG138: 0 | CH138: 0 | CI138: 0 | CJ138: 0 | EH138: 0
A139: 139 | B139: 0 | C139: 0 | D139: 0 | F139: 0 | G139: 0 | H139: 0 | I139: 0 | J139: 0 | K139: 0 | L139: 0 | M139: 0 | N139: 4 | O139: 0 | Q139: 0 | R139: 0 | S139: 0 | T139: 0 | U139: 1 | V139: Urea | W139: 0 | X139: 0 | Y139: osto | Z139: väkirehu | AB139: 100 | AC139: 0 | AE139: 0 | AK139: 0 | AL139: 0 | AM139: 0 | AN139: 2874 | AO139: 0 | AP139: 2874 | AQ139: 0 | AS139: 0 | AT139: 0 | AU139: 0 | BK139: Tälle rehulle ei löytynyt vastaavaa rehua MTT:n kivennäistaulkosta | BL139: 10003 | BM139: 59 | BP139: 0 | BQ139: 0 | BR139: 0 | BS139: 0 | BT139: 0 | BU139: 0 | BV139: 0 | BW139: 0 | BX139: 0 | BY139: 0 | BZ139: 0 | CA139: 0 | CB139: 0 | CC139: 0 | CD139: 0 | CE139: 0 | CF139: 0 | CG139: 0 | CH139: 0 | CI139: 0 | CJ139: 0 | EH139: 0
A140: 140 | B140: 0 | C140: 0 | D140: 0 | F140: 0 | G140: 0 | H140: 0 | I140: 0 | J140: 0 | K140: 0 | L140: 0 | M140: 0 | N140: 4 | O140: 0 | Q140: 0 | R140: 0 | S140: 0 | T140: 0 | U140: 1 | V140: Vehnä, 45 - 60 kg/hl | W140: 0 | X140: 0 | Y140: osto | Z140: väkirehu | AB140: 86 | AC140: 0 | AD140: 12.7 | AE140: 0 | AK140: 0 | AL140: 0 | AM140: 0 | AN140: 120 | AO140: 200 | AP140: -15 | AQ140: 610 | AS140: 0 | AT140: 580 | AU140: 30 | AV140: 0.5 | AW140: 4.5 | AX140: 1.6 | AY140: 0.1 | AZ140: 63 | BA140: 71 | BB140: 50 | BC140: 6 | BD140: 0.02 | BE140: 0.14 | BF140: 0.3 | BG140: 0.2 | BL140: 3017 | BM140: 60 | BP140: 0 | BQ140: 0 | BR140: 0 | BS140: 0 | BT140: 0 | BU140: 0 | BV140: 0 | BW140: 0 | BX140: 0 | BY140: 0 | BZ140: 0 | CA140: 0 | CB140: 0 | CC140: 0 | CD140: 0 | CE140: 0 | CF140: 0 | CG140: 0 | CH140: 0 | CI140: 0 | CJ140: 0 | EH140: 0
A141: 141 | B141: 0 | C141: 0 | D141: 0 | F141: 0 | G141: 0 | H141: 0 | I141: 0 | J141: 0 | K141: 0 | L141: 0 | M141: 0 | N141: 4 | O141: 0 | Q141: 0 | R141: 0 | S141: 0 | T141: 0 | U141: 1 | V141: Vehnä, 60 - 72 kg/hl | W141: 0 | X141: 0 | Y141: osto | Z141: väkirehu | AB141: 86 | AC141: 0 | AD141: 13.4 | AE141: 0 | AK141: 0 | AL141: 0 | AM141: 0 | AN141: 125 | AO141: 180 | AP141: -17 | AQ141: 640 | AS141: 0 | AT141: 610 | AU141: 30 | AV141: 0.5 | AW141: 4.5 | AX141: 1.6 | AY141: 0.1 | AZ141: 63 | BA141: 71 | BB141: 50 | BC141: 6 | BD141: 0.02 | BE141: 0.14 | BF141: 0.3 | BG141: 0.2 | BL141: 3018 | BM141: 127 | BP141: 0 | BQ141: 0 | BR141: 0 | BS141: 0 | BT141: 0 | BU141: 0 | BV141: 0 | BW141: 0 | BX141: 0 | BY141: 0 | BZ141: 0 | CA141: 0 | CB141: 0 | CC141: 0 | CD141: 0 | CE141: 0 | CF141: 0 | CG141: 0 | CH141: 0 | CI141: 0 | CJ141: 0 | EH141: 0
A142: 142 | B142: 0 | C142: 0 | D142: 0 | F142: 0 | G142: 0 | H142: 0 | I142: 0 | J142: 0 | K142: 0 | L142: 0 | M142: 0 | N142: 4 | O142: 0 | Q142: 0 | R142: 0 | S142: 0 | T142: 0 | U142: 1 | V142: Vehnä, 72 - 76 kg/hl | W142: 0 | X142: 0 | Y142: osto | Z142: väkirehu | AB142: 86 | AC142: 0 | AD142: 13.6 | AE142: 0 | AK142: 0 | AL142: 0 | AM142: 0 | AN142: 125 | AO142: 150 | AP142: -19 | AQ142: 680 | AS142: 0 | AT142: 650 | AU142: 30 | AV142: 0.5 | AW142: 4.5 | AX142: 1.6 | AY142: 0.1 | AZ142: 63 | BA142: 71 | BB142: 50 | BC142: 6 | BD142: 0.02 | BE142: 0.14 | BF142: 0.3 | BG142: 0.2 | BL142: 90001 | BM142: 61 | BP142: 0 | BQ142: 0 | BR142: 0 | BS142: 0 | BT142: 0 | BU142: 0 | BV142: 0 | BW142: 0 | BX142: 0 | BY142: 0 | BZ142: 0 | CA142: 0 | CB142: 0 | CC142: 0 | CD142: 0 | CE142: 0 | CF142: 0 | CG142: 0 | CH142: 0 | CI142: 0 | CJ142: 0 | EH142: 0
A143: 143 | B143: 0 | C143: 0 | D143: 0 | F143: 0 | G143: 0 | H143: 0 | I143: 0 | J143: 0 | K143: 0 | L143: 0 | M143: 0 | N143: 4 | O143: 0 | Q143: 0 | R143: 0 | S143: 0 | T143: 0 | U143: 1 | V143: Vehnä, yli 76 kg/hl | W143: 0 | X143: 0 | Y143: osto | Z143: väkirehu | AB143: 86 | AC143: 0 | AD143: 13.7 | AE143: 0 | AK143: 0 | AL143: 0 | AM143: 0 | AN143: 125 | AO143: 110 | AP143: -20 | AQ143: 710 | AS143: 0 | AT143: 680 | AU143: 30 | AV143: 0.5 | AW143: 4.5 | AX143: 1.6 | AY143: 0.1 | AZ143: 63 | BA143: 71 | BB143: 50 | BC143: 6 | BD143: 0.02 | BE143: 0.14 | BF143: 0.3 | BG143: 0.2 | BJ143: 15 | BL143: 3019 | BM143: 128 | BP143: 0 | BQ143: 0 | BR143: 0 | BS143: 0 | BT143: 0 | BU143: 0 | BV143: 0 | BW143: 0 | BX143: 0 | BY143: 0 | BZ143: 0 | CA143: 0 | CB143: 0 | CC143: 0 | CD143: 0 | CE143: 0 | CF143: 0 | CG143: 0 | CH143: 0 | CI143: 0 | CJ143: 0 | EH143: 0
A144: 144 | B144: 0 | C144: 0 | D144: 0 | F144: 0 | G144: 0 | H144: 0 | I144: 0 | J144: 0 | K144: 0 | L144: 0 | M144: 0 | N144: 4 | O144: 0 | Q144: 0 | R144: 0 | S144: 0 | T144: 0 | U144: 1 | V144: Vehnägluteeni | W144: 0 | X144: 0 | Y144: osto | Z144: väkirehu | AB144: 92 | AC144: 0 | AD144: 13.4 | AE144: 0 | AK144: 0 | AL144: 0 | AM144: 0 | AN144: 840 | AO144: 0 | AP144: 493 | AQ144: 0 | AS144: 0 | AT144: 0 | AU144: 0 | AV144: 0.6 | AW144: 1.8 | BL144: 90010 | BM144: 129 | BP144: 0 | BQ144: 0 | BR144: 0 | BS144: 0 | BT144: 0 | BU144: 0 | BV144: 0 | BW144: 0 | BX144: 0 | BY144: 0 | BZ144: 0 | CA144: 0 | CB144: 0 | CC144: 0 | CD144: 0 | CE144: 0 | CF144: 0 | CG144: 0 | CH144: 0 | CI144: 0 | CJ144: 0 | EH144: 0
A145: 145 | B145: 0 | C145: 0 | D145: 0 | F145: 0 | G145: 0 | H145: 0 | I145: 0 | J145: 0 | K145: 0 | L145: 0 | M145: 0 | N145: 4 | O145: 0 | Q145: 0 | R145: 0 | S145: 0 | T145: 0 | U145: 1 | V145: Vehnälese | W145: 0 | X145: 0 | Y145: osto | Z145: väkirehu | AB145: 87 | AC145: 0 | AD145: 11.2 | AE145: 0 | AK145: 0 | AL145: 0 | AM145: 0 | AN145: 170 | AO145: 420 | AP145: 38 | AQ145: 220 | AS145: 0 | AT145: 156 | AU145: 64 | AV145: 0.9 | AW145: 12.8 | AX145: 5.5 | AY145: 0.5 | AZ145: 216 | BA145: 174 | BB145: 337 | BC145: 17 | BD145: 0.08 | BE145: 0.11 | BF145: 0.1 | BG145: 0.2 | BH145: 5 | BJ145: 25 | BL145: 90011 | BM145: 62 | BP145: 0 | BQ145: 0 | BR145: 0 | BS145: 0 | BT145: 0 | BU145: 0 | BV145: 0 | BW145: 0 | BX145: 0 | BY145: 0 | BZ145: 0 | CA145: 0 | CB145: 0 | CC145: 0 | CD145: 0 | CE145: 0 | CF145: 0 | CG145: 0 | CH145: 0 | CI145: 0 | CJ145: 0 | EH145: 0
A146: 146 | B146: 0 | C146: 0 | D146: 0 | F146: 0 | G146: 0 | H146: 0 | I146: 0 | J146: 0 | K146: 0 | L146: 0 | M146: 0 | N146: 4 | O146: 0 | Q146: 0 | R146: 0 | S146: 0 | T146: 0 | U146: 1 | V146: Vehnärehujauho | W146: 0 | X146: 0 | Y146: osto | Z146: väkirehu | AB146: 88 | AC146: 0 | AD146: 13.7 | AE146: 0 | AK146: 0 | AL146: 0 | AM146: 0 | AN146: 165 | AO146: 180 | AP146: 16 | AQ146: 551 | AS146: 0 | AT146: 482 | AU146: 69 | AV146: 0.7 | AW146: 9.5 | AX146: 3.5 | AZ146: 150 | BA146: 150 | BB146: 110 | BC146: 14 | BD146: 0.05 | BH146: 3 | BJ146: 30 | BL146: 90021 | BM146: 63 | BP146: 0 | BQ146: 0 | BR146: 0 | BS146: 0 | BT146: 0 | BU146: 0 | BV146: 0 | BW146: 0 | BX146: 0 | BY146: 0 | BZ146: 0 | CA146: 0 | CB146: 0 | CC146: 0 | CD146: 0 | CE146: 0 | CF146: 0 | CG146: 0 | CH146: 0 | CI146: 0 | CJ146: 0 | EH146: 0
A147: 147 | B147: 0 | C147: 0 | D147: 0 | F147: 0 | G147: 0 | H147: 0 | I147: 0 | J147: 0 | K147: 0 | L147: 0 | M147: 0 | N147: 0 | O147: 0 | Q147: 0 | R147: 0 | S147: 0 | T147: 0 | U147: 0 | W147: 0 | X147: 0 | AC147: 0 | AE147: 0 | AK147: 0 | AL147: 0 | AM147: 0 | AQ147: 0 | BM147: 130 | BP147: 0 | BQ147: 0 | BR147: 0 | BS147: 0 | BT147: 0 | BU147: 0 | BV147: 0 | BW147: 0 | BX147: 0 | BY147: 0 | BZ147: 0 | CA147: 0 | CB147: 0 | CC147: 0 | CD147: 0 | CE147: 0 | CF147: 0 | CG147: 0 | CH147: 0 | CI147: 0 | CJ147: 0 | EH147: 0
A148: 148 | B148: 0 | C148: 0 | D148: 0 | F148: 0 | G148: 0 | H148: 0 | I148: 0 | J148: 0 | K148: 0 | L148: 0 | M148: 0 | N148: 0 | O148: 0 | Q148: 0 | R148: 0 | S148: 0 | T148: 0 | U148: 0 | W148: 0 | X148: 0 | AC148: 0 | AE148: 0 | AK148: 0 | AL148: 0 | AM148: 0 | AQ148: 0 | BM148: 64 | BP148: 0 | BQ148: 0 | BR148: 0 | BS148: 0 | BT148: 0 | BU148: 0 | BV148: 0 | BW148: 0 | BX148: 0 | BY148: 0 | BZ148: 0 | CA148: 0 | CB148: 0 | CC148: 0 | CD148: 0 | CE148: 0 | CF148: 0 | CG148: 0 | CH148: 0 | CI148: 0 | CJ148: 0 | EH148: 0
A149: 149 | B149: =IF(N149=3,P149,IF(N149=4,P149,0)) -> 0 | C149: =IF(N149=1,P149,IF(N149=2,P149,0)) -> 0 | D149: =IF(N149=5,P149,0) -> 0 | F149: =IFERROR(AD149*U149*(B149+C149+D149)/(B$19+C$19+D$19),0) -> 0 | G149: 0 | H149: 0 | I149: =IFERROR(AS149*U149*C149/(B$19+C$19+D$19),0) -> 0 | J149: =IFERROR(AN149*U149*(B149+C149+D149)/($B$19+$C$19+$D$19),0) -> 0 | K149: =IFERROR(AQ149*U149*(B149+C149+D149)/($B$19+C$19+D$19),0) -> 0 | L149: =IFERROR(AK149*U149*(B149+C149+D149)/(B$19+C$19+D$19),0) -> 0 | M149: =AL149*F149/F$19 -> 0 | N149: =IF(AND(Y149="kotoinen",Z149="karkearehu"),1,IF(AND(Y149="osto",Z149="karkearehu"),2,IF(AND(Y149="kotoinen",Z149="väkirehu"),3,IF(AND(Y149="osto",Z149="väkirehu"),4,IF(Z149="kivennäisseos",5,0))))) -> 0 | O149: =IFERROR(P149/F$18,0) -> 0 | Q149: =R149/R$19 -> 0 | R149: =IFERROR(P149/AB149*100,0) -> 0 | S149: 0 | T149: 0 | U149: 0 | W149: =IFERROR(Q149*W$8,0) -> 0 | X149: =IFERROR(W149*X$7/W$7,0) -> 0 | AC149: =AB149/100*AA149 -> 0 | AE149: =AC149*AD149 -> 0 | AK149: =IF(AB149<>0,ROUND(AJ149/(AB149/100),2),0) -> 0 | AL149: =IF(AD149<>0,ROUND(AK149/AD149,2),0) -> 0 | AM149: =AA149*AJ149/100 -> 0 | AQ149: =AT149+AU149 -> 0 | BM149: 131 | BP149: =IFERROR(AN149*($B149+$C149+$D149)/($B$19+$C$19+$D$19),0) -> 0 | BQ149: 0 | BR149: 0 | BS149: 0 | BT149: =IFERROR(AR149*($B149+$C149+$D149)/($C$19),0) -> 0 | BU149: 0 | BV149: 0 | BW149: 0 | BX149: =IFERROR(AV149*($B149+$C149+$D149)/($B$19+$C$19+$D$19),0) -> 0 | BY149: =IFERROR(AW149*($B149+$C149+$D149)/($B$19+$C$19+$D$19),0) -> 0 | BZ149: =IFERROR(AX149*($B149+$C149+$D149)/($B$19+$C$19+$D$19),0) -> 0 | CA149: =IFERROR(AY149*($B149+$C149+$D149)/($B$19+$C$19+$D$19),0) -> 0 | CB149: =IFERROR(AZ149*($B149+$C149+$D149)/($B$19+$C$19+$D$19),0) -> 0 | CC149: =IFERROR(BA149*($B149+$C149+$D149)/($B$19+$C$19+$D$19),0) -> 0 | CD149: =IFERROR(BB149*($B149+$C149+$D149)/($B$19+$C$19+$D$19),0) -> 0 | CE149: =IFERROR(BC149*($B149+$C149+$D149)/($B$19+$C$19+$D$19),0) -> 0 | CF149: =IFERROR(BD149*($B149+$C149+$D149)/($B$19+$C$19+$D$19),0) -> 0 | CG149: =IFERROR(BE149*($B149+$C149+$D149)/($B$19+$C$19+$D$19),0) -> 0 | CH149: =IFERROR(BF149*($B149+$C149+$D149)/($B$19+$C$19+$D$19),0) -> 0 | CI149: =IFERROR(BG149*($B149+$C149+$D149)/($B$19+$C$19+$D$19),0) -> 0 | CJ149: =IFERROR(BH149*($B149+$C149+$D149)/($B$19+$C$19+$D$19),0) -> 0 | EH149: 0
A150: 150 | B150: 0 | C150: 0 | D150: 0 | F150: 0 | G150: =IFERROR(B150/AB150*100,0) -> 0 | H150: =IFERROR(C150/AB150*100,0) -> 0 | I150: 0 | J150: 0 | K150: 0 | L150: 0 | M150: 0 | N150: 0 | O150: 0 | Q150: 0 | R150: 0 | S150: 0 | T150: 0 | U150: 0 | W150: 0 | X150: 0 | AC150: 0 | AE150: 0 | AK150: 0 | AL150: 0 | AM150: 0 | AQ150: 0 | BP150: 0 | BQ150: 0 | BR150: 0 | BS150: 0 | BT150: 0 | BU150: 0 | BV150: 0 | BW150: 0 | BX150: 0 | BY150: 0 | BZ150: 0 | CA150: 0 | CB150: 0 | CC150: 0 | CD150: 0 | CE150: 0 | CF150: 0 | CG150: 0 | CH150: 0 | CI150: 0 | CJ150: 0 | EH150: 0
A151: 151 | B151: 0 | C151: 0 | D151: 0 | F151: 0 | G151: 0 | H151: 0 | I151: 0 | J151: 0 | K151: 0 | L151: 0 | M151: 0 | N151: 0 | O151: 0 | Q151: 0 | R151: 0 | S151: 0 | T151: 0 | U151: 0 | W151: 0 | X151: 0 | AC151: 0 | AE151: 0 | AK151: 0 | AL151: 0 | AM151: 0 | AQ151: 0 | BP151: 0 | BQ151: 0 | BR151: 0 | BS151: 0 | BT151: 0 | BU151: 0 | BV151: 0 | BW151: 0 | BX151: 0 | BY151: 0 | BZ151: 0 | CA151: 0 | CB151: 0 | CC151: 0 | CD151: 0 | CE151: 0 | CF151: 0 | CG151: 0 | CH151: 0 | CI151: 0 | CJ151: 0 | EH151: 0
A152: 152 | B152: 0 | C152: 0 | D152: 0 | F152: 0 | G152: 0 | H152: 0 | I152: 0 | J152: 0 | K152: 0 | L152: 0 | M152: 0 | N152: 0 | O152: 0 | Q152: 0 | R152: 0 | S152: 0 | T152: 0 | U152: 0 | W152: 0 | X152: 0 | AC152: 0 | AE152: 0 | AK152: 0 | AL152: 0 | AM152: 0 | AQ152: 0 | BM152: 153 | BP152: 0 | BQ152: 0 | BR152: 0 | BS152: 0 | BT152: 0 | BU152: 0 | BV152: 0 | BW152: 0 | BX152: 0 | BY152: 0 | BZ152: 0 | CA152: 0 | CB152: 0 | CC152: 0 | CD152: 0 | CE152: 0 | CF152: 0 | CG152: 0 | CH152: 0 | CI152: 0 | CJ152: 0 | EH152: 0
A153: 153 | B153: 0 | C153: 0 | D153: 0 | F153: 0 | G153: 0 | H153: 0 | I153: 0 | J153: 0 | K153: 0 | L153: 0 | M153: 0 | N153: 0 | O153: 0 | Q153: 0 | R153: 0 | S153: 0 | T153: 0 | U153: 0 | W153: 0 | X153: 0 | AC153: 0 | AE153: 0 | AK153: 0 | AL153: 0 | AM153: 0 | AQ153: 0 | BM153: 154 | BP153: 0 | BQ153: 0 | BR153: 0 | BS153: 0 | BT153: 0 | BU153: 0 | BV153: 0 | BW153: 0 | BX153: 0 | BY153: 0 | BZ153: 0 | CA153: 0 | CB153: 0 | CC153: 0 | CD153: 0 | CE153: 0 | CF153: 0 | CG153: 0 | CH153: 0 | CI153: 0 | CJ153: 0 | EH153: 0
A154: 154 | B154: 0 | C154: 0 | D154: 0 | F154: 0 | G154: 0 | H154: 0 | I154: 0 | J154: 0 | K154: 0 | L154: 0 | M154: 0 | N154: 0 | O154: 0 | Q154: 0 | R154: 0 | S154: 0 | T154: 0 | U154: 0 | W154: 0 | X154: 0 | AC154: 0 | AE154: 0 | AK154: 0 | AL154: 0 | AM154: 0 | AQ154: 0 | BM154: 155 | BP154: 0 | BQ154: 0 | BR154: 0 | BS154: 0 | BT154: 0 | BU154: 0 | BV154: 0 | BW154: 0 | BX154: 0 | BY154: 0 | BZ154: 0 | CA154: 0 | CB154: 0 | CC154: 0 | CD154: 0 | CE154: 0 | CF154: 0 | CG154: 0 | CH154: 0 | CI154: 0 | CJ154: 0 | EH154: 0
A155: 155 | B155: 0 | C155: 0 | D155: 0 | F155: 0 | G155: 0 | H155: 0 | I155: 0 | J155: 0 | K155: 0 | L155: 0 | M155: 0 | N155: 0 | O155: 0 | Q155: 0 | R155: 0 | S155: 0 | T155: 0 | U155: 0 | W155: 0 | X155: 0 | AC155: 0 | AE155: 0 | AK155: 0 | AL155: 0 | AM155: 0 | AQ155: 0 | BM155: 156 | BP155: 0 | BQ155: 0 | BR155: 0 | BS155: 0 | BT155: 0 | BU155: 0 | BV155: 0 | BW155: 0 | BX155: 0 | BY155: 0 | BZ155: 0 | CA155: 0 | CB155: 0 | CC155: 0 | CD155: 0 | CE155: 0 | CF155: 0 | CG155: 0 | CH155: 0 | CI155: 0 | CJ155: 0 | EH155: 0
A156: 156 | B156: 0 | C156: 0 | D156: 0 | F156: 0 | G156: 0 | H156: 0 | I156: 0 | J156: 0 | K156: 0 | L156: 0 | M156: 0 | N156: 0 | O156: 0 | Q156: 0 | R156: 0 | S156: 0 | T156: 0 | U156: 0 | W156: 0 | X156: 0 | AC156: 0 | AE156: 0 | AK156: 0 | AL156: 0 | AM156: 0 | AQ156: 0 | BM156: 157 | BP156: 0 | BQ156: 0 | BR156: 0 | BS156: 0 | BT156: 0 | BU156: 0 | BV156: 0 | BW156: 0 | BX156: 0 | BY156: 0 | BZ156: 0 | CA156: 0 | CB156: 0 | CC156: 0 | CD156: 0 | CE156: 0 | CF156: 0 | CG156: 0 | CH156: 0 | CI156: 0 | CJ156: 0 | EH156: 0
A157: 157 | B157: 0 | C157: 0 | D157: 0 | F157: 0 | G157: 0 | H157: 0 | I157: 0 | J157: 0 | K157: 0 | L157: 0 | M157: 0 | N157: 0 | O157: 0 | Q157: 0 | R157: 0 | S157: 0 | T157: 0 | U157: 0 | W157: 0 | X157: 0 | AC157: 0 | AE157: 0 | AK157: 0 | AL157: 0 | AM157: 0 | AQ157: 0 | BM157: 158 | BP157: 0 | BQ157: 0 | BR157: 0 | BS157: 0 | BT157: 0 | BU157: 0 | BV157: 0 | BW157: 0 | BX157: 0 | BY157: 0 | BZ157: 0 | CA157: 0 | CB157: 0 | CC157: 0 | CD157: 0 | CE157: 0 | CF157: 0 | CG157: 0 | CH157: 0 | CI157: 0 | CJ157: 0 | EH157: 0
A158: 158 | B158: 0 | C158: 0 | D158: 0 | F158: 0 | G158: 0 | H158: 0 | I158: 0 | J158: 0 | K158: 0 | L158: 0 | M158: 0 | N158: 0 | O158: 0 | Q158: 0 | R158: 0 | S158: 0 | T158: 0 | U158: 0 | W158: 0 | X158: 0 | AC158: 0 | AE158: 0 | AK158: 0 | AL158: 0 | AM158: 0 | AQ158: 0 | BM158: 159 | BP158: 0 | BQ158: 0 | BR158: 0 | BS158: 0 | BT158: 0 | BU158: 0 | BV158: 0 | BW158: 0 | BX158: 0 | BY158: 0 | BZ158: 0 | CA158: 0 | CB158: 0 | CC158: 0 | CD158: 0 | CE158: 0 | CF158: 0 | CG158: 0 | CH158: 0 | CI158: 0 | CJ158: 0 | EH158: 0
A159: 159 | B159: 0 | C159: 0 | D159: 0 | F159: 0 | G159: 0 | H159: 0 | I159: 0 | J159: 0 | K159: 0 | L159: 0 | M159: 0 | N159: 0 | O159: 0 | Q159: 0 | R159: 0 | S159: 0 | T159: 0 | U159: 0 | W159: 0 | X159: 0 | AC159: 0 | AE159: 0 | AK159: 0 | AL159: 0 | AM159: 0 | AQ159: 0 | BM159: 160 | BP159: 0 | BQ159: 0 | BR159: 0 | BS159: 0 | BT159: 0 | BU159: 0 | BV159: 0 | BW159: 0 | BX159: 0 | BY159: 0 | BZ159: 0 | CA159: 0 | CB159: 0 | CC159: 0 | CD159: 0 | CE159: 0 | CF159: 0 | CG159: 0 | CH159: 0 | CI159: 0 | CJ159: 0 | EH159: 0
A160: 160 | B160: 0 | C160: 0 | D160: 0 | F160: 0 | G160: 0 | H160: 0 | I160: 0 | J160: 0 | K160: 0 | L160: 0 | M160: 0 | N160: 0 | O160: 0 | Q160: 0 | R160: 0 | S160: 0 | T160: 0 | U160: 0 | W160: 0 | X160: 0 | AC160: 0 | AE160: 0 | AK160: 0 | AL160: 0 | AM160: 0 | AQ160: 0 | BM160: 161 | BP160: 0 | BQ160: 0 | BR160: 0 | BS160: 0 | BT160: 0 | BU160: 0 | BV160: 0 | BW160: 0 | BX160: 0 | BY160: 0 | BZ160: 0 | CA160: 0 | CB160: 0 | CC160: 0 | CD160: 0 | CE160: 0 | CF160: 0 | CG160: 0 | CH160: 0 | CI160: 0 | CJ160: 0 | EH160: =BN160-DK160 -> 0
A161: 161 | B161: 0 | C161: 0 | D161: 0 | F161: 0 | G161: 0 | H161: 0 | I161: 0 | J161: 0 | K161: 0 | L161: 0 | M161: 0 | N161: 0 | O161: 0 | Q161: 0 | R161: 0 | S161: 0 | T161: 0 | U161: 0 | W161: 0 | X161: 0 | AC161: 0 | AE161: 0 | AK161: 0 | AL161: 0 | AM161: 0 | AQ161: 0 | BM161: 162 | BP161: 0 | BQ161: 0 | BR161: 0 | BS161: 0 | BT161: 0 | BU161: 0 | BV161: 0 | BW161: 0 | BX161: 0 | BY161: 0 | BZ161: 0 | CA161: 0 | CB161: 0 | CC161: 0 | CD161: 0 | CE161: 0 | CF161: 0 | CG161: 0 | CH161: 0 | CI161: 0 | CJ161: 0 | EH161: 0
A162: 162 | B162: 0 | C162: 0 | D162: 0 | F162: 0 | G162: 0 | H162: 0 | I162: 0 | J162: 0 | K162: 0 | L162: 0 | M162: 0 | N162: 0 | O162: 0 | Q162: 0 | R162: 0 | S162: 0 | T162: 0 | U162: 0 | W162: 0 | X162: 0 | AC162: 0 | AE162: 0 | AK162: 0 | AL162: 0 | AM162: 0 | AQ162: 0 | BM162: 163 | BP162: 0 | BQ162: 0 | BR162: 0 | BS162: 0 | BT162: 0 | BU162: 0 | BV162: 0 | BW162: 0 | BX162: 0 | BY162: 0 | BZ162: 0 | CA162: 0 | CB162: 0 | CC162: 0 | CD162: 0 | CE162: 0 | CF162: 0 | CG162: 0 | CH162: 0 | CI162: 0 | CJ162: 0 | EH162: 0
A163: 163 | B163: 0 | C163: 0 | D163: 0 | F163: 0 | G163: 0 | H163: 0 | I163: 0 | J163: 0 | K163: 0 | L163: 0 | M163: 0 | N163: 0 | O163: 0 | Q163: 0 | R163: 0 | S163: 0 | T163: 0 | U163: 0 | W163: 0 | X163: 0 | AC163: 0 | AE163: 0 | AK163: 0 | AL163: 0 | AM163: 0 | AQ163: 0 | BM163: 164 | BP163: 0 | BQ163: 0 | BR163: 0 | BS163: 0 | BT163: 0 | BU163: 0 | BV163: 0 | BW163: 0 | BX163: 0 | BY163: 0 | BZ163: 0 | CA163: 0 | CB163: 0 | CC163: 0 | CD163: 0 | CE163: 0 | CF163: 0 | CG163: 0 | CH163: 0 | CI163: 0 | CJ163: 0 | EH163: 0
A164: 164 | B164: 0 | C164: 0 | D164: 0 | F164: 0 | G164: 0 | H164: 0 | I164: 0 | J164: 0 | K164: 0 | L164: 0 | M164: 0 | N164: 0 | O164: 0 | Q164: 0 | R164: 0 | S164: 0 | T164: 0 | U164: 0 | W164: 0 | X164: 0 | AC164: 0 | AE164: 0 | AK164: 0 | AL164: 0 | AM164: 0 | AQ164: 0 | BM164: 165 | BP164: 0 | BQ164: 0 | BR164: 0 | BS164: 0 | BT164: 0 | BU164: 0 | BV164: 0 | BW164: 0 | BX164: 0 | BY164: 0 | BZ164: 0 | CA164: 0 | CB164: 0 | CC164: 0 | CD164: 0 | CE164: 0 | CF164: 0 | CG164: 0 | CH164: 0 | CI164: 0 | CJ164: 0 | EH164: 0
A165: 165 | B165: 0 | C165: 0 | D165: 0 | F165: 0 | G165: 0 | H165: 0 | I165: 0 | J165: 0 | K165: 0 | L165: 0 | M165: 0 | N165: 0 | O165: 0 | Q165: 0 | R165: 0 | S165: 0 | T165: 0 | U165: 0 | W165: 0 | X165: 0 | AC165: 0 | AE165: 0 | AK165: 0 | AL165: 0 | AM165: 0 | AQ165: 0 | BM165: 166 | BP165: =IFERROR(AN165*($B165+$C165+$D165)/($B$19+$C$19+$D$19),0) -> 0 | BQ165: 0 | BR165: 0 | BS165: 0 | BT165: 0 | BU165: 0 | BV165: 0 | BW165: 0 | BX165: 0 | BY165: 0 | BZ165: 0 | CA165: 0 | CB165: 0 | CC165: 0 | CD165: 0 | CE165: 0 | CF165: 0 | CG165: 0 | CH165: 0 | CI165: 0 | CJ165: 0 | EH165: 0
A166: 166 | B166: 0 | C166: 0 | D166: 0 | F166: 0 | G166: 0 | H166: 0 | I166: 0 | J166: 0 | K166: 0 | L166: 0 | M166: 0 | N166: 0 | O166: 0 | Q166: 0 | R166: 0 | S166: 0 | T166: 0 | U166: 0 | W166: 0 | X166: 0 | AC166: 0 | AE166: 0 | AK166: 0 | AL166: 0 | AM166: 0 | AQ166: 0 | BM166: 167 | BP166: 0 | BQ166: 0 | BR166: 0 | BS166: 0 | BT166: 0 | BU166: 0 | BV166: 0 | BW166: 0 | BX166: 0 | BY166: 0 | BZ166: 0 | CA166: 0 | CB166: 0 | CC166: 0 | CD166: 0 | CE166: 0 | CF166: 0 | CG166: 0 | CH166: 0 | CI166: 0 | CJ166: 0 | EH166: 0
A167: 167 | B167: 0 | C167: 0 | D167: 0 | F167: 0 | G167: 0 | H167: 0 | I167: 0 | J167: 0 | K167: 0 | L167: 0 | M167: 0 | N167: 0 | O167: 0 | Q167: 0 | R167: 0 | S167: 0 | T167: 0 | U167: 0 | W167: 0 | X167: 0 | AC167: 0 | AE167: 0 | AK167: 0 | AL167: 0 | AM167: 0 | AQ167: 0 | BM167: 168 | BP167: 0 | BQ167: 0 | BR167: 0 | BS167: 0 | BT167: 0 | BU167: 0 | BV167: 0 | BW167: 0 | BX167: 0 | BY167: 0 | BZ167: 0 | CA167: 0 | CB167: 0 | CC167: 0 | CD167: 0 | CE167: 0 | CF167: 0 | CG167: 0 | CH167: 0 | CI167: 0 | CJ167: 0 | EH167: 0
A168: 168 | B168: 0 | C168: 0 | D168: 0 | F168: 0 | G168: 0 | H168: 0 | I168: 0 | J168: 0 | K168: 0 | L168: 0 | M168: 0 | N168: 0 | O168: 0 | Q168: 0 | R168: 0 | S168: 0 | T168: 0 | U168: =IFERROR(IF(OFFSET(O168,0,V$2-1)>0,1,0),0) -> 0 | W168: 0 | X168: 0 | AC168: 0 | AE168: 0 | AK168: 0 | AL168: 0 | AM168: 0 | AQ168: 0 | BM168: 169 | BP168: 0 | BQ168: 0 | BR168: 0 | BS168: 0 | BT168: 0 | BU168: 0 | BV168: 0 | BW168: 0 | BX168: 0 | BY168: 0 | BZ168: 0 | CA168: 0 | CB168: 0 | CC168: 0 | CD168: 0 | CE168: 0 | CF168: 0 | CG168: 0 | CH168: 0 | CI168: 0 | CJ168: 0 | EH168: 0
A169: 169 | B169: 0 | C169: 0 | D169: 0 | F169: 0 | G169: 0 | H169: 0 | I169: 0 | J169: 0 | K169: 0 | L169: 0 | M169: 0 | N169: 0 | O169: 0 | Q169: 0 | R169: 0 | S169: 0 | T169: 0 | U169: 0 | W169: 0 | X169: 0 | AC169: 0 | AE169: 0 | AK169: 0 | AL169: 0 | AM169: 0 | AQ169: 0 | BM169: 170 | BP169: 0 | BQ169: 0 | BR169: 0 | BS169: 0 | BT169: 0 | BU169: 0 | BV169: 0 | BW169: 0 | BX169: 0 | BY169: 0 | BZ169: 0 | CA169: 0 | CB169: 0 | CC169: 0 | CD169: 0 | CE169: 0 | CF169: 0 | CG169: 0 | CH169: 0 | CI169: 0 | CJ169: 0 | EH169: 0
A170: 170 | B170: 0 | C170: 0 | D170: 0 | F170: 0 | G170: 0 | H170: 0 | I170: 0 | J170: 0 | K170: 0 | L170: 0 | M170: 0 | N170: 0 | O170: 0 | Q170: 0 | R170: 0 | S170: 0 | T170: 0 | U170: 0 | W170: 0 | X170: 0 | AC170: 0 | AE170: 0 | AK170: 0 | AL170: 0 | AM170: 0 | AQ170: 0 | BM170: 171 | BP170: 0 | BQ170: 0 | BR170: 0 | BS170: 0 | BT170: 0 | BU170: 0 | BV170: 0 | BW170: 0 | BX170: 0 | BY170: 0 | BZ170: 0 | CA170: 0 | CB170: 0 | CC170: 0 | CD170: 0 | CE170: 0 | CF170: 0 | CG170: 0 | CH170: 0 | CI170: 0 | CJ170: 0 | EH170: 0
A171: 171 | B171: 0 | C171: 0 | D171: 0 | F171: 0 | G171: 0 | H171: 0 | I171: 0 | J171: 0 | K171: 0 | L171: 0 | M171: 0 | N171: 0 | O171: 0 | Q171: 0 | R171: 0 | S171: 0 | T171: 0 | U171: 0 | W171: 0 | X171: 0 | AC171: 0 | AE171: 0 | AK171: 0 | AL171: 0 | AM171: 0 | AQ171: 0 | BM171: 172 | BP171: 0 | BQ171: 0 | BR171: 0 | BS171: 0 | BT171: 0 | BU171: 0 | BV171: 0 | BW171: 0 | BX171: 0 | BY171: 0 | BZ171: 0 | CA171: 0 | CB171: 0 | CC171: 0 | CD171: 0 | CE171: 0 | CF171: 0 | CG171: 0 | CH171: 0 | CI171: 0 | CJ171: 0 | EH171: 0
A172: 172 | B172: 0 | C172: 0 | D172: 0 | F172: 0 | G172: 0 | H172: 0 | I172: 0 | J172: 0 | K172: 0 | L172: 0 | M172: 0 | N172: 0 | O172: 0 | Q172: 0 | R172: 0 | S172: 0 | T172: 0 | U172: 0 | W172: 0 | X172: 0 | AC172: 0 | AE172: 0 | AK172: 0 | AL172: 0 | AM172: 0 | AQ172: 0 | BM172: 173 | BP172: 0 | BQ172: 0 | BR172: 0 | BS172: 0 | BT172: 0 | BU172: 0 | BV172: 0 | BW172: 0 | BX172: 0 | BY172: 0 | BZ172: 0 | CA172: 0 | CB172: 0 | CC172: 0 | CD172: 0 | CE172: 0 | CF172: 0 | CG172: 0 | CH172: 0 | CI172: 0 | CJ172: 0 | EH172: 0
A173: 173 | B173: 0 | C173: 0 | D173: 0 | F173: 0 | G173: 0 | H173: 0 | I173: 0 | J173: 0 | K173: 0 | L173: 0 | M173: 0 | N173: 0 | O173: 0 | Q173: 0 | R173: 0 | S173: 0 | T173: 0 | U173: 0 | W173: 0 | X173: 0 | AC173: 0 | AE173: 0 | AK173: 0 | AL173: 0 | AM173: 0 | AQ173: 0 | BM173: 174 | BP173: 0 | BQ173: 0 | BR173: 0 | BS173: 0 | BT173: 0 | BU173: 0 | BV173: 0 | BW173: 0 | BX173: 0 | BY173: 0 | BZ173: 0 | CA173: 0 | CB173: 0 | CC173: 0 | CD173: 0 | CE173: 0 | CF173: 0 | CG173: 0 | CH173: 0 | CI173: 0 | CJ173: 0 | EH173: 0
A174: 174 | B174: 0 | C174: 0 | D174: 0 | F174: 0 | G174: 0 | H174: 0 | I174: 0 | J174: 0 | K174: 0 | L174: 0 | M174: 0 | N174: 0 | O174: 0 | Q174: 0 | R174: 0 | S174: 0 | T174: 0 | U174: 0 | W174: 0 | X174: 0 | AC174: 0 | AE174: 0 | AK174: 0 | AL174: 0 | AM174: 0 | AQ174: 0 | BM174: 175 | BP174: 0 | BQ174: 0 | BR174: 0 | BS174: 0 | BT174: 0 | BU174: 0 | BV174: 0 | BW174: 0 | BX174: 0 | BY174: 0 | BZ174: 0 | CA174: 0 | CB174: 0 | CC174: 0 | CD174: 0 | CE174: 0 | CF174: 0 | CG174: 0 | CH174: 0 | CI174: 0 | CJ174: 0 | EH174: 0
A175: 175 | B175: 0 | C175: 0 | D175: 0 | F175: 0 | G175: 0 | H175: 0 | I175: 0 | J175: 0 | K175: 0 | L175: 0 | M175: 0 | N175: 0 | O175: 0 | Q175: 0 | R175: 0 | S175: 0 | T175: 0 | U175: 0 | W175: 0 | X175: 0 | AC175: 0 | AE175: 0 | AK175: 0 | AL175: 0 | AM175: 0 | AQ175: 0 | BM175: 176 | BP175: 0 | BQ175: 0 | BR175: 0 | BS175: 0 | BT175: 0 | BU175: 0 | BV175: 0 | BW175: 0 | BX175: 0 | BY175: 0 | BZ175: 0 | CA175: 0 | CB175: 0 | CC175: 0 | CD175: 0 | CE175: 0 | CF175: 0 | CG175: 0 | CH175: 0 | CI175: 0 | CJ175: 0 | EH175: 0
A176: 176 | B176: 0 | C176: 0 | D176: 0 | F176: 0 | G176: 0 | H176: 0 | I176: 0 | J176: 0 | K176: 0 | L176: 0 | M176: 0 | N176: 0 | O176: 0 | Q176: 0 | R176: 0 | S176: 0 | T176: 0 | U176: 0 | W176: 0 | X176: 0 | AC176: 0 | AE176: 0 | AK176: 0 | AL176: 0 | AM176: 0 | AQ176: 0 | BM176: 177 | BP176: 0 | BQ176: 0 | BR176: 0 | BS176: 0 | BT176: 0 | BU176: 0 | BV176: 0 | BW176: 0 | BX176: 0 | BY176: 0 | BZ176: 0 | CA176: 0 | CB176: 0 | CC176: 0 | CD176: 0 | CE176: 0 | CF176: 0 | CG176: 0 | CH176: 0 | CI176: 0 | CJ176: 0 | EH176: 0
A177: 177 | B177: 0 | C177: 0 | D177: 0 | F177: 0 | G177: 0 | H177: 0 | I177: 0 | J177: 0 | K177: 0 | L177: 0 | M177: 0 | N177: 0 | O177: 0 | Q177: 0 | R177: 0 | S177: 0 | T177: 0 | U177: 0 | W177: 0 | X177: 0 | AC177: 0 | AE177: 0 | AK177: 0 | AL177: 0 | AM177: 0 | AQ177: 0 | BM177: 178 | BP177: 0 | BQ177: 0 | BR177: 0 | BS177: 0 | BT177: 0 | BU177: 0 | BV177: 0 | BW177: 0 | BX177: 0 | BY177: 0 | BZ177: 0 | CA177: 0 | CB177: 0 | CC177: 0 | CD177: 0 | CE177: 0 | CF177: 0 | CG177: 0 | CH177: 0 | CI177: 0 | CJ177: 0 | EH177: 0
A178: 178 | B178: 0 | C178: 0 | D178: 0 | F178: 0 | G178: 0 | H178: 0 | I178: 0 | J178: 0 | K178: 0 | L178: 0 | M178: 0 | N178: 0 | O178: 0 | Q178: 0 | R178: 0 | S178: 0 | T178: 0 | U178: 0 | W178: 0 | X178: 0 | AC178: 0 | AE178: 0 | AK178: 0 | AL178: 0 | AM178: 0 | AQ178: 0 | BM178: 179 | BP178: 0 | BQ178: 0 | BR178: 0 | BS178: 0 | BT178: 0 | BU178: 0 | BV178: 0 | BW178: 0 | BX178: 0 | BY178: 0 | BZ178: 0 | CA178: 0 | CB178: 0 | CC178: 0 | CD178: 0 | CE178: 0 | CF178: 0 | CG178: 0 | CH178: 0 | CI178: 0 | CJ178: 0 | EH178: 0
A179: 179 | B179: 0 | C179: 0 | D179: 0 | F179: 0 | G179: 0 | H179: 0 | I179: 0 | J179: 0 | K179: 0 | L179: 0 | M179: 0 | N179: 0 | O179: 0 | Q179: 0 | R179: 0 | S179: 0 | T179: 0 | U179: 0 | W179: 0 | X179: 0 | AC179: 0 | AE179: 0 | AK179: 0 | AL179: 0 | AM179: 0 | AQ179: 0 | BM179: 180 | BP179: 0 | BQ179: 0 | BR179: 0 | BS179: 0 | BT179: 0 | BU179: 0 | BV179: 0 | BW179: 0 | BX179: 0 | BY179: 0 | BZ179: 0 | CA179: 0 | CB179: 0 | CC179: 0 | CD179: 0 | CE179: 0 | CF179: 0 | CG179: 0 | CH179: 0 | CI179: 0 | CJ179: 0 | EH179: 0
A180: 180 | B180: 0 | C180: 0 | D180: 0 | F180: 0 | G180: 0 | H180: 0 | I180: 0 | J180: 0 | K180: 0 | L180: 0 | M180: 0 | N180: 0 | O180: 0 | Q180: 0 | R180: 0 | S180: 0 | T180: 0 | U180: 0 | W180: 0 | X180: 0 | AC180: 0 | AE180: 0 | AK180: 0 | AL180: 0 | AM180: 0 | AQ180: 0 | BM180: 181 | BP180: 0 | BQ180: 0 | BR180: 0 | BS180: 0 | BT180: 0 | BU180: 0 | BV180: 0 | BW180: 0 | BX180: 0 | BY180: 0 | BZ180: 0 | CA180: 0 | CB180: 0 | CC180: 0 | CD180: 0 | CE180: 0 | CF180: 0 | CG180: 0 | CH180: 0 | CI180: 0 | CJ180: 0 | EH180: 0
A181: 181 | B181: =IF(N181=3,P181,IF(N181=4,P181,0)) -> 0 | C181: =IF(N181=1,P181,IF(N181=2,P181,0)) -> 0 | D181: =IF(N181=5,P181,0) -> 0 | F181: =IFERROR(AD181*U181*(B181+C181+D181)/(B$19+C$19+D$19),0) -> 0 | G181: 0 | H181: 0 | I181: =IFERROR(AS181*U181*C181/(B$19+C$19+D$19),0) -> 0 | J181: =IFERROR(AN181*U181*(B181+C181+D181)/($B$19+$C$19+$D$19),0) -> 0 | K181: =IFERROR(AQ181*U181*(B181+C181+D181)/($B$19+C$19+D$19),0) -> 0 | L181: 0 | M181: =AL181*F181/F$19 -> 0 | N181: =IF(AND(Y181="kotoinen",Z181="karkearehu"),1,IF(AND(Y181="osto",Z181="karkearehu"),2,IF(AND(Y181="kotoinen",Z181="väkirehu"),3,IF(AND(Y181="osto",Z181="väkirehu"),4,IF(Z181="kivennäisseos",5,0))))) -> 0 | O181: =IFERROR(P181/F$18,0) -> 0 | Q181: =R181/R$19 -> 0 | R181: =IFERROR(P181/AB181*100,0) -> 0 | S181: 0 | T181: 0 | U181: 0 | W181: =IFERROR(Q181*W$8,0) -> 0 | X181: =IFERROR(W181*X$7/W$7,0) -> 0 | AC181: =AB181/100*AA181 -> 0 | AE181: =AC181*AD181 -> 0 | AK181: =IF(AB181<>0,ROUND(AJ181/(AB181/100),2),0) -> 0 | AL181: =IF(AD181<>0,ROUND(AK181/AD181,2),0) -> 0 | AM181: =AA181*AJ181/100 -> 0 | AQ181: =AT181+AU181 -> 0 | BM181: 182 | BP181: =IFERROR(AN181*($B181+$C181+$D181)/($B$19+$C$19+$D$19),0) -> 0 | BQ181: 0 | BR181: 0 | BS181: 0 | BT181: 0 | BU181: 0 | BV181: 0 | BW181: 0 | BX181: =IFERROR(AV181*($B181+$C181+$D181)/($B$19+$C$19+$D$19),0) -> 0 | BY181: =IFERROR(AW181*($B181+$C181+$D181)/($B$19+$C$19+$D$19),0) -> 0 | BZ181: =IFERROR(AX181*($B181+$C181+$D181)/($B$19+$C$19+$D$19),0) -> 0 | CA181: =IFERROR(AY181*($B181+$C181+$D181)/($B$19+$C$19+$D$19),0) -> 0 | CB181: =IFERROR(AZ181*($B181+$C181+$D181)/($B$19+$C$19+$D$19),0) -> 0 | CC181: =IFERROR(BA181*($B181+$C181+$D181)/($B$19+$C$19+$D$19),0) -> 0 | CD181: =IFERROR(BB181*($B181+$C181+$D181)/($B$19+$C$19+$D$19),0) -> 0 | CE181: =IFERROR(BC181*($B181+$C181+$D181)/($B$19+$C$19+$D$19),0) -> 0 | CF181: =IFERROR(BD181*($B181+$C181+$D181)/($B$19+$C$19+$D$19),0) -> 0 | CG181: =IFERROR(BE181*($B181+$C181+$D181)/($B$19+$C$19+$D$19),0) -> 0 | CH181: =IFERROR(BF181*($B181+$C181+$D181)/($B$19+$C$19+$D$19),0) -> 0 | CI181: =IFERROR(BG181*($B181+$C181+$D181)/($B$19+$C$19+$D$19),0) -> 0 | CJ181: =IFERROR(BH181*($B181+$C181+$D181)/($B$19+$C$19+$D$19),0) -> 0 | EH181: 0
A182: 182 | B182: 0 | C182: 0 | D182: 0 | F182: 0 | G182: 0 | H182: 0 | I182: 0 | J182: 0 | K182: 0 | L182: 0 | M182: 0 | N182: 0 | O182: 0 | Q182: 0 | R182: 0 | S182: 0 | T182: 0 | U182: 0 | W182: 0 | X182: 0 | AC182: 0 | AE182: 0 | AK182: 0 | AL182: 0 | AM182: 0 | AQ182: 0 | BM182: 183 | BP182: 0 | BQ182: 0 | BR182: 0 | BS182: 0 | BT182: 0 | BU182: 0 | BV182: 0 | BW182: 0 | BX182: 0 | BY182: 0 | BZ182: 0 | CA182: 0 | CB182: 0 | CC182: 0 | CD182: 0 | CE182: 0 | CF182: 0 | CG182: 0 | CH182: 0 | CI182: 0 | CJ182: 0 | EH182: 0
A183: 183 | B183: 0 | C183: 0 | D183: 0 | F183: 0 | G183: 0 | H183: 0 | I183: 0 | J183: 0 | K183: 0 | L183: 0 | M183: 0 | N183: 0 | O183: 0 | Q183: 0 | R183: 0 | S183: 0 | T183: 0 | U183: 0 | W183: 0 | X183: 0 | AC183: 0 | AE183: 0 | AK183: 0 | AL183: 0 | AM183: 0 | AQ183: 0 | BM183: 184 | BP183: 0 | BQ183: 0 | BR183: 0 | BS183: 0 | BT183: 0 | BU183: 0 | BV183: 0 | BW183: 0 | BX183: 0 | BY183: 0 | BZ183: 0 | CA183: 0 | CB183: 0 | CC183: 0 | CD183: 0 | CE183: 0 | CF183: 0 | CG183: 0 | CH183: 0 | CI183: 0 | CJ183: 0 | EH183: 0
A184: 184 | B184: 0 | C184: 0 | D184: 0 | F184: 0 | G184: 0 | H184: 0 | I184: 0 | J184: 0 | K184: 0 | L184: 0 | M184: 0 | N184: 0 | O184: 0 | Q184: 0 | R184: 0 | S184: 0 | T184: 0 | U184: 0 | W184: 0 | X184: 0 | AC184: 0 | AE184: 0 | AK184: 0 | AL184: 0 | AM184: 0 | AQ184: 0 | BM184: 185 | BP184: 0 | BQ184: 0 | BR184: 0 | BS184: 0 | BT184: 0 | BU184: 0 | BV184: 0 | BW184: 0 | BX184: 0 | BY184: 0 | BZ184: 0 | CA184: 0 | CB184: 0 | CC184: 0 | CD184: 0 | CE184: 0 | CF184: 0 | CG184: 0 | CH184: 0 | CI184: 0 | CJ184: 0 | EH184: 0
A185: 185 | B185: 0 | C185: 0 | D185: 0 | F185: 0 | G185: 0 | H185: 0 | I185: 0 | J185: 0 | K185: 0 | L185: 0 | M185: 0 | N185: 0 | O185: 0 | Q185: 0 | R185: 0 | S185: 0 | T185: 0 | U185: 0 | W185: 0 | X185: 0 | AC185: 0 | AE185: 0 | AK185: 0 | AL185: 0 | AM185: 0 | AQ185: 0 | BM185: 186 | BP185: 0 | BQ185: 0 | BR185: 0 | BS185: 0 | BT185: 0 | BU185: 0 | BV185: 0 | BW185: 0 | BX185: 0 | BY185: 0 | BZ185: 0 | CA185: 0 | CB185: 0 | CC185: 0 | CD185: 0 | CE185: 0 | CF185: 0 | CG185: 0 | CH185: 0 | CI185: 0 | CJ185: 0 | EH185: 0
A186: 186 | B186: 0 | C186: 0 | D186: 0 | F186: 0 | G186: 0 | H186: 0 | I186: 0 | J186: 0 | K186: 0 | L186: 0 | M186: 0 | N186: 0 | O186: 0 | Q186: 0 | R186: 0 | S186: 0 | T186: 0 | U186: 0 | W186: 0 | X186: 0 | AC186: 0 | AE186: 0 | AK186: 0 | AL186: 0 | AM186: 0 | AQ186: 0 | BM186: 187 | BP186: 0 | BQ186: 0 | BR186: 0 | BS186: 0 | BT186: 0 | BU186: 0 | BV186: 0 | BW186: 0 | BX186: 0 | BY186: 0 | BZ186: 0 | CA186: 0 | CB186: 0 | CC186: 0 | CD186: 0 | CE186: 0 | CF186: 0 | CG186: 0 | CH186: 0 | CI186: 0 | CJ186: 0 | EH186: 0
A187: 187 | B187: 0 | C187: 0 | D187: 0 | F187: 0 | G187: 0 | H187: 0 | I187: 0 | J187: 0 | K187: 0 | L187: 0 | M187: 0 | N187: 0 | O187: 0 | Q187: 0 | R187: 0 | S187: 0 | T187: 0 | U187: 0 | W187: 0 | X187: 0 | AC187: 0 | AE187: 0 | AK187: 0 | AL187: 0 | AM187: 0 | AQ187: 0 | BM187: 188 | BP187: 0 | BQ187: 0 | BR187: 0 | BS187: 0 | BT187: 0 | BU187: 0 | BV187: 0 | BW187: 0 | BX187: 0 | BY187: 0 | BZ187: 0 | CA187: 0 | CB187: 0 | CC187: 0 | CD187: 0 | CE187: 0 | CF187: 0 | CG187: 0 | CH187: 0 | CI187: 0 | CJ187: 0 | EH187: 0
A188: 188 | B188: 0 | C188: 0 | D188: 0 | F188: 0 | G188: 0 | H188: 0 | I188: 0 | J188: 0 | K188: 0 | L188: 0 | M188: 0 | N188: 0 | O188: 0 | Q188: 0 | R188: 0 | S188: 0 | T188: 0 | U188: 0 | W188: 0 | X188: 0 | AC188: 0 | AE188: 0 | AK188: 0 | AL188: 0 | AM188: 0 | AQ188: 0 | BM188: 189 | BP188: 0 | BQ188: 0 | BR188: 0 | BS188: 0 | BT188: 0 | BU188: 0 | BV188: 0 | BW188: 0 | BX188: 0 | BY188: 0 | BZ188: 0 | CA188: 0 | CB188: 0 | CC188: 0 | CD188: 0 | CE188: 0 | CF188: 0 | CG188: 0 | CH188: 0 | CI188: 0 | CJ188: 0 | EH188: 0
A189: 189 | B189: 0 | C189: 0 | D189: 0 | F189: 0 | G189: 0 | H189: 0 | I189: 0 | J189: 0 | K189: 0 | L189: 0 | M189: 0 | N189: 0 | O189: 0 | Q189: 0 | R189: 0 | S189: 0 | T189: 0 | U189: 0 | W189: 0 | X189: 0 | AC189: 0 | AE189: 0 | AK189: 0 | AL189: 0 | AM189: 0 | AQ189: 0 | BM189: 190 | BP189: 0 | BQ189: 0 | BR189: 0 | BS189: 0 | BT189: 0 | BU189: 0 | BV189: 0 | BW189: 0 | BX189: 0 | BY189: 0 | BZ189: 0 | CA189: 0 | CB189: 0 | CC189: 0 | CD189: 0 | CE189: 0 | CF189: 0 | CG189: 0 | CH189: 0 | CI189: 0 | CJ189: 0 | EH189: 0
A190: 190 | B190: 0 | C190: 0 | D190: 0 | F190: 0 | G190: 0 | H190: 0 | I190: 0 | J190: 0 | K190: 0 | L190: 0 | M190: 0 | N190: 0 | O190: 0 | Q190: 0 | R190: 0 | S190: 0 | T190: 0 | U190: 0 | W190: 0 | X190: 0 | AC190: 0 | AE190: 0 | AK190: 0 | AL190: 0 | AM190: 0 | AQ190: 0 | BM190: 191 | BP190: 0 | BQ190: 0 | BR190: 0 | BS190: 0 | BT190: 0 | BU190: 0 | BV190: 0 | BW190: 0 | BX190: 0 | BY190: 0 | BZ190: 0 | CA190: 0 | CB190: 0 | CC190: 0 | CD190: 0 | CE190: 0 | CF190: 0 | CG190: 0 | CH190: 0 | CI190: 0 | CJ190: 0 | EH190: 0
A191: 191 | B191: 0 | C191: 0 | D191: 0 | F191: 0 | G191: 0 | H191: 0 | I191: 0 | J191: 0 | K191: 0 | L191: 0 | M191: 0 | N191: 0 | O191: 0 | Q191: 0 | R191: 0 | S191: 0 | T191: 0 | U191: 0 | W191: 0 | X191: 0 | AC191: 0 | AE191: 0 | AK191: 0 | AL191: 0 | AM191: 0 | AQ191: 0 | BM191: 192 | BP191: 0 | BQ191: 0 | BR191: 0 | BS191: 0 | BT191: 0 | BU191: 0 | BV191: 0 | BW191: 0 | BX191: 0 | BY191: 0 | BZ191: 0 | CA191: 0 | CB191: 0 | CC191: 0 | CD191: 0 | CE191: 0 | CF191: 0 | CG191: 0 | CH191: 0 | CI191: 0 | CJ191: 0 | EH191: 0
A192: 192 | B192: 0 | C192: 0 | D192: 0 | F192: 0 | G192: 0 | H192: 0 | I192: 0 | J192: 0 | K192: 0 | L192: 0 | M192: 0 | N192: 0 | O192: 0 | Q192: 0 | R192: 0 | S192: 0 | T192: 0 | U192: 0 | W192: 0 | X192: 0 | AC192: 0 | AE192: 0 | AK192: 0 | AL192: 0 | AM192: 0 | AQ192: 0 | BM192: 193 | BP192: 0 | BQ192: 0 | BR192: 0 | BS192: 0 | BT192: 0 | BU192: 0 | BV192: 0 | BW192: 0 | BX192: 0 | BY192: 0 | BZ192: 0 | CA192: 0 | CB192: 0 | CC192: 0 | CD192: 0 | CE192: 0 | CF192: 0 | CG192: 0 | CH192: 0 | CI192: 0 | CJ192: 0 | EH192: 0
A193: 193 | B193: 0 | C193: 0 | D193: 0 | F193: 0 | G193: 0 | H193: 0 | I193: 0 | J193: 0 | K193: 0 | L193: 0 | M193: 0 | N193: 0 | O193: 0 | Q193: 0 | R193: 0 | S193: 0 | T193: 0 | U193: 0 | W193: 0 | X193: 0 | AC193: 0 | AE193: 0 | AK193: 0 | AL193: 0 | AM193: 0 | AQ193: 0 | BM193: 194 | BP193: 0 | BQ193: 0 | BR193: 0 | BS193: 0 | BT193: 0 | BU193: 0 | BV193: 0 | BW193: 0 | BX193: 0 | BY193: 0 | BZ193: 0 | CA193: 0 | CB193: 0 | CC193: 0 | CD193: 0 | CE193: 0 | CF193: 0 | CG193: 0 | CH193: 0 | CI193: 0 | CJ193: 0 | EH193: 0
A194: 194 | B194: 0 | C194: 0 | D194: 0 | F194: 0 | G194: 0 | H194: 0 | I194: 0 | J194: 0 | K194: 0 | L194: 0 | M194: 0 | N194: 0 | O194: 0 | Q194: 0 | R194: 0 | S194: 0 | T194: 0 | U194: 0 | W194: 0 | X194: 0 | AC194: 0 | AE194: 0 | AK194: 0 | AL194: 0 | AM194: 0 | AQ194: 0 | BM194: 195 | BP194: 0 | BQ194: 0 | BR194: 0 | BS194: 0 | BT194: 0 | BU194: 0 | BV194: 0 | BW194: 0 | BX194: 0 | BY194: 0 | BZ194: 0 | CA194: 0 | CB194: 0 | CC194: 0 | CD194: 0 | CE194: 0 | CF194: 0 | CG194: 0 | CH194: 0 | CI194: 0 | CJ194: 0 | EH194: 0
A195: 195 | B195: 0 | C195: 0 | D195: 0 | F195: 0 | G195: 0 | H195: 0 | I195: 0 | J195: 0 | K195: 0 | L195: 0 | M195: 0 | N195: 0 | O195: 0 | Q195: 0 | R195: 0 | S195: =IF(Z195="karkearehu",1,0) -> 0 | T195: =S195*X195 -> 0 | U195: 0 | W195: 0 | X195: 0 | AC195: 0 | AE195: 0 | AK195: 0 | AL195: 0 | AM195: 0 | AQ195: 0 | BM195: 196 | BP195: 0 | BQ195: 0 | BR195: 0 | BS195: 0 | BT195: 0 | BU195: 0 | BV195: 0 | BW195: 0 | BX195: 0 | BY195: 0 | BZ195: 0 | CA195: 0 | CB195: 0 | CC195: 0 | CD195: 0 | CE195: 0 | CF195: 0 | CG195: 0 | CH195: 0 | CI195: 0 | CJ195: 0 | EH195: 0
A196: 196 | B196: 0 | C196: 0 | D196: 0 | F196: 0 | G196: 0 | H196: 0 | I196: 0 | J196: 0 | K196: 0 | L196: 0 | M196: 0 | N196: 0 | O196: 0 | Q196: 0 | R196: 0 | S196: 0 | T196: 0 | U196: 0 | W196: 0 | X196: 0 | AC196: 0 | AE196: 0 | AK196: 0 | AL196: 0 | AM196: 0 | AQ196: 0 | BM196: 197 | BP196: 0 | BQ196: 0 | BR196: 0 | BS196: 0 | BT196: 0 | BU196: 0 | BV196: 0 | BW196: 0 | BX196: 0 | BY196: 0 | BZ196: 0 | CA196: 0 | CB196: 0 | CC196: 0 | CD196: 0 | CE196: 0 | CF196: 0 | CG196: 0 | CH196: 0 | CI196: 0 | CJ196: 0 | EH196: 0
A197: 197 | B197: 0 | C197: 0 | D197: 0 | F197: 0 | G197: 0 | H197: 0 | I197: 0 | J197: 0 | K197: 0 | L197: 0 | M197: 0 | N197: 0 | O197: 0 | Q197: 0 | R197: 0 | S197: 0 | T197: 0 | U197: 0 | W197: 0 | X197: 0 | AC197: 0 | AE197: 0 | AK197: 0 | AL197: 0 | AM197: 0 | AQ197: 0 | BM197: 198 | BP197: =IFERROR(AN197*($B197+$C197+$D197)/($B$19+$C$19+$D$19),0) -> 0 | BQ197: 0 | BR197: 0 | BS197: 0 | BT197: 0 | BU197: 0 | BV197: 0 | BW197: 0 | BX197: 0 | BY197: 0 | BZ197: 0 | CA197: 0 | CB197: 0 | CC197: 0 | CD197: 0 | CE197: 0 | CF197: 0 | CG197: 0 | CH197: 0 | CI197: 0 | CJ197: 0 | EH197: 0
A198: 198 | B198: 0 | C198: 0 | D198: 0 | F198: 0 | G198: 0 | H198: 0 | I198: 0 | J198: 0 | K198: 0 | L198: 0 | M198: 0 | N198: 0 | O198: 0 | Q198: 0 | R198: 0 | S198: 0 | T198: 0 | U198: 0 | W198: 0 | X198: 0 | AC198: 0 | AE198: 0 | AK198: 0 | AL198: 0 | AM198: 0 | AQ198: 0 | BM198: 199 | BP198: 0 | BQ198: 0 | BR198: 0 | BS198: 0 | BT198: 0 | BU198: 0 | BV198: 0 | BW198: 0 | BX198: 0 | BY198: 0 | BZ198: 0 | CA198: 0 | CB198: 0 | CC198: 0 | CD198: 0 | CE198: 0 | CF198: 0 | CG198: 0 | CH198: 0 | CI198: 0 | CJ198: 0 | EH198: 0
A199: 199 | B199: 0 | C199: 0 | D199: 0 | F199: 0 | G199: 0 | H199: 0 | I199: 0 | J199: 0 | K199: 0 | L199: 0 | M199: 0 | N199: 0 | O199: 0 | Q199: 0 | R199: 0 | S199: 0 | T199: 0 | U199: 0 | W199: 0 | X199: 0 | AC199: 0 | AE199: 0 | AK199: 0 | AL199: 0 | AM199: 0 | AQ199: 0 | BM199: 200 | BP199: 0 | BQ199: 0 | BR199: 0 | BS199: 0 | BT199: 0 | BU199: 0 | BV199: 0 | BW199: 0 | BX199: 0 | BY199: 0 | BZ199: 0 | CA199: 0 | CB199: 0 | CC199: 0 | CD199: 0 | CE199: 0 | CF199: 0 | CG199: 0 | CH199: 0 | CI199: 0 | CJ199: 0 | EH199: 0
A200: 200 | B200: 0 | C200: 0 | D200: 0 | F200: 0 | G200: 0 | H200: 0 | I200: 0 | J200: 0 | K200: 0 | L200: 0 | M200: 0 | N200: 0 | O200: 0 | Q200: 0 | R200: 0 | S200: 0 | T200: 0 | U200: 0 | W200: 0 | X200: 0 | AC200: 0 | AE200: 0 | AK200: 0 | AL200: 0 | AM200: 0 | AQ200: 0 | BM200: 201 | BP200: 0 | BQ200: 0 | BR200: 0 | BS200: 0 | BT200: 0 | BU200: 0 | BV200: 0 | BW200: 0 | BX200: 0 | BY200: 0 | BZ200: 0 | CA200: 0 | CB200: 0 | CC200: 0 | CD200: 0 | CE200: 0 | CF200: 0 | CG200: 0 | CH200: 0 | CI200: 0 | CJ200: 0 | EH200: 0
A201: 201 | B201: 0 | C201: 0 | D201: 0 | F201: 0 | G201: 0 | H201: 0 | I201: 0 | J201: 0 | K201: 0 | L201: 0 | M201: 0 | N201: 0 | O201: 0 | Q201: 0 | R201: 0 | S201: 0 | T201: 0 | U201: 0 | W201: 0 | X201: 0 | AC201: 0 | AE201: 0 | AK201: 0 | AL201: 0 | AM201: 0 | AQ201: 0 | BM201: 202 | BP201: 0 | BQ201: 0 | BR201: 0 | BS201: 0 | BT201: 0 | BU201: 0 | BV201: 0 | BW201: 0 | BX201: 0 | BY201: 0 | BZ201: 0 | CA201: 0 | CB201: 0 | CC201: 0 | CD201: 0 | CE201: 0 | CF201: 0 | CG201: 0 | CH201: 0 | CI201: 0 | CJ201: 0 | EH201: 0
... 23 more rows

Sheet VUOSI_REHULASKURI
A1: KeNa | D1: VUOSISUUNNITTELUUN VALITUT REHUT | AP1: Tuorekilot (tavoite) | AQ1: 350097 | AR1: kg tp | AS1: vuosirehujen paino (tavoite) | AT1: =AQ1 -> 350097 | AU1: vajaan | AW1: NRO | AX1: NIMITYS | AY1: kasvukerroin | BA1: =2-BC1 -> 1.05 | BB1: TAVOITEarvo | BC1: 0.95 | BD1: tavoite | BE1: =IF(BE8>=BE7,3,IF(BE8>0.95*BE7,2,1)) -> 3 | BO1: 1 | BP1: alle 80% | BQ1: pun
D2: Tulostettu: | E2: =NOW() -> 2019-03-13T13:28:34.840 | H2: Seos: | I2: Tähän tulee haluamasi laskelman nimi! | AN2: Rehuseos | AS2: vuosirehujen pain(tot) | AT2: =AW21 -> 739389.1986 | AV2: Eläinrotu | AW2: 1 | AX2: Maitorotuiset | AY2: =VLOOKUP(AW2,AW4:AY6,3) -> 1.1 | BA2: =2-BC2 -> 0.9 | BB2: abs max | BC2: 1.1 | BD2: max | BE2: =IF(BE8/BE6>BC2,1,IF(BE8/BE6>1,2,3)) -> 3 | BF2: =IF(BF8>BF6,1,IF(BF8>=0.9*BF6,2,3)) -> 3 | BG2: =IF(BG8>BG6,1,IF(BG8>=0.9*BG6,2,3)) -> 3 | BH2: =IF(BH8>BH6,1,IF(BH8>=0.9*BH6,2,3)) -> 3 | BI2: =IF(BI8>BI6,1,IF(BI8>=0.9*BI6,2,3)) -> 3 | BO2: 2 | BP2: 0.8 | BQ2: kelt
D3: Alkupäivä: | E3: 31.10.2015 | H3: Rotu: | I3: Maitorotuiset | M3: Eläimiä | O3: kpl | P3: alkupaino | AP3: eläimet kpl | AS3: saavutusprosentti | AT3: =IF(AQ1=0,0,AT2/AQ1) -> 2.111955254 | AW3: eläinrodut | BA3: =2-BC3 -> 1.05 | BB3: abs min | BC3: 0.95 | BD3: min | BE3: =IF(BE8/BE5<BC3,1,IF(BE8/BE5>=1,3,2)) -> 3 | BF3: =IF(BF8<BF5,1,IF(BF8>=0.9*BF6,2,3)) -> 3 | BG3: =IF(BG8<BG5,1,IF(BG8>=0.9*BG6,2,3)) -> 1 | BH3: =IF(BH8<BH5,1,IF(BH8>=0.9*BH6,2,3)) -> 3 | BI3: =IF(BI8<BI5,1,3) -> 3 | BJ3: T&Sok | BK3: =IF(BK8<BK5,1,3) -> 3 | BO3: 3 | BP3: 1 | BQ3: vihr
D4: Kasvatuksen | E4: Alkupaino | F4: 180 | G4: kg | H4: x | I4: Onko seos muuttunut? | N4: ryhmä 1 | O4: 100 | P4: 180 | Q4: kg | AP4: alkupaino | AR4: Rehuvaunut | AS4: rehuvaunukoko | AT4: 520 | AW4: 1 | AX4: Maitorotuiset | AY4: 1.1 | BA4: *rehuarvotavoite | BC4: * mj tavoite | BD4: väri/tavarvo | BE4: =MIN(BE1:BE3) -> 3 | BF4: =MIN(BF2:BF3) -> 3 | BG4: =MIN(BG2:BG3) -> 1 | BH4: =MIN(BH2:BH3) -> 3 | BI4: =MIN(BI2:BI3) -> 3 | BK4: =MIN(BK2:BK3) -> 3 | BO4: =IF(INT(10*BO8/BO5)<8,1,IF(INT(10*BO8/BO5)<10,2,3)) -> 3 | BP4: 3 | BQ4: 3 | BR4: 2 | BS4: 3 | BT4: 3 | BU4: 3 | BV4: 3 | BW4: 3 | BX4: 3 | BY4: 3 | BZ4: 1 | CA4: 3 | CB4: 3 | CC4: 1
E5: Loppupaino | F5: 700 | G5: kg | N5: ryhmä 2 | O5: 100 | P5: 230 | Q5: kg | AP5: kasvatuspäivät | AQ5: 365 | AS5: Täysien osuus painosta | AW5: 2 | AX5: Keskikokoiset liharodut | AY5: 1.05 | BD5: min | BE5: 9 | BF5: 90 | BG5: 200 | BH5: -20 | BI5: 0 | BJ5: 70 | BK5: 0 | BM5: min | BN5: 0 | BO5: 6 | BP5: 3 | BQ5: 1.5 | BR5: 1.6 | BS5: 100 | BT5: 40 | BU5: 50 | BV5: 10 | BW5: 0.1 | BX5: 0.1 | BY5: 0.2 | BZ5: 0.3 | CA5: 2200 | CB5: 300 | CC5: 25
E6: Vaihdon kesto | F6: 10 | G6: pv | N6: ryhmä 3 | O6: 100 | P6: 430 | Q6: kg | AL6: kasvuvähenemä | AM6: 0.025 | AS6: Vajaan minimipaino | AT6: =AT7/100*AT4 -> 208 | AV6: vajaan paino | AW6: 3 | AX6: Isot liharodut | AY6: 1 | BD6: max | BE6: 13 | BF6: 250 | BG6: 600 | BH6: 100 | BI6: 400 | BJ6: 130 | BM6: max | BN6: 0 | BO6: ei tiedossa | BP6: ei tiedossa | BQ6: 6 | BR6: 60 | BS6: 1000 | BT6: 1300 | BU6: 1500 | BV6: 200 | BW6: 30 | BX6: 4 | BY6: 50 | BZ6: 2 | CA6: 20000 | CB6: 25000 | CC6: ei rajaa
E7: rehuja suunnittelussa | AM7: =BB21 -> 1.435988685 | AP7: tuorekilot yhtensä | AS7: Vajaan minimipros | AT7: 40 | BC7: =TYPE(BE7) -> 1 | BD7: tavoite | BE7: 11.5 | BF7: ei ole | BG7: ei ole | BH7: ei ole | BI7: ei ole | BJ7: ei ole | BK7: ei ole | BM7: tavoite | BN7: 0 | BO7: Minimiarvon saavutus | BP7: Minimiarvon saavutus | BQ7: Minimiarvon saavutus | BR7: Minimiarvon saavutus | BS7: Minimiarvon saavutus | BT7: Minimiarvon saavutus | BU7: Minimiarvon saavutus | BV7: Minimiarvon saavutus | BW7: Minimiarvon saavutus | BX7: Minimiarvon saavutus | BY7: Minimiarvon saavutus | BZ7: Minimiarvon saavutus | CA7: Minimiarvon saavutus | CB7: Minimiarvon saavutus | CC7: Minimiarvon saavutus
B8: =COUNTA(E11:E20) -> 4 | D8: Huom! | E8: Alkupäivä on kasvatuskauden ensimmäinen kasvatuspäivä. Kasvatusryhmiä voi olla kolme, karjarotuja kuitenkin vain yksi. Muuta alla olevat arvot haluamiksesi. Ja poista tämä teksti kun tarpeeton! | AI8: 0 | AL8: uudet kilot | AM8: uudet päivät | AN8: OPTIMOINTITULOS | AO8: KA KILOT | AP8: MJ ME | AQ8: KA KILOT | AR8: KA KILOT | AS8: KA KILOT | AT8: RESEPTI_A | AU8: RESEPTI_B | AV8: TUOREKILOT | AW8: TUOREKILOT | AX8: TUOREKILOT | AY8: TUOREKILOT | BB8: NDF srind | BC8: =SUM(BG11:BG20) -> 293.7925906 | BD8: tulos | BE8: =SUM(BE11:BE20) -> 11.59220675 | BF8: =SUM(BF11:BF20) -> 160.8667753 | BG8: =BC11*BG11+BC12*BG12+BC13*BG13+BC14*BG14+BC15*BG15+BC16*BG16+BC17*BG17+BC18*BG18+BC19*BG19+BC20*BG20 -> 153.9452366 | BH8: =SUM(BH11:BH20) -> 24.27227216 | BI8: =SUM(BI11:BI20) -> 323.1478446 | BJ8: =SUM(BL11:BL20) -> 115.1399997 | BK8: =SUM(BK11:BK20) -> 2.118531866 | BM8: tulos | BN8: 0 | BO8: =SUM(BO11:BO20) -> 11.16050201 | BP8: 3.258148807 | BQ8: 2.569972447 | BR8: 1.417631919 | BS8: 159.8580076 | BT8: 51.46257877 | BU8: 62.50885243 | BV8: 14.10894859 | BW8: 0.2841810119 | BX8: 0.2153734872 | BY8: 1.512087311 | BZ8: 0.1861963731 | CA8: 2685.458283 | CB8: 805.6422651 | CC8: 8.062477476 | CE8: =ROUND(CF21/CF9,3) -> 0.431 | CF8: karkearehu/väkiurehusuhde | CH8: =ROUND(CH21/CF9,3) -> 0.569 | CI8: Väkirehusuhde | CJ8: =100* CE8 & "%: " & 100*CH8 &"%" -> 43,1%: 56,9%
A9: rehuid | C9: Rehutiedot | O9: Hintatiedot | R9: Varastotiedot | V9: Kivennäiset ja vitamiinit | AK9: 0 | AL9: 350097 | AM9: vuoden kakilot | AN9: REHUSEOS1 | AO9: REHUSEOS1 | AP9: REHUSEOS1 | AQ9: varastossa | AR9: varastoon jäi | AS9: rehuseos pros | AT9: täydet | AU9: vajaat | AV9: varastossa | AW9: rehujen käyttö | AX9: jäi kg | AY9: osuudet | AZ9: Rehuseoksen yksikköhinnat | BD9: erotus | BE9: =BE8-BE7 -> 0.09220675025 | BM9: erotus | CE9: rehut yht kg | CF9: =CF21+CH21 -> 385011 | CG9: KA-suhde | CH9: =100*CH8 -> 56.9
A10: rivi | B10: =COUNTA(B11:B20) -> 4 | C10: lähde | D10: rehutyyppi | E10: nimitys | F10: ka-% | G10: RV | H10: NDF | I10: PVT | J10: MJ | K10: Tärk. | L10: Sok. | M10: Srind | N10: VFA | O10: snt/kg tp | P10: snt/kg ka | Q10: snt/MJ | R10: tuore kg yht | S10: kg ka yht | T10: mj me yht | U10: eur yht | V10: Ca | W10: P | X10: Mg | Y10: Na | Z10: Fe | AA10: Mn | AB10: Zn | AC10: Cu | AD10: Co | AE10: Se | AF10: I | AG10: Mo | AH10: A-vit | AI10: D-vit | AJ10: E-vit | AK10: Huom! | AL10: =AL9/AO21 -> 0.8948280489 | AM10: 652000 | AN10: =AM10/AO21 -> 1.666474971 | AO10: käyttö yht ka_kg | AP10: käyttö yht mj | AQ10: ka_kg | AR10: ka kg | AS10: ka PROS | AT10: =IF(((AW21-AT4)*AU6)>AT6,AU6,AU6-1) -> -1 | AU10: =IF(AU6-AT10<>0,2,0) -> 2 | AV10: tuore_kg | AW10: tuore_kg | AX10: tuore_kg | AY10: tuore kg % | AZ10: snt/kg tp | BA10: snt/kg ka | BB10: hinta snt/Mj | BC10: vain karkearehut ndf-arvoon mukaan | BD10: tuorekgmin | BE10: =J10 -> MJ | BF10: =G10 -> RV | BG10: =H10 -> NDF | BH10: =I10 -> PVT | BI10: tärk+sok | BJ10: =M10 -> Srind | BK10: =N10 -> VFA | BL10: SRINDAPU | BM10: srind pk osuus | BN10: kaikki kivhiv | BO10: =V10 -> Ca | BP10: =W10 -> P | BQ10: Mg | BR10: Na | BS10: Fe | BT10: Mn | BU10: Zn | BV10: Cu | BW10: Co | BX10: Se | BY10: =AF10 -> I | BZ10: Mo | CA10: =AH10 -> A-vit | CB10: =AI10 -> D-vit | CC10: =AJ10 -> E-vit | CE10: karkearehu | CF10: kakg | CG10: väkirehu | CH10: kakg | CI10: vain kivennäinen
A11: KK | B11: v | C11: kotoinen | D11: karkearehu | E11: KOTOISET: karkearehut yht. | F11: 34.72 | G11: 209.44 | H11: 363.33 | I11: 73.44 | J11: 10.61 | K11: 0 | L11: 101.39 | M11: 115.14 | N11: 5 | O11: 6.981 | P11: 20.167 | Q11: 1.901 | R11: 5200000 | S11: 1800000 | T11: 19095000 | U11: 363000 | V11: 14.57 | W11: 2.31 | X11: 2.79 | Y11: 0.2 | Z11: 199.03 | AA11: 35.31 | AB11: 34.89 | AC11: 14.83 | AD11: 0.2 | AE11: 0 | AF11: 0 | AG11: 0 | AH11: 0 | AI11: 0 | AJ11: 0 | AM11: =AN$10*AO11 -> 276256.5554 | AO11: 165773 | AP11: =AO11*J11 -> 1758851.53 | AQ11: =S11 -> 1800000 | AR11: =AQ11-AO11 -> 1634227 | AS11: =(AO11/AO$21*100) -> 42.37063732 | AT11: =AN11/100*AT$4 -> 0 | AU11: =AU$7/AT$4*AT11 -> 0 | AV11: =R11 -> 5200000 | AW11: =IF(F11>0,AO11/F11*100,0) -> 477456.7972 | AX11: =AV11-AW11 -> 4722543.203 | AY11: =AW11/AW$21 -> 0.6457448907 | AZ11: =AY11*O11 -> 4.507945082 | BA11: =AS11*P11/100 -> 8.544886429 | BB11: =IF(AP$21=0,0,AP11/AP$21*Q11) -> 0.7372187614 | BC11: =IF(D11="karkearehu",1,0) -> 1 | BD11: =AO11*BC11 -> 165773 | BE11: =J11*AS11/100 -> 4.49552462 | BF11: =G11*AS11/100 -> 88.74106281 | BG11: =H11*AS11/100 -> 153.9452366 | BH11: =I11*AS11/100 -> 31.11699605 | BI11: =(K11+L11)*AS11/100 -> 42.95958918 | BJ11: =M11 -> 115.14 | BK11: =N11*AS11/100 -> 2.118531866 | BL11: =BM11/BM$21*BJ11 -> 115.1399997 | BM11: =IF(BJ11>0,AS11,0) -> 42.37063732 | BO11: =V11*AS11/100 -> 6.173401858 | BP11: =W11*AS11/100 -> 0.9787617222 | BQ11: =X11*AS11/100 -> 1.182140781 | BR11: =Y11*AS11/100 -> 0.08474127465 | BS11: =Z11*AS11/100 -> 84.33027947 | BT11: =AA11*AS11/100 -> 14.96107204 | BU11: =AB11*AS11/100 -> 14.78311536 | BV11: =AC11*AS11/100 -> 6.283565515 | BW11: =AD11*AS11/100 -> 0.08474127465 | BX11: =AE11*AS11/100 -> 0 | BY11: =AF11*AS11/100 -> 0 | BZ11: =AG11*AS11/100 -> 0 | CA11: =AH11*AS11/100 -> 0 | CB11: =AI11*AS11/100 -> 0 | CC11: =AJ11*AS11/100 -> 0 | CE11: =IF(D11="karkearehu",1,0) -> 1 | CF11: =CE11*AO11 -> 165773 | CG11: =IF(D11="väkirehu",1,0) -> 0 | CH11: =CG11*AQ11 -> 0 | CI11: =IF(D11="xkivennäisaine",1,0)*AO11 -> 0
A12: KK | B12: v | C12: kotoinen | D12: väkirehu | E12: KOTOISET: väkirehut yht. | F12: 86 | G12: 134 | H12: 290 | I12: -2 | J12: 12.1 | K12: 440 | L12: 18 | M12: 0 | N12: 0 | O12: 13 | P12: 15.116 | Q12: 1.249 | R12: 50000 | S12: 43000 | T12: 520300 | U12: 6500 | V12: 0.8 | W12: 4 | X12: 1.3 | Y12: 0.2 | Z12: 52 | AA12: 66 | AB12: 41 | AC12: 4 | AD12: 0.1 | AE12: 0.1 | AF12: 0.1 | AG12: 0.4 | AH12: 0 | AI12: 0 | AJ12: 0 | AM12: =AN$10*AO12 -> 117936.4337 | AO12: 70770 | AP12: =AO12*J12 -> 856317 | AQ12: 43000 | AR12: -27770 | AS12: =(AO12/AO$21*100) -> 18.08841008 | AT12: 0 | AU12: 0 | AV12: =R12 -> 50000 | AW12: =IF(F12>0,AO12/F12*100,0) -> 82290.69767 | AX12: -32290.69767 | AY12: =AW12/AW$21 -> 0.1112955096 | AZ12: =AY12*O12 -> 1.446841625 | BA12: =AS12*P12/100 -> 2.734244067 | BB12: =IF(AP$21=0,0,AP12/AP$21*Q12) -> 0.2358207876 | BC12: =IF(D12="karkearehu",1,0) -> 0 | BD12: =AO12*BC12 -> 0 | BE12: =J12*AS12/100 -> 2.188697619 | BF12: =G12*AS12/100 -> 24.2384695 | BG12: =H12*AS12/100 -> 52.45638922 | BH12: =I12*AS12/100 -> -0.3617682015 | BI12: =(K12+L12)*AS12/100 -> 82.84491815 | BJ12: =M12 -> 0 | BK12: =N12*AS12/100 -> 0 | BL12: =BM12/BM$21*BJ12 -> 0 | BM12: =IF(BJ12>0,AS12,0) -> 0 | BO12: =V12*AS12/100 -> 0.1447072806 | BP12: =W12*AS12/100 -> 0.723536403 | BQ12: =X12*AS12/100 -> 0.235149331 | BR12: =Y12*AS12/100 -> 0.03617682015 | BS12: =Z12*AS12/100 -> 9.405973239 | BT12: =AA12*AS12/100 -> 11.93835065 | BU12: =AB12*AS12/100 -> 7.416248131 | BV12: =AC12*AS12/100 -> 0.723536403 | BW12: =AD12*AS12/100 -> 0.01808841008 | BX12: =AE12*AS12/100 -> 0.01808841008 | BY12: =AF12*AS12/100 -> 0.01808841008 | BZ12: =AG12*AS12/100 -> 0.0723536403 | CA12: =AH12*AS12/100 -> 0 | CB12: =AI12*AS12/100 -> 0 | CC12: =AJ12*AS12/100 -> 0 | CE12: =IF(D12="karkearehu",1,0) -> 0 | CF12: =CE12*AO12 -> 0 | CG12: =IF(D12="väkirehu",1,0) -> 1 | CH12: =CG12*AO12 -> 70770 | CI12: =IF(D12="xkivennäisaine",1,0)*AO12 -> 0
A13: 96 | B13: v | C13: osto | D13: väkirehu | E13: Ohra, 54 - 62 kg/hl | F13: 86 | G13: 126 | H13: 230 | I13: -17 | J13: 12.9 | K13: 500 | L13: 20 | N13: 0 | O13: 10.5 | P13: 12.21 | Q13: 0.95 | R13: 100000 | S13: 86000 | T13: 1109400 | U13: 10500 | V13: 0.5 | W13: 4.1 | X13: 1.4 | Y13: 0.1 | Z13: 50 | AA13: 24 | AB13: 39 | AC13: 7 | AD13: 0.1 | AE13: 0.1 | AF13: 0.2 | AG13: 0.3 | AM13: 247418.206 | AO13: 148468 | AP13: 1915237.2 | AQ13: 86000 | AR13: -62468 | AS13: 37.9475776 | AT13: 0 | AU13: 0 | AV13: 100000 | AW13: 172637.2093 | AX13: -72637.2093 | AY13: 0.2334862473 | AZ13: 2.451605597 | BA13: 4.633399226 | BB13: 0.4011725926 | BC13: 0 | BD13: 0 | BE13: 4.895237511 | BF13: 47.81394778 | BG13: 87.27942849 | BH13: -6.451088193 | BI13: 197.3274035 | BJ13: 0 | BK13: 0 | BL13: 0 | BM13: 0 | BO13: 0.189737888 | BP13: 1.555850682 | BQ13: 0.5312660865 | BR13: 0.0379475776 | BS13: 18.9737888 | BT13: 9.107418625 | BU13: 14.79955527 | BV13: 2.656330432 | BW13: 0.0379475776 | BX13: 0.0379475776 | BY13: 0.07589515521 | BZ13: 0.1138427328 | CA13: 0 | CB13: 0 | CC13: 0 | CE13: 0 | CF13: 0 | CG13: 1 | CH13: =CG13*AO13 -> 148468 | CI13: 0
A14: 142 | B14: v | C14: osto | D14: xkivennäisaine | E14: KasvuApeKivennäinen, A-Rehu | F14: 89 | G14: 4.6 | H14: 7 | I14: -2 | J14: 0.8 | K14: 1 | L14: 0 | N14: 0 | O14: 40 | P14: 44.94 | Q14: 56.18 | R14: 2500 | S14: 2225 | T14: 1780 | U14: 1000 | V14: 292 | W14: 0 | X14: 39 | Y14: 79 | Z14: 2959 | AA14: 970 | AB14: 1601 | AC14: 279 | AD14: 9 | AE14: 10 | AF14: 89 | AH14: 168539 | AI14: 50562 | AJ14: 506 | AM14: 10388.80497 | AO14: 6234 | AP14: 4987.2 | AQ14: 2225 | AR14: -4009 | AS14: 1.593374995 | AT14: 0 | AU14: 0 | AV14: 2500 | AW14: 7004.494382 | AX14: -4504.494382 | AY14: 0.009473352323 | AZ14: 0.3789340929 | BA14: 0.7160627228 | BB14: 0.06177654292 | BC14: 0 | BD14: 0 | BE14: 0.01274699996 | BF14: 0.07329524978 | BG14: 0.1115362497 | BH14: -0.0318674999 | BI14: 0.01593374995 | BJ14: 0 | BK14: 0 | BL14: 0 | BM14: 0 | BO14: 4.652654986 | BP14: 0 | BQ14: 0.6214162481 | BR14: 1.258766246 | BS14: 47.14796611 | BT14: 15.45573745 | BU14: 25.50993367 | BV14: 4.445516237 | BW14: 0.1434037496 | BX14: 0.1593374995 | BY14: 1.418103746 | BZ14: 0 | CA14: 2685.458283 | CB14: 805.6422651 | CC14: 8.062477476 | CE14: 0 | CF14: 0 | CG14: 0 | CH14: 0 | CI14: 6234
AM15: 0 | AP15: 0 | AQ15: 0 | AR15: 0 | AS15: 0 | AT15: 0 | AU15: 0 | AV15: 0 | AW15: 0 | AX15: 0 | AY15: 0 | AZ15: 0 | BA15: 0 | BB15: 0 | BC15: 0 | BD15: 0 | BE15: 0 | BF15: 0 | BG15: 0 | BH15: 0 | BI15: 0 | BJ15: 0 | BK15: 0 | BL15: 0 | BM15: 0 | BO15: 0 | BP15: 0 | BQ15: 0 | BR15: 0 | BS15: 0 | BT15: 0 | BU15: 0 | BV15: 0 | BW15: 0 | BX15: 0 | BY15: 0 | BZ15: 0 | CA15: 0 | CB15: 0 | CC15: 0 | CE15: 0 | CF15: 0 | CG15: 0 | CH15: 0 | CI15: 0
AM16: 0 | AP16: 0 | AQ16: 0 | AR16: 0 | AS16: 0 | AT16: 0 | AU16: 0 | AV16: 0 | AW16: 0 | AX16: 0 | AY16: 0 | AZ16: 0 | BA16: 0 | BB16: 0 | BC16: 0 | BD16: 0 | BE16: 0 | BF16: 0 | BG16: 0 | BH16: 0 | BI16: 0 | BJ16: 0 | BK16: 0 | BL16: 0 | BM16: 0 | BO16: 0 | BP16: 0 | BQ16: 0 | BR16: 0 | BS16: 0 | BT16: 0 | BU16: 0 | BV16: 0 | BW16: 0 | BX16: 0 | BY16: 0 | BZ16: 0 | CA16: 0 | CB16: 0 | CC16: 0 | CE16: 0 | CF16: 0 | CG16: 0 | CH16: 0 | CI16: 0
AM17: 0 | AP17: 0 | AQ17: 0 | AR17: =AQ17-AO17 -> 0 | AS17: 0 | AT17: 0 | AU17: 0 | AV17: 0 | AW17: 0 | AX17: 0 | AY17: 0 | AZ17: 0 | BA17: 0 | BB17: 0 | BC17: 0 | BD17: 0 | BE17: 0 | BF17: 0 | BG17: 0 | BH17: 0 | BI17: 0 | BJ17: 0 | BK17: 0 | BL17: 0 | BM17: 0 | BO17: 0 | BP17: 0 | BQ17: 0 | BR17: 0 | BS17: 0 | BT17: 0 | BU17: 0 | BV17: 0 | BW17: 0 | BX17: 0 | BY17: 0 | BZ17: 0 | CA17: 0 | CB17: 0 | CC17: 0 | CE17: 0 | CF17: 0 | CG17: 0 | CH17: 0 | CI17: 0
AM18: 0 | AP18: 0 | AQ18: 0 | AR18: =AQ18-AO18 -> 0 | AS18: 0 | AT18: 0 | AU18: 0 | AV18: 0 | AW18: 0 | AX18: 0 | AY18: 0 | AZ18: 0 | BA18: 0 | BB18: 0 | BC18: 0 | BD18: 0 | BE18: 0 | BF18: 0 | BG18: 0 | BH18: 0 | BI18: 0 | BJ18: 0 | BK18: 0 | BL18: 0 | BM18: 0 | BO18: 0 | BP18: 0 | BQ18: 0 | BR18: 0 | BS18: 0 | BT18: 0 | BU18: 0 | BV18: 0 | BW18: 0 | BX18: 0 | BY18: 0 | BZ18: 0 | CA18: 0 | CB18: 0 | CC18: 0 | CE18: 0 | CF18: 0 | CG18: 0 | CH18: 0 | CI18: 0
AM19: 0 | AP19: 0 | AQ19: 0 | AR19: =AQ19-AO19 -> 0 | AS19: 0 | AT19: 0 | AU19: 0 | AV19: 0 | AW19: 0 | AX19: 0 | AY19: 0 | AZ19: 0 | BA19: 0 | BB19: 0 | BC19: 0 | BD19: 0 | BE19: 0 | BF19: 0 | BG19: 0 | BH19: 0 | BI19: 0 | BJ19: 0 | BK19: 0 | BL19: 0 | BM19: 0 | BO19: 0 | BP19: 0 | BQ19: 0 | BR19: 0 | BS19: 0 | BT19: 0 | BU19: 0 | BV19: 0 | BW19: 0 | BX19: 0 | BY19: 0 | BZ19: 0 | CA19: 0 | CB19: 0 | CC19: 0 | CE19: 0 | CF19: 0 | CG19: 0 | CH19: 0 | CI19: 0
AM20: 0 | AP20: 0 | AQ20: 0 | AR20: =AQ20-AO20 -> 0 | AS20: 0 | AT20: 0 | AU20: 0 | AV20: 0 | AW20: 0 | AX20: 0 | AY20: 0 | AZ20: 0 | BA20: 0 | BB20: 0 | BC20: 0 | BD20: 0 | BE20: 0 | BF20: 0 | BG20: 0 | BH20: 0 | BI20: 0 | BJ20: 0 | BK20: 0 | BL20: 0 | BM20: 0 | BO20: 0 | BP20: 0 | BQ20: 0 | BR20: 0 | BS20: 0 | BT20: 0 | BU20: 0 | BV20: 0 | BW20: 0 | BX20: 0 | BY20: 0 | BZ20: 0 | CA20: 0 | CB20: 0 | CC20: 0 | CE20: 0 | CF20: 0 | CG20: 0 | CH20: 0 | CI20: 0
AL21: =SUM(AL11:AL20) -> 0 | AM21: =SUM(AM11:AM20)+ 0.00001 -> 652000 | AO21: =SUM(AO11:AO20)+ 0.00000001 -> 391245 | AP21: =SUM(AP11:AP20) -> 4535392.93 | AQ21: =SUM(AQ11:AQ20) -> 1931225 | AR21: =AQ21-AO21 -> 1539980 | AS21: =SUM(AS11:AS20) -> 100 | AT21: =SUM(AT11:AT20) -> 0 | AU21: 0 | AV21: =SUM(AV11:AV20)+0.0000001 -> 5352500 | AW21: =SUM(AW11:AW20) -> 739389.1986 | AX21: 4613110.801 | AY21: =SUM(AY11:AY20) -> 1 | AZ21: =SUM(AZ11:AZ20) -> 8.785326397 | BA21: =SUM(BA11:BA20) -> 16.62859244 | BB21: =SUM(BB11:BB20) -> 1.435988685 | BC21: =SUM(AZ21:BB21) -> 26.84990753 | BD21: =ROUND((AO21-SUM(BD11:BD20))/(AO21+0.000001)*100,1) -> 57.6 | BE21: =K21 -> 0 | BG21: =I21 -> 0 | BH21: =J21 -> 0 | BI21: =L21 -> 0 | BJ21: =M21 -> 0 | BK21: =N21 -> 0 | BL21: =SUM(BL11:BL20) -> 115.1399997 | BM21: =SUM(BM11:BM20)+0.0000001 -> 42.37063742 | BN21: kaikki rehut | CE21: yht | CF21: =SUM(CF11:CF20) -> 165773 | CH21: =SUM(CH11:CH20) -> 219238 | CI21: =SUM(CI11:CI20) -> 6234
A22: Rehulistaus: | D22: 1.Rivi:kotoiset karkerehut painotettuna keskiarvona | AN22: ruokintapäivät | AO22: 365 | AV22: 0 | AW22: 0 | AY22: erän hinta | AZ22: =AZ21*AW21/100 -> 64957.75444 | BA22: =BA21*AO21/100 -> 65058.53651 | BB22: =BB21*AP21/100 -> 65127.72928 | BC22: kommentit | BD22: Jos kivennäisen/vitamiinin tarve ei laskurin mukaan toteudu, tämä voi johtua todellisen puutteen ohella myös siitä, ettei pitoisuuksia ole kaikkien rehujen osalta annettu/määritetty. Kivennäisten ja vitamiinien yliruokintaa tulee välttää, koska niiden liikasaanti voi johtaa terveysongelmiin. Perusrehujen osalta liikasaanti ei yleensä muodostu ongelmaksi, mutta kivennäis- ja vitamiiniseosten liikakäyttö voi aiheuttaa terveysriskejä. | BE22: Energian saanti on merkittävin lihanaudan kasvutulokseen vaikuttava tekijä. Jotta eläin saavuttaa kohtuullisen kasvutason, ruokinnan tulee sisältää riittävästi energiaa. Yleisesti kasvavan lihanaudan ruokinnassa seoksen energiapitoisuus on välillä 11,3 – 12,5 Mj/kg ka. Alle 9,0 Mj/kg ka oleva energiapitoisuus on jo arveluttavan matala eläimen hyvinvoinnin näkökulmasta. Yli 13,0 Mj/kg ka energiapitoisuus puolestaan tarkoittaa liian korkeaa väkirehutasoa suhteessa säilörehun laatuun. | BF22: Seoksen raakavalkuaistaso 100 g/kg ka on riittävä kasvavalle naudalle. Suuremmilla valkuaistasoilla ei saavuteta merkittävää lisäkasvua. Normaaleilla säilörehu/vilja –ruokinnoilla valkuaistaso on yleensä välillä 120-160 g/kg ka. Valkuaispitoisia rehuja (palkokasvit, mäski) käytettäessä seoksen valkuaispitoisuus voi olla tätä korkeampikin. Ylimääräinen valkuainen poistuu virtsassa, mikä lisää typpihävikkien riskejä. Maksimitason (250 g/kg ka) ylittäminen kuormittaa merkittävästi eläimen aineenvaihduntaa. | BG22: Eläimen tulee saada ruokinnassa riittävästi kuitua, jotta pötsi toimii normaalisti. Rehuseoksen tulee sisältää karkearehun kuitua vähintään 200 g/kg ka, jotta ollaan pötsin toiminnan kannalta turvallisella tasolla. Toisaalta liian kuitupitoinen ruokinta heikentää energiansaantia ja kasvua, koska rehuannoksen täyttävyys muodostuu syöntiä rajoittavaksi tekijäksi. Ohjemaan on asetettu karkearehun kuidun maksimimääräksi 600 g/kg ka, koska tätä korkeammilla tasoilla kasvutasot ovat hyvin heikkoja. | BH22: Uusimpien tutkimusten perusteella kasvavien nautojen valkuaisen saanti on riittävä, kun rehuannoksen PVT on yli -20 g/kg ka. Tällöin rehuannos sisältää pötsissä hajoavaa valkuaista pötsimikrobien kannalta riittävästi. Pötsissä muodostuva mikrobivalkuainen ja perusrehujen ohitusvalkuainen riittävät puolestaan tyydyttämään yli 200 kg painavan naudan aminohappojen tarpeen. Hyvälaatuisella ja runsaalla säilörehuruokinnalla rehuannoksen PVT-arvo tulee yleensä reilusti positiiviseksi ilman haittavaikutuksia. | BI22: Naudalla ei sinällään ole erillistä tärkkelyksen tai sokerin tarvetta, joten nämä eivät ole eläimen kannalta välttämättömiä. Hyvä kasvutulos kuitenkin edellyttää, että ruokinnassa on mukana myös tärkkelyspitoisia energiarehuja kuten viljaa. Lisäksi rajoitetusti käynyt säilörehu sisältää luonnostaan jonkin verran sokereita. Tärkkelyksen ja sokerin yhteenlasketun määrän tulee olla vähemmän kuin 400 g/kg ka. Liian suuri määrä voi aiheuttaa pötsin happanemista ja ongelmia eläimen terveydentilassa. | BJ22: Säilörehun syönti-indeksiä tarvitaan eläimen rehun syönnin laskennassa. Jotta ohjelma laskee rehun syönnin oikein, säilörehuista, heinästä ja oljesta on oltava tallennettuna rehuanalyysistä saatava syönti-indeksi. Säilörehujen syönti-indeksi on yleensä välillä 80-130. Jos säilörehun syönti-indeksi on ohjelmassa näiden arvojen ulkopuolella, kannattaa tarkistaa mahdolliset tallennusvirheet. Kuivan heinän syönti-indeksi on yleensä 75-90. Oljen osalta voidaan käyttää syönti-indeksin arvoa 50. | BK22: Ruokinnan sisältämää haihtuvien rasvahappojen (VFA) määrää tarvitaan eläimen rehun syönnin laskennassa. Jotta ohjelma laskee rehun syönnin oikein, säilörehuista on oltava tallennettuna VFA-pitoisuus. Muut yleisimmät rehut eivät sisällä haihtuvia rasvahappoja, joten niiden osalta arvo on 0. Hyvässä säilörehussa on haihtuvia rasvahappoja alle 25 g/kg ka. Jos koko seoksen sisältämä VFA määrä on yli 50 g/kg ka, kyseessä on todennäköisesti tallennusvirhe, joka täytyy korjata. | BN22: Jos kivennäisen/vitamiinin tarve ei laskurin mukaan toteudu, tämä voi johtua todellisen puutteen ohella myös siitä, ettei pitoisuuksia ole kaikkien rehujen osalta annettu/määritetty. Kivennäisten ja vitamiinien yliruokintaa tulee välttää, koska niiden liikasaanti voi johtaa terveysongelmiin. Perusrehujen osalta liikasaanti ei yleensä muodostu ongelmaksi, mutta kivennäis- ja vitamiiniseosten liikakäyttö voi aiheuttaa terveysriskejä. | BO22: Kalsium on määrällisesti tärkein ruumiin kivennäisaineista. Pääosa kalsiumista on sitoutunut luustoon, jossa se yhdessä fosforin kanssa muodostaa erittäin kovan ja vaikealiukoisen yhdisteen. Kalsiumia tarvitaan myös mm. lihasten, hermojen ja monien entsyymien toiminnassa. Puutos aiheuttaa mm. kasvuhäiriöitä, riisitautia ja luiden haurastumista. Kalsiumin tarpeen mukainen saanti edellyttää yleensä kivennäisseoksen tai ruokintakalkin käyttöä. | BP22: Fosforista noin 80 % sijaitsee luustossa kalsiumiin sidottuna. Loppuosa elimistön fosforista on pehmeissä kudoksissa ja nesteissä sitoutuneena valkuaisaineisiin, lipideihin, hiilihydraatteihin ja muihin orgaanisiin yhdisteisiin. Kasvavan naudan fosforin tarve täyttyy yleensä säilörehun ja viljan kautta, joten ruokinnassa voidaan normaalisti käyttää fosforittomia kivennäisseoksia. Ylimääräistä saantia tulee välttää, koska fosfori on kallis raaka-aine. Ylimääräinen saanti lisää myös ympäristökuormitusriskiä. | BQ22: Magnesiumia on luustossa, ruumiin nesteissä ja kudoksissa. Hyvin monet entsyymit tarvitsevat toimiakseen magnesiumia, joten sillä on keskeinen tehtävä aineenvaihdunnassa. Magnesium on välttämätön myös luiden mineralisaatiossa ja hermojärjestelmässä. Naudalla liian alhainen veren Mg-pitoisuus voi johtaa halvaukseen. Puutosoireita voivat olla mm. jalkaheikkous, niveltulehdukset ja lisääntymishäiriöt. Saanti voidaan turvata käyttämällä lihanaudoille tarkoitettuja kivennäisseoksia ohjeen mukaisena annostuksena. | BR22: Pieni osa natriumista on luissa liukenemattomassa muodossa, mutta valtaosa on solujen ulkopuolisissa nesteissä, joissa natrium on tärkeä tekijä osmoottisen paineen ja happo-emäs-tasapainon ylläpitäjänä. Natriumin puutosoireita ovat mm. ruokahalun ja rehun hyväksikäytön heikkeneminen. Varsinkin laiduntaville märehtijöille kehittyy nopeasti puutostila, jos niille ei anneta ruokasuolaa. Saanti voidaan turvata käyttämällä lihanaudoille tarkoitettuja kivennäisseoksia ohjeen mukaisena annostuksena. | BS22: Noin puolet elimistön raudasta on veressä hemoglobiinissa. Toinen puoli on melko tasaisesti jakautunut elimistön kaikkiin soluihin. Rauta on elimistössä tarkoin suljetussa järjestelmässä eli sitä ei paljon poistu. Kasvavilla naudoilla ei normaalisti esiinny raudan puutosta, sillä useimmat rehuaineet sisältävät rautaa moninkertaisesti yli tarpeen. Maidon rautapitoisuus on poikkeuksellisen alhainen. Nuoret eläimet, jotka saavat pitkään vain maitoa, voivat kärsiä raudan puutetta. | BT22: Mangaania on eräissä elimistön entsyymeissä ja se toimii reaktion aktivaattorina monille muille entsyymeille. Mangaania on pieniä määriä monissa kudoksissa, mutta ei runsaasti missään. Mangaanin puutosoireita ovat mm. kasvun heikkeneminen, luiden epänormaalit muodot ja häiriöt lisääntymisessä. Saanti voidaan turvata käyttämällä lihanaudoille tarkoitettuja kivennäisseoksia ohjeen mukaisena annostuksena. | BU22: Sinkki liittyy monella tavoin elimistön aineenvaihduntaan. Se on rakenneosana useissa entsyymeissä. Sinkkiä on runsaasti ihossa, karvoissa, kynsissä, silmän suonikalvossa, spermassa ja sukurauhasissa. Sinkin puutoksen yleisoire on huono ruokahalu ja kasvun pysähtyminen. Laihtumiseen liittyy ihovaurioita, joiden yhteydessä tapahtuu karvanlähtöä. Saanti voidaan turvata käyttämällä lihanaudoille tarkoitettuja kivennäisseoksia ohjeen mukaisena annostuksena. | BV22: Kupari on molekyylin osana hyvin monissa entsyymeissä. Runsaimmin kuparia on maksassa, aivoissa, munuaisissa, sydämessä ja karvoissa. Kupari on myös välttämätön ainesosa veren punasoluissa. Normaali luunmuodostus estyy kuparin puutteessa. Sinkin, raudan, kalsiumin, molybdeenin tai kadmiumin runsas esiintyminen rehussa heikentää kuparin hyväksikäyttöä. Saanti voidaan turvata käyttämällä lihanaudoille tarkoitettuja kivennäisseoksia ohjeen mukaisena annostuksena. | BW22: Koboltti sisältyy B12 –vitamiiniin, joka on välttämätön tekijä punasolujen muodostumiselle. Noin 4 % tästä vitamiinista on kobolttia. Märehtijät tulevat toimeen ilman B12 –vitamiinia, kunhan ne saavat kobolttia, sillä pötsin mikrobit pystyvät syntetisoimaan B12-vitamiinia. Märehtijän koboltin tarve on suuri B12 –tarpeeseen verrattuna, mutta määrällisesti tarve on hyvin vähäinen. Saanti voidaan turvata käyttämällä lihanaudoille tarkoitettuja kivennäisseoksia ohjeen mukaisena annostuksena. | BX22: Seleenin tunnetuin merkitys on lihasrappeuman estäminen yhdessä E-vitamiinin kanssa. Seleeni on myös välttämätön eläimen normaalille kasvulle ja hedelmällisyydelle. Seleeni on myös voimakas myrkky. Hyödyllisen ja myrkyllisen määrän raja on kapea. Saanti voidaan turvata käyttämällä lihanaudoille tarkoitettuja kivennäisseoksia ohjeen mukaisena annostuksena. | BY22: Jodin ainoa tunnettu tehtävä on olla raaka-aineena kilpirauhashormoneille. Puutos näkyy aluksi kilpirauhasen laajentumisena (struuma). Saanti voidaan turvata käyttämällä lihanaudoille tarkoitettuja kivennäisseoksia ohjeen mukaisena annostuksena. | BZ22: Molybdeeni on välttämätön tekijä eräissä entsyymireaktioissa. Normaalioloissa naudoilla ei ole molybdeenin puutosta. Molybdeeni on jo pieninä pitoisuuksina myrkyllinen aine. Useimmille rehuille ei ole saatavissa molybdeenipitoisuuksia. Siten ohjelman ilmoittama punainen arvo johtuu todennäköisesti puutteellisista rehutiedoista eikä molybdeenin puutteesta ruokinnassa. | CA22: A-vitamiini osallistuu näkemistapahtumaan sekä aineenvaihduntaan. A-vitamiinin puutosoireita ovat mm. hämäräsokeus, infektioherkkyys ja kasvun pysähtyminen. A-vitamiini varastoituu elimistöön varsin hyvin, minkä vuoksi päivittäinen saanti ei ole välttämätön. Hyviä A-vitamiinin lähteitä ovat tuoreet vihreät rehut. Saanti voidaan turvata käyttämällä lihanaudoille tarkoitettuja vitamiinit sisältäviä kivennäisseoksia ohjeen mukaisena annostuksena. | CB22: D-vitamiini osallistuu kalsiumin, fosforin sekä jossakin määrin myös magnesiumin aineenvaihduntaan. Tarvittaessa se tehostaa näiden aineiden imeytymistä suolistosta. D-vitamiinin puute aiheuttaa mm. riisitautia, kasvun hidastumista ja nivelten turpoamista. Eläin saa D-vitamiinia sekä rehusta että ihon provitamiineista auringon ultraviolettisäteilyn avulla. Saanti voidaan turvata käyttämällä lihanaudoille tarkoitettuja vitamiinit sisältäviä kivennäisseoksia ohjeen mukaisena annostuksena. | CC22: E-vitamiini on tehokas antioksidantti. Riittävä saanti parantaa eläintuotteiden (liha, maito) laatua ja säilyvyyttä. Lihasrappeuma on tunnetuin E-vitamiinin puutosoireista. E-vitamiini ja seleeni ovat välttämättömiä solukalvojen normaalille toiminnalle. Ne eivät korvaa toisiaan, vaan molempia tarvitaan. Hyviä E-vitamiinin lähteitä ovat tuoreet vihreät rehut ja kuivattu vilja. Saanti voidaan turvata käyttämällä lihanaudoille tarkoitettuja vitamiinit sisältäviä kivennäisseoksia ohjeen mukaisesti.
D23: 2.Rivi: kotoiset väkirehut painotettuna keskiarvona | AN23: takaisinkorjaus | AO23: =ROUND((AO21/(1-AM6)),0)+7 -> 401284 | AZ23: tuorekiloina | BA23: ka kiloina | BB23: megajouleina | BC23: valintasarake | BD23: 61 | BO23: Ylimääräinen kalsium poistetaan ulosteisiin, joten myrkytys on epätodennäköinen. Joissain tapauksissa myrkytysoireet ovat mahdollisia. Tällöin tarvitaan fosforin ja d-vitamiinin yhteisvaikutus (fosforia liian vähän ja d-vit. liikaa). Raja-arvo tällöin, jos kalsiumia yli 1 % kuiva-aineesta. | BP23: Ylimääräinen fosfori poistetaan ulosteisiin, joten myrkytys on epätodennäköinen. Ennen myrkytystä muodostuu virtsakiviä, varsinkin runsaalla väkirehuruokinnalla. | BR23: Nuorilla vasikoilla sietoraja on 30 g/kg ka. | BS23: Sietoraja voi olla alhaisempi kuin 1000 mg/kg ka, jos e-vitamiinista on puutetta. Puute voi aiheutua keväällä laiduntaessa nuorta kasvustoa. | BT23: Sietoraja on riippuvainen dieetin kupari-, molybdeeni- ja rauta-tasoista. | BU23: Myrkytysraja on 1500 mg/kg ka. Myös dieetin kalsium-, kupari-, rauta- ja cadmiumpitoisuudet vaikuttavat sietorajaan. | BV23: Vasikoilla yli 200 mg/kg ka aiheutta myrkytyksen. Suuremmat naudat kestävät jopa tasoa 900 mg/kg ka muutamia viikkoja. | BW23: Nuorilla vasikoilla sietoraja on 4 mg/kg ka, vanhemmilla naudoilla 30 mg/kg ka. | BX23: Aiheuttaa myrkytysoireita jo suhteellisen matalissa pitoisuuksissa, maksimiarvo kirjallisuuden perusteella 4 mg/kg ka. | BY23: Yli 50 mg/kg ka aiheuttaa myrkytysoireet. | BZ23: Maksimiarvo 2 mg/kg ka, jos ruokinnassa korkea rikki- ja matala kuparipitoisuus. Maksimiarvo 20 mg/kg ka, jos ruokinnassa matala rikki- ja korkea kuparipitoisuus. | CC23: Myrkytysraja naudoilla ei tiedossa.
D24: 3-10 Rivit: ostorehut ja kivennäiset
AZ25: virhe | BA25: =(MAX(AZ22:BB22)-MIN(AZ22:BB22)) -> 169.9748331
AZ26: virheprosentti | BA26: =BA25/MIN(AZ22:BB22) -> 0.002616698107
BD42: OPTIMOIDAAN, KESTÄÄ HETKISEN ...............
BC52: LASKETAAN REHUSEOKSEN KASVUTULOKSET, KESTÄÄN JONKIN AIKAA...
AN131: 15

Sheet ohjeet
G1: Mj | H1: =RehuVarasto!AN13 -> RV | I1: =RehuVarasto!AO13 -> NDF | J1: =RehuVarasto!AP13 -> PVT | K1: =RehuVarasto!AQ13 -> Tärk&sok | L1: =RehuVarasto!AR13 -> Syönti-indeksi SRIND | M1: =RehuVarasto!AS13 -> VFA | N1: Kivennäiset ym. | O1: =RehuVarasto!AV20 -> Ca | P1: =RehuVarasto!AW20 -> P | Q1: =RehuVarasto!AX20 -> Mg | R1: =RehuVarasto!AY20 -> Na | S1: =RehuVarasto!AZ20 -> Fe | T1: =RehuVarasto!BA20 -> Mn | U1: =RehuVarasto!BB20 -> Zn | V1: =RehuVarasto!BC20 -> Cu | W1: =RehuVarasto!BD20 -> Co | X1: =RehuVarasto!BE20 -> Se | Y1: =RehuVarasto!BF20 -> I | Z1: =RehuVarasto!BG20 -> Mo | AA1: =RehuVarasto!BH20 -> A-vit
F2: min | G2: 9 | H2: =RehuVarasto!AN14 -> 90 | I2: =RehuVarasto!AO14 -> 300 | J2: =RehuVarasto!AP14 -> -20 | K2: =RehuVarasto!AQ14 -> 0 | L2: =RehuVarasto!AR14 -> 70 | M2: =RehuVarasto!AS14 -> 0 | N2: - | O2: =RehuVarasto!AV14 -> 6 | P2: =RehuVarasto!AW14 -> 3 | Q2: =RehuVarasto!AX14 -> 1.5 | R2: =RehuVarasto!AY14 -> 1.6 | S2: =RehuVarasto!AZ14 -> 100 | T2: =RehuVarasto!BA14 -> 40 | U2: =RehuVarasto!BB14 -> 50 | V2: =RehuVarasto!BC14 -> 10 | W2: =RehuVarasto!BD14 -> 0.1 | X2: =RehuVarasto!BE14 -> 0.1 | Y2: =RehuVarasto!BF14 -> 0.2 | Z2: =RehuVarasto!BG14 -> 0.3 | AA2: =RehuVarasto!BH14 -> 2200
F3: nyt | G3: =RehuVarasto!P7 -> 11.392 | H3: =RehuVarasto!AN15 -> 128.072 | I3: =RehuVarasto!AO15 -> 398.84 | J3: =RehuVarasto!AP15 -> -10.32 | K3: =RehuVarasto!AQ15 -> 322.42 | L3: =RehuVarasto!AR15 -> 111.5 | M3: =RehuVarasto!AS15 -> 4.2 | N3: - | O3: =RehuVarasto!AV15 -> 9.21 | P3: =RehuVarasto!AW15 -> 3.298 | Q3: =RehuVarasto!AX15 -> 2.242 | R3: =RehuVarasto!AY15 -> 1.798 | S3: =RehuVarasto!AZ15 -> 153.18 | T3: =RehuVarasto!BA15 -> 59.72 | U3: =RehuVarasto!BB15 -> 64.54 | V3: =RehuVarasto!BC15 -> 11.84 | W3: =RehuVarasto!BD15 -> 0.368 | X3: =RehuVarasto!BE15 -> 0.388 | Y3: =RehuVarasto!BF15 -> 1.856 | Z3: =RehuVarasto!BG15 -> 0.324 | AA3: =RehuVarasto!BH15 -> 3382.78
F4: max | G4: 13 | H4: =RehuVarasto!AN16 -> 250 | I4: =RehuVarasto!AO16 -> 600 | J4: =RehuVarasto!AP16 -> 100 | K4: =RehuVarasto!AQ16 -> 400 | L4: =RehuVarasto!AR16 -> 130 | M4: =RehuVarasto!AS16 -> ei ole | N4: - | O4: =RehuVarasto!AV16 -> ei tiedossa | P4: =RehuVarasto!AW16 -> ei tiedossa | Q4: =RehuVarasto!AX16 -> 6 | R4: =RehuVarasto!AY16 -> 60 | S4: =RehuVarasto!AZ16 -> 1000 | T4: =RehuVarasto!BA16 -> 1300 | U4: =RehuVarasto!BB16 -> 1500 | V4: =RehuVarasto!BC16 -> 200 | W4: =RehuVarasto!BD16 -> 30 | X4: =RehuVarasto!BE16 -> 4 | Y4: =RehuVarasto!BF16 -> 50 | Z4: =RehuVarasto!BG16 -> 2 | AA4: =RehuVarasto!BH16 -> 20000
A5: Lista | B5: infosar | C5: minsar | E5: vain karkearehut ndf-arvoon mukaan | F5: tuorekgmin | G5: MJ | H5: RV | I5: NDF | J5: PVT | K5: tärk+sok | L5: Srind | M5: VFA | N5: Kiv/hiv | O5: Ca | P5: P | Q5: Mg | R5: Na | S5: Fe | T5: Mn | U5: Zn | V5: Cu | W5: Co | X5: Se | Y5: I | Z5: Mo | AA5: A-vit | AB5: D-vit | AC5: E-vit
A6: MJ | B6: 7 | C6: 40 | E6: kommentit 1 | F6: Jos kivennäisen/vitamiinin tarve ei laskurin mukaan toteudu, tämä voi johtua todellisen puutteen ohella myös siitä, ettei pitoisuuksia ole kaikkien rehujen osalta annettu/määritetty. Kivennäisten ja vitamiinien yliruokintaa tulee välttää, koska niiden liikasaanti voi johtaa terveysongelmiin. Perusrehujen osalta liikasaanti ei yleensä muodostu ongelmaksi, mutta kivennäis- ja vitamiiniseosten liikakäyttö voi aiheuttaa terveysriskejä. | G6: Energian saanti on merkittävin lihanaudan kasvutulokseen vaikuttava tekijä. Jotta eläin saavuttaa kohtuullisen kasvutason, ruokinnan tulee sisältää riittävästi energiaa. Yleisesti kasvavan lihanaudan ruokinnassa seoksen energiapitoisuus on välillä 11,3 – 12,5 Mj/kg ka. Alle 9,0 Mj/kg ka oleva energiapitoisuus on jo arveluttavan matala eläimen hyvinvoinnin näkökulmasta. Yli 13,0 Mj/kg ka energiapitoisuus puolestaan tarkoittaa liian korkeaa väkirehutasoa suhteessa säilörehun laatuun. | H6: Seoksen raakavalkuaistaso 100 g/kg ka on riittävä kasvavalle naudalle. Suuremmilla valkuaistasoilla ei saavuteta merkittävää lisäkasvua. Normaaleilla säilörehu/vilja –ruokinnoilla valkuaistaso on yleensä välillä 120-160 g/kg ka. Valkuaispitoisia rehuja (palkokasvit, mäski) käytettäessä seoksen valkuaispitoisuus voi olla tätä korkeampikin. Ylimääräinen valkuainen poistuu virtsassa, mikä lisää typpihävikkien riskejä. Maksimitason (250 g/kg ka) ylittäminen kuormittaa merkittävästi eläimen aineenvaihduntaa. | I6: Naudan tulee saada ruokinnassa riittävästi kuitua, jotta pötsi toimii normaalisti. Rehuseoksen tulee sisältää karkearehun kuitua vähintään 300 g/kg ka, jotta ollaan pötsin toiminnan kannalta turvallisella tasolla. Toisaalta liian kuitupitoinen ruokinta heikentää energiansaantia ja kasvua, koska rehuannoksen täyttävyys muodostuu syöntiä rajoittavaksi tekijäksi. Ohjelmaan on asetettu kuidun maksimimääräksi 600 g/kg ka, koska tätä korkeammilla tasoilla kasvutasot ovat heikkoja. | J6: Uusimpien tutkimusten perusteella kasvavien nautojen valkuaisen saanti on riittävä, kun rehuannoksen PVT on yli -20 g/kg ka. Tällöin rehuannos sisältää pötsissä hajoavaa valkuaista pötsimikrobien kannalta riittävästi. Pötsissä muodostuva mikrobivalkuainen ja perusrehujen ohitusvalkuainen riittävät puolestaan tyydyttämään yli 200 kg painavan naudan aminohappojen tarpeen. Hyvälaatuisella ja runsaalla säilörehuruokinnalla rehuannoksen PVT-arvo tulee yleensä reilusti positiiviseksi ilman haittavaikutuksia. | K6: Naudalla ei sinällään ole erillistä tärkkelyksen tai sokerin tarvetta, joten nämä eivät ole eläimen kannalta välttämättömiä. Hyvä kasvutulos kuitenkin edellyttää, että ruokinnassa on mukana myös tärkkelyspitoisia energiarehuja kuten viljaa. Lisäksi rajoitetusti käynyt säilörehu sisältää luonnostaan jonkin verran sokereita. Tärkkelyksen ja sokerin yhteenlasketun määrän tulee olla vähemmän kuin 400 g/kg ka. Liian suuri määrä voi aiheuttaa pötsin happanemista ja ongelmia eläimen terveydentilassa. | L6: Säilörehun syönti-indeksiä tarvitaan eläimen rehun syönnin laskennassa. Jotta ohjelma laskee rehun syönnin oikein, säilörehuista, heinästä ja oljesta on oltava tallennettuna rehuanalyysistä saatava syönti-indeksi. Säilörehujen syönti-indeksi on yleensä välillä 80-130. Jos säilörehun syönti-indeksi on ohjelmassa näiden arvojen ulkopuolella, kannattaa tarkistaa mahdolliset tallennusvirheet. Kuivan heinän syönti-indeksi on yleensä 75-90. Oljen osalta voidaan käyttää syönti-indeksin arvoa 50. | M6: Ruokinnan sisältämää haihtuvien rasvahappojen (VFA) määrää tarvitaan eläimen rehun syönnin laskennassa. Jotta ohjelma laskee rehun syönnin oikein, säilörehuista on oltava tallennettuna VFA-pitoisuus. Muut yleisimmät rehut eivät sisällä haihtuvia rasvahappoja, joten niiden osalta arvo on 0. Hyvässä säilörehussa on haihtuvia rasvahappoja alle 25 g/kg ka. Jos koko seoksen sisältämä VFA määrä on yli 50 g/kg ka, kyseessä on todennäköisesti tallennusvirhe, joka täytyy korjata. | N6: Jos kivennäisen/vitamiinin tarve ei laskurin mukaan toteudu, tämä voi johtua todellisen puutteen ohella myös siitä, ettei pitoisuuksia ole kaikkien rehujen osalta annettu/määritetty. Kivennäisten ja vitamiinien yliruokintaa tulee välttää, koska niiden liikasaanti voi johtaa terveysongelmiin. Perusrehujen osalta liikasaanti ei yleensä muodostu ongelmaksi, mutta kivennäis- ja vitamiiniseosten liikakäyttö voi aiheuttaa terveysriskejä. | O6: Kalsium on määrällisesti tärkein ruumiin kivennäisaineista. Pääosa kalsiumista on sitoutunut luustoon, jossa se yhdessä fosforin kanssa muodostaa erittäin kovan ja vaikealiukoisen yhdisteen. Kalsiumia tarvitaan myös mm. lihasten, hermojen ja monien entsyymien toiminnassa. Puutos aiheuttaa mm. kasvuhäiriöitä, riisitautia ja luiden haurastumista. Kalsiumin tarpeen mukainen saanti edellyttää yleensä kivennäisseoksen tai ruokintakalkin käyttöä. | P6: Fosforista noin 80 % sijaitsee luustossa kalsiumiin sidottuna. Loppuosa elimistön fosforista on pehmeissä kudoksissa ja nesteissä sitoutuneena valkuaisaineisiin, lipideihin, hiilihydraatteihin ja muihin orgaanisiin yhdisteisiin. Kasvavan naudan fosforin tarve täyttyy yleensä säilörehun ja viljan kautta, joten ruokinnassa voidaan normaalisti käyttää fosforittomia kivennäisseoksia. Ylimääräistä saantia tulee välttää, koska fosfori on kallis raaka-aine. Ylimääräinen saanti lisää myös ympäristökuormitusriskiä. | Q6: Magnesiumia on luustossa, ruumiin nesteissä ja kudoksissa. Hyvin monet entsyymit tarvitsevat toimiakseen magnesiumia, joten sillä on keskeinen tehtävä aineenvaihdunnassa. Magnesium on välttämätön myös luiden mineralisaatiossa ja hermojärjestelmässä. Naudalla liian alhainen veren Mg-pitoisuus voi johtaa halvaukseen. Puutosoireita voivat olla mm. jalkaheikkous, niveltulehdukset ja lisääntymishäiriöt. Saanti voidaan turvata käyttämällä lihanaudoille tarkoitettuja kivennäisseoksia ohjeen mukaisena annostuksena. | R6: Pieni osa natriumista on luissa liukenemattomassa muodossa, mutta valtaosa on solujen ulkopuolisissa nesteissä, joissa natrium on tärkeä tekijä osmoottisen paineen ja happo-emäs-tasapainon ylläpitäjänä. Natriumin puutosoireita ovat mm. ruokahalun ja rehun hyväksikäytön heikkeneminen. Varsinkin laiduntaville märehtijöille kehittyy nopeasti puutostila, jos niille ei anneta ruokasuolaa. Saanti voidaan turvata käyttämällä lihanaudoille tarkoitettuja kivennäisseoksia ohjeen mukaisena annostuksena. | S6: Noin puolet elimistön raudasta on veressä hemoglobiinissa. Toinen puoli on melko tasaisesti jakautunut elimistön kaikkiin soluihin. Rauta on elimistössä tarkoin suljetussa järjestelmässä eli sitä ei paljon poistu. Kasvavilla naudoilla ei normaalisti esiinny raudan puutosta, sillä useimmat rehuaineet sisältävät rautaa moninkertaisesti yli tarpeen. Maidon rautapitoisuus on poikkeuksellisen alhainen. Nuoret eläimet, jotka saavat pitkään vain maitoa, voivat kärsiä raudan puutetta. | T6: Mangaania on eräissä elimistön entsyymeissä ja se toimii reaktion aktivaattorina monille muille entsyymeille. Mangaania on pieniä määriä monissa kudoksissa, mutta ei runsaasti missään. Mangaanin puutosoireita ovat mm. kasvun heikkeneminen, luiden epänormaalit muodot ja häiriöt lisääntymisessä. Saanti voidaan turvata käyttämällä lihanaudoille tarkoitettuja kivennäisseoksia ohjeen mukaisena annostuksena. | U6: Sinkki liittyy monella tavoin elimistön aineenvaihduntaan. Se on rakenneosana useissa entsyymeissä. Sinkkiä on runsaasti ihossa, karvoissa, kynsissä, silmän suonikalvossa, spermassa ja sukurauhasissa. Sinkin puutoksen yleisoire on huono ruokahalu ja kasvun pysähtyminen. Laihtumiseen liittyy ihovaurioita, joiden yhteydessä tapahtuu karvanlähtöä. Saanti voidaan turvata käyttämällä lihanaudoille tarkoitettuja kivennäisseoksia ohjeen mukaisena annostuksena. | V6: Kupari on molekyylin osana hyvin monissa entsyymeissä. Runsaimmin kuparia on maksassa, aivoissa, munuaisissa, sydämessä ja karvoissa. Kupari on myös välttämätön ainesosa veren punasoluissa. Normaali luunmuodostus estyy kuparin puutteessa. Sinkin, raudan, kalsiumin, molybdeenin tai kadmiumin runsas esiintyminen rehussa heikentää kuparin hyväksikäyttöä. Saanti voidaan turvata käyttämällä lihanaudoille tarkoitettuja kivennäisseoksia ohjeen mukaisena annostuksena. | W6: Koboltti sisältyy B12 –vitamiiniin, joka on välttämätön tekijä punasolujen muodostumiselle. Noin 4 % tästä vitamiinista on kobolttia. Märehtijät tulevat toimeen ilman B12 –vitamiinia, kunhan ne saavat kobolttia, sillä pötsin mikrobit pystyvät syntetisoimaan B12-vitamiinia. Märehtijän koboltin tarve on suuri B12 –tarpeeseen verrattuna, mutta määrällisesti tarve on hyvin vähäinen. Saanti voidaan turvata käyttämällä lihanaudoille tarkoitettuja kivennäisseoksia ohjeen mukaisena annostuksena. | X6: Seleenin tunnetuin merkitys on lihasrappeuman estäminen yhdessä E-vitamiinin kanssa. Seleeni on myös välttämätön eläimen normaalille kasvulle ja hedelmällisyydelle. Seleeni on myös voimakas myrkky. Hyödyllisen ja myrkyllisen määrän raja on kapea. Saanti voidaan turvata käyttämällä lihanaudoille tarkoitettuja kivennäisseoksia ohjeen mukaisena annostuksena. | Y6: Jodin ainoa tunnettu tehtävä on olla raaka-aineena kilpirauhashormoneille. Puutos näkyy aluksi kilpirauhasen laajentumisena (struuma). Saanti voidaan turvata käyttämällä lihanaudoille tarkoitettuja kivennäisseoksia ohjeen mukaisena annostuksena. | Z6: Molybdeeni on välttämätön tekijä eräissä entsyymireaktioissa. Normaalioloissa naudoilla ei ole molybdeenin puutosta. Molybdeeni on jo pieninä pitoisuuksina myrkyllinen aine. Useimmille rehuille ei ole saatavissa molybdeenipitoisuuksia. Siten ohjelman ilmoittama punainen arvo johtuu todennäköisesti puutteellisista rehutiedoista eikä molybdeenin puutteesta ruokinnassa. | AA6: A-vitamiini osallistuu näkemistapahtumaan sekä aineenvaihduntaan. A-vitamiinin puutosoireita ovat mm. hämäräsokeus, infektioherkkyys ja kasvun pysähtyminen. A-vitamiini varastoituu elimistöön varsin hyvin, minkä vuoksi päivittäinen saanti ei ole välttämätön. Hyviä A-vitamiinin lähteitä ovat tuoreet vihreät rehut. Saanti voidaan turvata käyttämällä lihanaudoille tarkoitettuja vitamiinit sisältäviä kivennäisseoksia ohjeen mukaisena annostuksena. | AB6: D-vitamiini osallistuu kalsiumin, fosforin sekä jossakin määrin myös magnesiumin aineenvaihduntaan. Tarvittaessa se tehostaa näiden aineiden imeytymistä suolistosta. D-vitamiinin puute aiheuttaa mm. riisitautia, kasvun hidastumista ja nivelten turpoamista. Eläin saa D-vitamiinia sekä rehusta että ihon provitamiineista auringon ultraviolettisäteilyn avulla. Saanti voidaan turvata käyttämällä lihanaudoille tarkoitettuja vitamiinit sisältäviä kivennäisseoksia ohjeen mukaisena annostuksena. | AC6: E-vitamiini on tehokas antioksidantti. Riittävä saanti parantaa eläintuotteiden (liha, maito) laatua ja säilyvyyttä. Lihasrappeuma on tunnetuin E-vitamiinin puutosoireista. E-vitamiini ja seleeni ovat välttämättömiä solukalvojen normaalille toiminnalle. Ne eivät korvaa toisiaan, vaan molempia tarvitaan. Hyviä E-vitamiinin lähteitä ovat tuoreet vihreät rehut ja kuivattu vilja. Saanti voidaan turvata käyttämällä lihanaudoille tarkoitettuja vitamiinit sisältäviä kivennäisseoksia ohjeen mukaisesti.
A7: RV | B7: 8 | C7: 41 | E7: kommentit 2 | O7: Ylimääräinen kalsium poistetaan ulosteisiin, joten myrkytys on epätodennäköinen. Joissain tapauksissa myrkytysoireet ovat mahdollisia. Tällöin tarvitaan fosforin ja d-vitamiinin yhteisvaikutus (fosforia liian vähän ja d-vit. liikaa). Raja-arvo tällöin, jos kalsiumia yli 1 % kuiva-aineesta. | P7: Ylimääräinen fosfori poistetaan ulosteisiin, joten myrkytys on epätodennäköinen. Ennen myrkytystä muodostuu virtsakiviä, varsinkin runsaalla väkirehuruokinnalla. | R7: Nuorilla vasikoilla sietoraja on 30 g/kg ka. | S7: Sietoraja voi olla alhaisempi kuin 1000 mg/kg ka, jos e-vitamiinista on puutetta. Puute voi aiheutua keväällä laiduntaessa nuorta kasvustoa. | T7: Sietoraja on riippuvainen dieetin kupari-, molybdeeni- ja rauta-tasoista. | U7: Myrkytysraja on 1500 mg/kg ka. Myös dieetin kalsium-, kupari-, rauta- ja cadmiumpitoisuudet vaikuttavat sietorajaan. | V7: Vasikoilla yli 200 mg/kg ka aiheutta myrkytyksen. Suuremmat naudat kestävät jopa tasoa 900 mg/kg ka muutamia viikkoja. | W7: Nuorilla vasikoilla sietoraja on 4 mg/kg ka, vanhemmilla naudoilla 30 mg/kg ka. | X7: Aiheuttaa myrkytysoireita jo suhteellisen matalissa pitoisuuksissa, maksimiarvo kirjallisuuden perusteella 4 mg/kg ka. | Y7: Yli 50 mg/kg ka aiheuttaa myrkytysoireet. | Z7: Maksimiarvo 2 mg/kg ka, jos ruokinnassa korkea rikki- ja matala kuparipitoisuus. Maksimiarvo 20 mg/kg ka, jos ruokinnassa matala rikki- ja korkea kuparipitoisuus. | AC7: Myrkytysraja naudoilla ei tiedossa.
A8: NDF | B8: 9 | C8: 42
A9: PVT | B9: 10 | C9: 43
A10: Tärk+sok | B10: 11 | C10: 44 | E10: HUOM!
A11: Srind | B11: 12 | C11: 45 | E11: Päiväittämällä yllä olevia kommenttikenttiä (kunkin osatekijä sarakkeessa), muuttuvat infotekstit hivenaineissa
A12: VFA | B12: 13 | C12: 46
A13: Kiv/Hiv | B13: 14 | C13: 47
A14: Ca | B14: 15 | C14: 48
A15: P | B15: 16 | C15: 49
A16: Mg | B16: 17 | C16: 50
A17: Na | B17: 18 | C17: 51
A18: Fe | B18: 19 | C18: 52
A19: Mn | B19: 20 | C19: 53
A20: Zn | B20: 21 | C20: 54
A21: Cu | B21: 22 | C21: 55
A22: Co | B22: 23 | C22: 56
A23: Se | B23: 24 | C23: 57
A24: I | B24: 25 | C24: 58
A25: Mo | B25: 26 | C25: 59
A26: A-vit | B26: 27 | C26: 60
